Department Family,Entity,Date of Payment,Expense Type,Expense Area,Supplier,Voluntary & Community Sector,SME Class,Sole Trader,Transaction number,Narrative,Postal Code,Amount in Sterling,Grant?
Communities & Local Government,DCLG,03/12/2012,Accommodation Service Charges,Finance & Corporate Services,TISHMAN SPEYER ELAND HOUSE S.A.R.L.,,Large,,2100224690,Eland House Service Charge 2012-13,WC2B 4AE,"-116,044.24",
Communities & Local Government,DCLG,03/12/2012,Accommodation Service Charges,Finance & Corporate Services,TISHMAN SPEYER ELAND HOUSE S.A.R.L.,,Large,,5106186650,Eland House Service Charge 2012-13,WC2B 4AE,"116,044.24",
Communities & Local Government,DCLG,03/12/2012,Agency Staff,Finance & Corporate Services,SQUARE ONE RESOURCES LTD,,Medium,,5106186609,SAPDev 1.4.12-31.3.13,EC2A 2AD,"2,858.82",
Communities & Local Government,DCLG,03/12/2012,Current (non AEF) Grants to Local Authorities,Neighbourhoods,AYLESBURY VALE DC(HSG),,,,5000215869,Grant Payable by Exchequer,HP20 1SD,"20,000.00",Yes
Communities & Local Government,DCLG,03/12/2012,Current (non AEF) Grants to Local Authorities,Neighbourhoods,BASSETLAW DC (HSG),,,,5000215870,Grant Payable by Exchequer,S80 2AH,"10,000.00",Yes
Communities & Local Government,DCLG,03/12/2012,Current (non AEF) Grants to Local Authorities,Neighbourhoods,BRADFORD MBC,,,,5000215887,Grant Payable by Exchequer,BD1 1HX,"5,000.00",Yes
Communities & Local Government,DCLG,03/12/2012,Current (non AEF) Grants to Local Authorities,Neighbourhoods,BRISTOL CITY CNCL (HSG),,,,5000215871,Grant Payable by Exchequer,BS99 7BL,"10,000.00",Yes
Communities & Local Government,DCLG,03/12/2012,Current (non AEF) Grants to Local Authorities,Neighbourhoods,BUCKINGHAMSHIRE CC (REVENUE),,,,2100224307,LEPs Core Funding Grant No-2,HP20 1UD,"125,000.00",Yes
Communities & Local Government,DCLG,03/12/2012,Current (non AEF) Grants to Local Authorities,Neighbourhoods,CORNWALL UNITARY AUTHORITY,,,,5000215898,Grant Payable by Exchequer,TR1 3AY,"5,000.00",Yes
Communities & Local Government,DCLG,03/12/2012,Current (non AEF) Grants to Local Authorities,Neighbourhoods,COTSWOLD DC,,,,5000215872,Grant Payable by Exchequer,GL7 1PX,"5,000.00",Yes
Communities & Local Government,DCLG,03/12/2012,Current (non AEF) Grants to Local Authorities,Neighbourhoods,EDEN DC (HSG),,,,5000215873,Grant Payable by Exchequer,CA11 7QF,"5,000.00",Yes
Communities & Local Government,DCLG,03/12/2012,Current (non AEF) Grants to Local Authorities,Neighbourhoods,EXETER CITY CNCL,,,,5000215888,Grant Payable by Exchequer,EX1 1JN,"5,000.00",Yes
Communities & Local Government,DCLG,03/12/2012,Current (non AEF) Grants to Local Authorities,Neighbourhoods,HAMBLETON DC (HSG),,,,5000215874,Grant Payable by Exchequer,DL6 2UU,"10,000.00",Yes
Communities & Local Government,DCLG,03/12/2012,Current (non AEF) Grants to Local Authorities,Neighbourhoods,HEREFORDSHIRE COUNCIL,,,,5000215875,Grant Payable by Exchequer,HR4 0XH,"20,000.00",Yes
Communities & Local Government,DCLG,03/12/2012,Current (non AEF) Grants to Local Authorities,Neighbourhoods,ISLE OF WIGHT CNCL,,,,5000215889,Grant Payable by Exchequer,PO30 1UD,"20,000.00",Yes
Communities & Local Government,DCLG,03/12/2012,Current (non AEF) Grants to Local Authorities,Neighbourhoods,KNOWSLEY MBC,,,,2100224308,LEPs Core Funding Grant No-2,L36 9YZ,"125,000.00",Yes
Communities & Local Government,DCLG,03/12/2012,Current (non AEF) Grants to Local Authorities,Neighbourhoods,LEEDS CITY CNCL,,,,5000215891,Grant Payable by Exchequer,LS1 1JF,"20,000.00",Yes
Communities & Local Government,DCLG,03/12/2012,Current (non AEF) Grants to Local Authorities,Neighbourhoods,LEWES DC,,,,5000215876,Grant Payable by Exchequer,BN7 2DQ,"15,000.00",Yes
Communities & Local Government,DCLG,03/12/2012,Current (non AEF) Grants to Local Authorities,Neighbourhoods,MID SUSSEX DC,,,,5000215877,Grant Payable by Exchequer,RH16 1SS,"20,000.00",Yes
Communities & Local Government,DCLG,03/12/2012,Current (non AEF) Grants to Local Authorities,Neighbourhoods,MILTON KEYNES BC,,,,5000215892,Grant Payable by Exchequer,MK9 3WJ,"20,000.00",Yes
Communities & Local Government,DCLG,03/12/2012,Current (non AEF) Grants to Local Authorities,Neighbourhoods,MOLE VALLEY DC,,,,5000215878,Grant Payable by Exchequer,RH4 1SJ,"5,000.00",Yes
Communities & Local Government,DCLG,03/12/2012,Current (non AEF) Grants to Local Authorities,Neighbourhoods,NORTH DORSET DC,,,,5000215879,Grant Payable by Exchequer,DT11 7LL,"5,000.00",Yes
Communities & Local Government,DCLG,03/12/2012,Current (non AEF) Grants to Local Authorities,Neighbourhoods,NORTH SOMERSET DC,,,,5000215893,Grant Payable by Exchequer,BS23 1LL,"5,000.00",Yes
Communities & Local Government,DCLG,03/12/2012,Current (non AEF) Grants to Local Authorities,Neighbourhoods,ROYAL BOROUGH OF KENSINGTON & CHELS,,,,5000215890,Grant Payable by Exchequer,W8 7NX,"5,000.00",Yes
Communities & Local Government,DCLG,03/12/2012,Current (non AEF) Grants to Local Authorities,Neighbourhoods,SEDGEMOOR DC,,,,5000215880,Grant Payable by Exchequer,TA6 3AR,"10,000.00",Yes
Communities & Local Government,DCLG,03/12/2012,Current (non AEF) Grants to Local Authorities,Neighbourhoods,SHROPSHIRE UNITARY AUTHORITY,,,,5000215897,Grant Payable by Exchequer,SY2 6ND,"5,000.00",Yes
Communities & Local Government,DCLG,03/12/2012,Current (non AEF) Grants to Local Authorities,Neighbourhoods,SHROPSHIRE UNITARY COUNCIL,,,,2100224309,LEPs Core Funding Grant No-2,SY1 9DP,"125,000.00",Yes
Communities & Local Government,DCLG,03/12/2012,Current (non AEF) Grants to Local Authorities,Neighbourhoods,SOUTH OXFORDSHIRE DC,,,,5000215881,Grant Payable by Exchequer,OX10 8HQ,"10,000.00",Yes
Communities & Local Government,DCLG,03/12/2012,Current (non AEF) Grants to Local Authorities,Neighbourhoods,STOKE ON TRENT CITY COUNCIL,,,,2100224310,LEPs Core Funding Grant No-2,ST4 1RF,"125,000.00",Yes
Communities & Local Government,DCLG,03/12/2012,Current (non AEF) Grants to Local Authorities,Neighbourhoods,SUTTON LB,,,,5000215894,Grant Payable by Exchequer,SM1 1EA,"5,000.00",Yes
Communities & Local Government,DCLG,03/12/2012,Current (non AEF) Grants to Local Authorities,Neighbourhoods,TANDRIDGE DC,,,,5000215882,Grant Payable by Exchequer,RH8 0BT,"5,000.00",Yes
Communities & Local Government,DCLG,03/12/2012,Current (non AEF) Grants to Local Authorities,Neighbourhoods,TAUNTON DEANE BC,,,,5000215883,Grant Payable by Exchequer,TA1 1HE,"15,000.00",Yes
Communities & Local Government,DCLG,03/12/2012,Current (non AEF) Grants to Local Authorities,Neighbourhoods,VALE OF WHITE HORSE DC,,,,5000215884,Grant Payable by Exchequer,OX14 3JH,"5,000.00",Yes
Communities & Local Government,DCLG,03/12/2012,Current (non AEF) Grants to Local Authorities,Neighbourhoods,WELLINGBOROUGH,,,,5000215895,Grant Payable by Exchequer,NN8 1BN,"5,000.00",Yes
Communities & Local Government,DCLG,03/12/2012,Current (non AEF) Grants to Local Authorities,Neighbourhoods,WINCHESTER CITY CNCL,,,,5000215885,Grant Payable by Exchequer,SO23 9LJ,"5,000.00",Yes
Communities & Local Government,DCLG,03/12/2012,Current (non AEF) Grants to Local Authorities,Neighbourhoods,WYCOMBE DC,,Medium,,5000215886,Grant Payable by Exchequer,HP11 1BB,"5,000.00",Yes
Communities & Local Government,DCLG,03/12/2012,Current (non AEF) Grants to Local Authorities,Neighbourhoods,WYRE FOREST DISTRICT COUNCIL,,,,5000215896,Grant Payable by Exchequer,DY10 1DA,"5,000.00",Yes
Communities & Local Government,DCLG,03/12/2012,Electricity,Finance & Corporate Services,DEPT FOR WORK & PENSIONS,,Public Bodies,,5106186624,ASHDOWN HASTINGS - UTILITIES,CF14 3UW,288.12,
Communities & Local Government,DCLG,03/12/2012,Electricity,Finance & Corporate Services,DEPT FOR WORK & PENSIONS,,Public Bodies,,5106186638,ASHDOWN HASTINGS - UTILITIES,CF14 3UW,"1,495.64",
Communities & Local Government,DCLG,03/12/2012,Fixed Maintenance,Finance & Corporate Services,DEPT FOR WORK & PENSIONS,,Public Bodies,,5106186611,ASHDOWN HASTINGS -  VARIABLE,CF14 3UW,862.41,
Communities & Local Government,DCLG,03/12/2012,Fixed Maintenance,Finance & Corporate Services,SITEC INTERIORS LIMITED,,Small,,5106186642,Various Fire Works - St Phillips Place,B1 3AP,"9,326.60",
Communities & Local Government,DCLG,03/12/2012,IT - Service Contracts,Localism,AIRWAVE SOLUTIONS LTD,,Large,,5106186641,CR050 Final deliverables,SL1 2EJ,"250,000.00",
Communities & Local Government,DCLG,03/12/2012,Rates,Finance & Corporate Services,DEPT FOR WORK & PENSIONS,,Public Bodies,,5106186614,ASHDOWN HASTINGS - RATES,CF14 3UW,"7,254.42",
Communities & Local Government,DCLG,03/12/2012,Rates,Finance & Corporate Services,DEPT FOR WORK & PENSIONS,,Public Bodies,,5106186624,ASHDOWN HASTINGS - RATES,CF14 3UW,"1,209.07",
Communities & Local Government,DCLG,03/12/2012,Rent,Finance & Corporate Services,DEPT FOR WORK & PENSIONS,,Public Bodies,,5106186614,ASHDOWN HASTINGS - BASIC 2012/13,CF14 3UW,"42,700.04",
Communities & Local Government,DCLG,03/12/2012,Rent,Finance & Corporate Services,DEPT FOR WORK & PENSIONS,,Public Bodies,,5106186624,ASHDOWN HASTINGS - BASIC 2012/13,CF14 3UW,"7,186.42",
Communities & Local Government,DCLG,03/12/2012,Services provided by other Govt Orgs,Finance & Corporate Services,DEPT FOR EDUCATION,,Public Bodies,,5106186629,DCLG Security Clearances 2012-13,CF14 3UW,"2,183.06",Yes
Communities & Local Government,DCLG,03/12/2012,Services provided by other Govt Orgs,Finance & Corporate Services,DEPT FOR EDUCATION,,Public Bodies,,5106186630,DCLG Security Clearances 2012-13,CF14 3UW,"5,542.22",Yes
Communities & Local Government,DCLG,03/12/2012,Telecoms equipment (non-capitalised),Localism,AIRWAVE SOLUTIONS LTD,,Large,,5106186620,20% Phase B Charges,SL1 2EJ,"65,754.00",
Communities & Local Government,DCLG,03/12/2012,Training,Finance & Corporate Services,C I P F A,,Medium,,5106186612,Finance Training,WC2N 6RL,915,
Communities & Local Government,DCLG,03/12/2012,Training,Finance & Corporate Services,CAPITA BUSINESS SERVICES LTD,,Large,,5106186637,Effective Administration,DL1 9HN,"1,033.00",
Communities & Local Government,DCLG,03/12/2012,Training,Finance & Corporate Services,CAPITA BUSINESS SERVICES LTD,,Large,,5106186637,Managing Self - Influencing Skills,DL1 9HN,"1,178.00",
Communities & Local Government,DCLG,03/12/2012,Training,Finance & Corporate Services,DODS PARLIAMENTARY COMM  LTD,,Large,,5106186634,Policy and Practice Briefing (prof dev),SW1H 9BP,295,
Communities & Local Government,DCLG,03/12/2012,Vehicle Maintenance,Localism,BABCOCK CRITICAL SERVICES LTD,,Large,,5106186645,Consumable 12/13,NG15 0DR,"24,082.27",
Communities & Local Government,DCLG,03/12/2012,Vehicle Maintenance,Localism,BABCOCK CRITICAL SERVICES LTD,,Large,,5106186646,Unplanne Maintenance 12/13,NG15 0DR,"14,106.54",
Communities & Local Government,DCLG,03/12/2012,Vehicle Maintenance,Localism,BABCOCK CRITICAL SERVICES LTD,,Large,,5106186647,Unplanne Maintenance 12/13,NG15 0DR,"63,223.91",
Communities & Local Government,DCLG,03/12/2012,Vehicle Maintenance,Localism,BABCOCK CRITICAL SERVICES LTD,,Large,,5106186648,Consumable 12/13,NG15 0DR,"35,725.21",
Communities & Local Government,DCLG,03/12/2012,Vehicle Maintenance,Localism,BABCOCK CRITICAL SERVICES LTD,,Large,,5106186649,Unplanne Maintenance 12/13,NG15 0DR,"18,875.14",
Communities & Local Government,DCLG,03/12/2012,Work In Progress Pre-Cert 40373 Spend,Neighbourhoods,BARNSLEY METROPOLITAN BC,,Public Bodies,,7600003782,ERDF Claim - 8 - P2-SY,S70 9OO,"111,726.32",
Communities & Local Government,DCLG,03/12/2012,Work In Progress Pre-Cert 40373 Spend,Neighbourhoods,BRADFORD  MDC,,,,7600003784,ERDF Claim - 20 - P2-YH,BD1 1HY,"60,087.22",
Communities & Local Government,DCLG,03/12/2012,Work In Progress Pre-Cert 40373 Spend,Neighbourhoods,CENTRE FOR SUSTAINABLE DESIGN,,Large,,7600003783,ERDF Claim - 37 - P1,GU9 7DS,"20,009.73",
Communities & Local Government,DCLG,03/12/2012,Work In Progress Pre-Cert 40373 Spend,Neighbourhoods,E FACTOR ENTERPRISE (NEL) LTD,,Small,,7600003791,ERDF Claim - 26 - P3-YH,DN34 5BQ,"83,463.19",
Communities & Local Government,DCLG,03/12/2012,Work In Progress Pre-Cert 40373 Spend,Neighbourhoods,E FACTOR ENTERPRISE (NEL) LTD,,Small,,7600003792,ERDF Claim - 25 - P3-YH,DN34 5BQ,"96,400.79",
Communities & Local Government,DCLG,03/12/2012,Work In Progress Pre-Cert 40373 Spend,Neighbourhoods,EDEN PROJECT CAMPAIGNS LTD,,,,7600003780,ERDF Claim - 5 - P4,PL24 2SG,"159,719.06"
Communities & Local Government,DCLG,03/12/2012,Work In Progress Pre-Cert 40373 Spend,Neighbourhoods,GWE BUSINESS WEST LTD,,,,7600003776,ERDF Claim - 10 - P2,BS8 3RA,"181,521.11"
Communities & Local Government,DCLG,03/12/2012,Work In Progress Pre-Cert 40373 Spend,Neighbourhoods,LOW CARBON DEVELOPMENT INITIATIVE,,,,7600003786,ERDF Claim - 19 - P3,NR4 7TJ,"8,947.27"
Communities & Local Government,DCLG,03/12/2012,Work In Progress Pre-Cert 40373 Spend,Neighbourhoods,LOW CARBON DEVELOPMENT INITIATIVE,,,,7600003790,ERDF Claim - 20 - P3,NR4 7TJ,"7,930.27"
Communities & Local Government,DCLG,03/12/2012,Work In Progress Pre-Cert 40373 Spend,Neighbourhoods,MARINE SOUTH EAST,,Micro,,7600003775,ERDF Claim - 27 - P1,SO16 7NP,"11,694.11"
Communities & Local Government,DCLG,03/12/2012,Work In Progress Pre-Cert 40373 Spend,Neighbourhoods,NEWCASTLE UNIVERSITY,,,,7600003774,ERDF Claim - 11 - P1,NE1 7RU,"31,047.43"
Communities & Local Government,DCLG,03/12/2012,Work In Progress Pre-Cert 40373 Spend,Neighbourhoods,ROTHERHAM METROPOLITAN BC,,,,7600003779,ERDF Claim - 20 - P2-SY,S65 1DJ,"26,449.73"
Communities & Local Government,DCLG,03/12/2012,Work In Progress Pre-Cert 40373 Spend,Neighbourhoods,SCIENCE CITY YORK,,,,7600003794,ERDF Claim - 70 - P2-YH,YO10 5NY,"18,222.62"
Communities & Local Government,DCLG,03/12/2012,Work In Progress Pre-Cert 40373 Spend,Neighbourhoods,UNIVERSITY OF SHEFFIELD,,,,7600003778,ERDF Claim - 20 - P1-YH,S60 5TZ,"9,705.51"
Communities & Local Government,DCLG,03/12/2012,Work In Progress Pre-Cert 40373 Spend,Neighbourhoods,UNIVERSITY OF SHEFFIELD,,,,7600003787,ERDF Claim - 19 - P1-YH,S60 5TZ,"6,422.67"
Communities & Local Government,DCLG,03/12/2012,Work In Progress Pre-Cert 40373 Spend,Neighbourhoods,UNIVERSITY OF SHEFFIELD,,,,7600003788,ERDF Claim - 19 - P1-SY,S60 5TZ,"7,495.35"
Communities & Local Government,DCLG,03/12/2012,Work In Progress Pre-Cert 40373 Spend,Neighbourhoods,UNIVERSITY OF SHEFFIELD,,,,7600003789,ERDF Claim - 20 - P1-SY,S60 5TZ,"9,902.63"
Communities & Local Government,DCLG,03/12/2012,Work In Progress Pre-Cert 40373 Spend,Neighbourhoods,WORKING LINKS,,,,7600003773,ERDF Claim - 11 - P3,WC2E 9JL,"40,800.41"
Communities & Local Government,DCLG,03/12/2012,Work In Progress Pre-Cert 40373 Spend,Neighbourhoods,YTKO LIMITED,,,,7600003777,ERDF Claim - 31 - P3,CB4 0WS,"28,306.14"
Communities & Local Government,DCLG,03/12/2012,Work In Progress Pre-Cert 40467 Spend,Neighbourhoods,KINGSTON UPON HULL CITY COUNCIL,,,,7600003785,ERDF Claim - 28 - P3-YH,HU1 3ER,"521,692.62"
Communities & Local Government,DCLG,03/12/2012,Work In Progress Pre-Cert 40467 Spend,Neighbourhoods,NEWCASTLE UNIVERSITY,,,,7600003774,ERDF Claim - 11 - P1,NE1 7RU,"46,912.56"
Communities & Local Government,DCLG,03/12/2012,Work In Progress Pre-Cert 40467 Spend,Neighbourhoods,UK HISTORIC BUILDG PRESERVATION TRU,Yes,Small,,7600003772,ERDF Claim - 14 - P2,SW1W 0QP,"44,036.28",
Communities & Local Government,DCLG,03/12/2012,Work In Progress Pre-Cert 40467 Spend,Neighbourhoods,UNIVERSITY OF SHEFFIELD,,,,7600003781,ERDF Claim - 14 - P1-SY,S60 5TZ,"571,175.83",
Communities & Local Government,DCLG,03/12/2012,Work In Progress Pre-Cert 40467 Spend,Neighbourhoods,WARMSALE LTD,,,,7600003793,ERDF Claim - 31 - P2-YH,HU14 3JP,"124,750.61",
Communities & Local Government,DCLG,04/12/2012,Advertising,Finance & Corporate Services,M4C-DIVISION OF GROUPM UK LTD,,Large,,5106186652,Fire Kills - BME Press,WC1X 8RX,"8,435.98",
Communities & Local Government,DCLG,04/12/2012,Advertising,Finance & Corporate Services,M4C-DIVISION OF GROUPM UK LTD,,Large,,5106186652,Fire Kills - Media Industry Levy,WC1X 8RX,7.03,
Communities & Local Government,DCLG,04/12/2012,Agency Staff,Finance & Corporate Services,MANPOWER UK LTD,,Large,,5106186683,Temp information specialist,UB8 1AB,837.65,
Communities & Local Government,DCLG,04/12/2012,Agency Staff,Finance & Corporate Services,MICHAEL PAGE INTERNATIONAL,,Large,,5106186673,Interim contractor,SL1 3SA,"1,929.48",
Communities & Local Government,DCLG,04/12/2012,Agency Staff,Finance & Corporate Services,PREMIERE EMPLOYMENT GROUP LTD,,Large,,5106186668,Recuiting temporary PA,M3 2JA,614.52,
Communities & Local Government,DCLG,04/12/2012,Building Renovations,Finance & Corporate Services,E C HARRIS LLP,,Large,,5106186657,"Pilot Proj reloc of CPS,CAS,VOA - com 64",N1 9AB,"23,850.00",
Communities & Local Government,DCLG,04/12/2012,Building Renovations,Finance & Corporate Services,HEAD PROJECTS BUILDING CONTROL LTD,,Small,,5106186644,TQH Alterations to 5th Floor Offices,EC4A 3EB,"1,290.00",
Communities & Local Government,DCLG,04/12/2012,Current Grants to Non Profit Bodies,Localism,CO-OPERATIVES UK,,Small,,2100224692,Grant Claim for Oct to Dec 2012 - Community Shares,M60 0AS,"55,000.00",Yes
Communities & Local Government,DCLG,04/12/2012,Electricity,Finance & Corporate Services,NPOWER YORKSHIRE LTD,,Large,,5106186654,WM RCC Metering,LS14 3HS,378,
Communities & Local Government,DCLG,04/12/2012,Electricity,Localism,EDF ENERGY,,,,5106186651,Electircity account 671016756823,PL3 5XQ,262.34,
Communities & Local Government,DCLG,04/12/2012,IT - Service Contracts,Finance & Corporate Services,STERIA LTD,,Large,,5106186475,NR00391 Steria scoping co-location RPTS,M14 0WN,"6,235.05",
Communities & Local Government,DCLG,04/12/2012,National Non Domestic Rates (NNDR) Payments,Localism,AVON & SOMERSET POLICE AUTHORITY,,,,5000215318,Grant Payable by Exchequer,TA1 4DY,"2,913,957.00",Yes
Communities & Local Government,DCLG,04/12/2012,National Non Domestic Rates (NNDR) Payments,Localism,AVON FIRE AUTHORITY,,,,5000215323,Grant Payable by Exchequer,BS1 6EU,"1,069,474.00",Yes
Communities & Local Government,DCLG,04/12/2012,National Non Domestic Rates (NNDR) Payments,Localism,BARKING & DAGENHAM LB,,Public Bodies,,5000215337,Grant Payable by Exchequer,RM10 7BY,"4,676,806.00",Yes
Communities & Local Government,DCLG,04/12/2012,National Non Domestic Rates (NNDR) Payments,Localism,BARNSLEY MBC,,Public Bodies,,5000215347,Grant Payable by Exchequer,S70 2AQ,"4,810,612.00",Yes
Communities & Local Government,DCLG,04/12/2012,National Non Domestic Rates (NNDR) Payments,Localism,BEDFORDSHIRE POLICE AUTH,,,,5000215380,Grant Payable by Exchequer,MK43 9AX,"1,313,595.00",Yes
Communities & Local Government,DCLG,04/12/2012,National Non Domestic Rates (NNDR) Payments,Localism,BEDS & LUTON FIRE & RESCUE SERVICE,,,,5000215375,Grant Payable by Exchequer,MK42 7NR,"532,077.00",Yes
Communities & Local Government,DCLG,04/12/2012,National Non Domestic Rates (NNDR) Payments,Localism,BIRMINGHAM CITY CNCL,,,,5000215395,Grant Payable by Exchequer,B3 3AB,"30,125,707.00",Yes
Communities & Local Government,DCLG,04/12/2012,National Non Domestic Rates (NNDR) Payments,Localism,BLACKBURN WITH DARWEN BC,,,,5000215405,Grant Payable by Exchequer,BB1 7DY,"3,602,773.00",Yes
Communities & Local Government,DCLG,04/12/2012,National Non Domestic Rates (NNDR) Payments,Localism,BLACKPOOL BC,,,,5000215410,Grant Payable by Exchequer,FY1 1NA,"3,843,922.00",Yes
Communities & Local Government,DCLG,04/12/2012,National Non Domestic Rates (NNDR) Payments,Localism,BOLTON MBC,,,,5000215420,Grant Payable by Exchequer,BL1 1RU,"5,580,216.00",Yes
Communities & Local Government,DCLG,04/12/2012,National Non Domestic Rates (NNDR) Payments,Localism,BRADFORD MBC,,,,5000215441,Grant Payable by Exchequer,BD1 1HX,"11,945,917.00",Yes
Communities & Local Government,DCLG,04/12/2012,National Non Domestic Rates (NNDR) Payments,Localism,BRENT LB,,,,5000215456,Grant Payable by Exchequer,HA9 9EZ,"7,242,066.00",Yes
Communities & Local Government,DCLG,04/12/2012,National Non Domestic Rates (NNDR) Payments,Localism,BRIGHTON & HOVE CITY COUNCIL,,,,5000215466,Grant Payable by Exchequer,BN3 2SR,"4,863,382.00",Yes
Communities & Local Government,DCLG,04/12/2012,National Non Domestic Rates (NNDR) Payments,Localism,BUCKINGHAMSHIRE CC,,,,5000215506,Grant Payable by Exchequer,HP20 1UD,"2,993,863.00",Yes
Communities & Local Government,DCLG,04/12/2012,National Non Domestic Rates (NNDR) Payments,Localism,BUCKS & MILTON KEYNES FIRE AUTH,,,,5000215501,Grant Payable by Exchequer,HP20 1BD,"507,761.00",Yes
Communities & Local Government,DCLG,04/12/2012,National Non Domestic Rates (NNDR) Payments,Localism,BURY MBC,,,,5000215533,Grant Payable by Exchequer,BL9 0SP,"2,945,693.00",Yes
Communities & Local Government,DCLG,04/12/2012,National Non Domestic Rates (NNDR) Payments,Localism,CALDERDALE MBC,,,,5000215534,Grant Payable by Exchequer,HX1 1YP,"3,590,418.00",Yes
Communities & Local Government,DCLG,04/12/2012,National Non Domestic Rates (NNDR) Payments,Localism,CAMBRIDGESHIRE COUNTY CNCL,,,,5000215538,Grant Payable by Exchequer,CB3 0AP,"5,275,466.00",Yes
Communities & Local Government,DCLG,04/12/2012,National Non Domestic Rates (NNDR) Payments,Localism,CAMBRIDGESHIRE POLICE AUT,,,,5000215537,Grant Payable by Exchequer,P18 8NP,"1,351,530.00",Yes
Communities & Local Government,DCLG,04/12/2012,National Non Domestic Rates (NNDR) Payments,Localism,CAMBS & PETERBOROUGH FIRE AUTHORITY,,,,5000215536,Grant Payable by Exchequer,PE29 2NA,"607,019.00",Yes
Communities & Local Government,DCLG,04/12/2012,National Non Domestic Rates (NNDR) Payments,Localism,CHESHIRE FIRE AUTHORITY,,,,5000215548,Grant Payable by Exchequer,CW7 2FQ,"916,270.00",Yes
Communities & Local Government,DCLG,04/12/2012,National Non Domestic Rates (NNDR) Payments,Localism,CHESHIRE POLICE AUTHORITY,,,,5000215549,Grant Payable by Exchequer,CW7 9FX,"2,403,852.00",Yes
Communities & Local Government,DCLG,04/12/2012,National Non Domestic Rates (NNDR) Payments,Localism,CITY OF WAKEFIELD MDC,,,,5000215439,Grant Payable by Exchequer,WF1 2QW,"6,103,459.00",Yes
Communities & Local Government,DCLG,04/12/2012,National Non Domestic Rates (NNDR) Payments,Localism,CLEVELAND FIRE AUTHORITY,,,,5000215557,Grant Payable by Exchequer,TS25 5TB,"924,441.00",Yes
Communities & Local Government,DCLG,04/12/2012,National Non Domestic Rates (NNDR) Payments,Localism,CLEVELAND POLICE AUTHORITY,,,,5000215558,Grant Payable by Exchequer,TS1 2JX,"2,069,159.00",Yes
Communities & Local Government,DCLG,04/12/2012,National Non Domestic Rates (NNDR) Payments,Localism,CO DURHAM & DARLINGTON FIRE AND RES,,,,5000215379,Grant Payable by Exchequer,DH1 5UE,"618,272.00",Yes
Communities & Local Government,DCLG,04/12/2012,National Non Domestic Rates (NNDR) Payments,Localism,CORNWALL COUNCIL,,,,5000215666,Grant Payable by Exchequer,TR1 3AY,"9,621,134.00",Yes
Communities & Local Government,DCLG,04/12/2012,National Non Domestic Rates (NNDR) Payments,Localism,COVENTRY CITY CNCL,,,,5000215563,Grant Payable by Exchequer,CV1 2QL,"6,946,353.00",Yes
Communities & Local Government,DCLG,04/12/2012,National Non Domestic Rates (NNDR) Payments,Localism,CROYDON LB,,,,5000215566,Grant Payable by Exchequer,CR9 3JS,"5,405,523.00",Yes
Communities & Local Government,DCLG,04/12/2012,National Non Domestic Rates (NNDR) Payments,Localism,CUMBRIA COUNTY CNCL,,,,5000215567,Grant Payable by Exchequer,CA3 8NA,"7,134,370.00",Yes
Communities & Local Government,DCLG,04/12/2012,National Non Domestic Rates (NNDR) Payments,Localism,CUMBRIA POLICE AUTHORITY,,,,5000215568,Grant Payable by Exchequer,CA10 2AU,"1,624,251.00",Yes
Communities & Local Government,DCLG,04/12/2012,National Non Domestic Rates (NNDR) Payments,Localism,DARLINGTON BC,,,,5000215302,Grant Payable by Exchequer,TS19 1JA,"1,820,518.00",Yes
Communities & Local Government,DCLG,04/12/2012,National Non Domestic Rates (NNDR) Payments,Localism,DERBY CITY CNCL,,,,5000215316,Grant Payable by Exchequer,DE1 2FS,"4,921,271.00",Yes
Communities & Local Government,DCLG,04/12/2012,National Non Domestic Rates (NNDR) Payments,Localism,DERBYSHIRE COUNTYCOUNCIL,,,,5000215329,Grant Payable by Exchequer,DE4 3AH,"9,161,877.00",Yes
Communities & Local Government,DCLG,04/12/2012,National Non Domestic Rates (NNDR) Payments,Localism,DERBYSHIRE FIRE AUTHORITY,,,,5000215321,Grant Payable by Exchequer,DE55 1RH,"860,486.00",Yes
Communities & Local Government,DCLG,04/12/2012,National Non Domestic Rates (NNDR) Payments,Localism,DERBYSHIRE POLICE AUTHORITY,,,,5000215325,Grant Payable by Exchequer,DE5 3RS,"2,075,225.00",Yes
Communities & Local Government,DCLG,04/12/2012,National Non Domestic Rates (NNDR) Payments,Localism,DEVON & CORNWALL POLICE A,,,,5000215339,Grant Payable by Exchequer,EX2 5YT,"3,277,669.00",Yes
Communities & Local Government,DCLG,04/12/2012,National Non Domestic Rates (NNDR) Payments,Localism,DEVON & SOMERSET FIRE & RESCUE SERV,,,,5000215348,Grant Payable by Exchequer,EX3 0NW,"1,518,303.00",Yes
Communities & Local Government,DCLG,04/12/2012,National Non Domestic Rates (NNDR) Payments,Localism,DEVON COUNTY CNCL,,,,5000215343,Grant Payable by Exchequer,EX2 4QJ,"8,358,698.00",Yes
Communities & Local Government,DCLG,04/12/2012,National Non Domestic Rates (NNDR) Payments,Localism,DONCASTER MBC,,,,5000215352,Grant Payable by Exchequer,DN1 3QA,"6,327,296.00",Yes
Communities & Local Government,DCLG,04/12/2012,National Non Domestic Rates (NNDR) Payments,Localism,DORSET COUNTY CNCL,,,,5000215355,Grant Payable by Exchequer,DT1 1XJ,"3,063,676.00",Yes
Communities & Local Government,DCLG,04/12/2012,National Non Domestic Rates (NNDR) Payments,Localism,DORSET FIRE AUTHORITY,,,,5000215359,Grant Payable by Exchequer,DT1 1FB,"537,656.00",Yes
Communities & Local Government,DCLG,04/12/2012,National Non Domestic Rates (NNDR) Payments,Localism,DORSET POLICE AUTHORITY,,,,5000215364,Grant Payable by Exchequer,DT2 8DZ,"994,026.00",Yes
Communities & Local Government,DCLG,04/12/2012,National Non Domestic Rates (NNDR) Payments,Localism,DUDLEY MBC,,,,5000215374,Grant Payable by Exchequer,DY1 1HF,"5,672,332.00",Yes
Communities & Local Government,DCLG,04/12/2012,National Non Domestic Rates (NNDR) Payments,Localism,DURHAM COUNTY COUNCIL,,,,5000215670,Grant Payable by Exchequer,DH1 5UE,"10,402,823.00",Yes
Communities & Local Government,DCLG,04/12/2012,National Non Domestic Rates (NNDR) Payments,Localism,DURHAM POLICE AUTHORITY,,,,5000215382,Grant Payable by Exchequer,DH1 5TT,"1,977,776.00",Yes
Communities & Local Government,DCLG,04/12/2012,National Non Domestic Rates (NNDR) Payments,Localism,EAST RIDING OF YORKS,,,,5000215429,Grant Payable by Exchequer,HU17 9AB,"4,535,587.00",Yes
Communities & Local Government,DCLG,04/12/2012,National Non Domestic Rates (NNDR) Payments,Localism,EAST SUSSEX COUNTY CNCL,,,,5000215438,Grant Payable by Exchequer,BN7 1SF,"5,332,634.00",Yes
Communities & Local Government,DCLG,04/12/2012,National Non Domestic Rates (NNDR) Payments,Localism,EAST SUSSEX FIRE & RESCUE SERVICE,,,,5000215442,Grant Payable by Exchequer,BN21 1EU,"675,741.00",Yes
Communities & Local Government,DCLG,04/12/2012,National Non Domestic Rates (NNDR) Payments,Localism,ENFIELD LB,,,,5000215467,Grant Payable by Exchequer,EN1 3XF,"5,839,705.00",Yes
Communities & Local Government,DCLG,04/12/2012,National Non Domestic Rates (NNDR) Payments,Localism,ESSEX COUNTY CNCL,,,,5000215489,Grant Payable by Exchequer,CM1 1JZ,"12,804,761.00",Yes
Communities & Local Government,DCLG,04/12/2012,National Non Domestic Rates (NNDR) Payments,Localism,ESSEX FIRE AUTHORITY,,,,5000215492,Grant Payable by Exchequer,CM8 3HB,"1,592,477.00",Yes
Communities & Local Government,DCLG,04/12/2012,National Non Domestic Rates (NNDR) Payments,Localism,ESSEX POLICE AUTHORITY,,,,5000215497,Grant Payable by Exchequer,CM2 6DA,"2,964,211.00",Yes
Communities & Local Government,DCLG,04/12/2012,National Non Domestic Rates (NNDR) Payments,Localism,GATESHEAD MBC,,,,5000215523,Grant Payable by Exchequer,NE8 1HH,"4,638,777.00",Yes
Communities & Local Government,DCLG,04/12/2012,National Non Domestic Rates (NNDR) Payments,Localism,GLOUCESTERSHIRE COUNTY CNCL,,,,5000215530,Grant Payable by Exchequer,GL1 2TG,"6,113,240.00",Yes
Communities & Local Government,DCLG,04/12/2012,National Non Domestic Rates (NNDR) Payments,Localism,GLOUCESTERSHIRE POLICE AUTHORITY,,,,5000215590,Grant Payable by Exchequer,GL2 2AN,"1,034,198.00",Yes
Communities & Local Government,DCLG,04/12/2012,National Non Domestic Rates (NNDR) Payments,Localism,GREATER LONDON AUTHORITY,,,,5000215526,Grant Payable by Exchequer,SE10 1AJ,"39,818,980.00",Yes
Communities & Local Government,DCLG,04/12/2012,National Non Domestic Rates (NNDR) Payments,Localism,GREATER LONDON AUTHORITY-FIRE,,,,5000215650,Grant Payable by Exchequer,SE1 2AA,"12,072,519.00",Yes
Communities & Local Government,DCLG,04/12/2012,National Non Domestic Rates (NNDR) Payments,Localism,GREATER MANCHESTER FIRE,,,,5000215490,Grant Payable by Exchequer,M27 2US,"3,126,072.00",Yes
Communities & Local Government,DCLG,04/12/2012,National Non Domestic Rates (NNDR) Payments,Localism,GREATER MANCHESTER POL AUTH,,,,5000215494,Grant Payable by Exchequer,M16 0RE,"9,774,320.00",Yes
Communities & Local Government,DCLG,04/12/2012,National Non Domestic Rates (NNDR) Payments,Localism,GREENWICH LB,,,,5000215604,Grant Payable by Exchequer,SE18 6RA,"7,220,142.00",Yes
Communities & Local Government,DCLG,04/12/2012,National Non Domestic Rates (NNDR) Payments,Localism,HALTON BC,,,,5000215614,Grant Payable by Exchequer,WA8 7QF,"2,928,007.00",Yes
Communities & Local Government,DCLG,04/12/2012,National Non Domestic Rates (NNDR) Payments,Localism,HAMPSHIRE COUNTY COUNCIL,,,,5000215623,Grant Payable by Exchequer,SO23 8UB,"8,259,415.00",Yes
Communities & Local Government,DCLG,04/12/2012,National Non Domestic Rates (NNDR) Payments,Localism,HAMPSHIRE FIRE & RESCUE AUTHORITY,,,,5000215627,Grant Payable by Exchequer,SO23 8UB,"1,447,396.00",Yes
Communities & Local Government,DCLG,04/12/2012,National Non Domestic Rates (NNDR) Payments,Localism,HAMPSHIRE POLICE AUTHORITY,,,,5000215631,Grant Payable by Exchequer,SO23 8UB,"3,374,229.00",Yes
Communities & Local Government,DCLG,04/12/2012,National Non Domestic Rates (NNDR) Payments,Localism,HARINGEY LB,,,,5000215640,Grant Payable by Exchequer,N22 7TR,"6,699,837.00",Yes
Communities & Local Government,DCLG,04/12/2012,National Non Domestic Rates (NNDR) Payments,Localism,HARROW LB,,,,5000215653,Grant Payable by Exchequer,HA1 2UZ,"3,131,092.00",Yes
Communities & Local Government,DCLG,04/12/2012,National Non Domestic Rates (NNDR) Payments,Localism,HARTLEPOOL BOROUGH COUNCIL,,,,5000215661,Grant Payable by Exchequer,TS24 7BT,"2,258,925.00",Yes
Communities & Local Government,DCLG,04/12/2012,National Non Domestic Rates (NNDR) Payments,Localism,HEREFORD WORCESTER FIRE BRIGADE,,,,5000215675,Grant Payable by Exchequer,WR1 2HQ,"517,396.00",Yes
Communities & Local Government,DCLG,04/12/2012,National Non Domestic Rates (NNDR) Payments,Localism,HEREFORDSHIRE DISTRICT COUNCIL,,,,5000215679,Grant Payable by Exchequer,HR1 1SH,"2,638,080.00",Yes
Communities & Local Government,DCLG,04/12/2012,National Non Domestic Rates (NNDR) Payments,Localism,HERTFORDSHIRE COUNTY CNCL,,,,5000215682,Grant Payable by Exchequer,SG13 9BD,"8,865,865.00",Yes
Communities & Local Government,DCLG,04/12/2012,National Non Domestic Rates (NNDR) Payments,Localism,HERTFORDSHIRE POLICE AUTHORITY,,,,5000215688,Grant Payable by Exchequer,AL8 6XF,"2,026,752.00",Yes
Communities & Local Government,DCLG,04/12/2012,National Non Domestic Rates (NNDR) Payments,Localism,HULL CITY COUNCIL,,,,5000215360,Grant Payable by Exchequer,HU1 2AA,"6,847,187.00",Yes
Communities & Local Government,DCLG,04/12/2012,National Non Domestic Rates (NNDR) Payments,Localism,HUMBERSIDE FIRE & RESCUE SERVICE,,,,5000215703,Grant Payable by Exchequer,HU4 7BB,"1,216,743.00",Yes
Communities & Local Government,DCLG,04/12/2012,National Non Domestic Rates (NNDR) Payments,Localism,HUMBERSIDE POLICE,,,,5000215705,Grant Payable by Exchequer,HU5 5SF,"2,485,367.00",Yes
Communities & Local Government,DCLG,04/12/2012,National Non Domestic Rates (NNDR) Payments,Localism,ISLE OF WIGHT CNCL,,,,5000215310,Grant Payable by Exchequer,PO30 1UD,"2,804,977.00",Yes
Communities & Local Government,DCLG,04/12/2012,National Non Domestic Rates (NNDR) Payments,Localism,ISLES OF SCILLY COUNCIL,,,,5000215320,Grant Payable by Exchequer,TR21 0LW,"122,530.00",Yes
Communities & Local Government,DCLG,04/12/2012,National Non Domestic Rates (NNDR) Payments,Localism,KENT & MEDWAY TOWNS FIRE AUTHORITY,,,,5000215340,Grant Payable by Exchequer,ME15 6XB,"1,388,775.00",Yes
Communities & Local Government,DCLG,04/12/2012,National Non Domestic Rates (NNDR) Payments,Localism,KENT COUNTY CNCL,,,,5000215335,Grant Payable by Exchequer,ME14 1XQ,"14,139,616.00",Yes
Communities & Local Government,DCLG,04/12/2012,National Non Domestic Rates (NNDR) Payments,Localism,KENT POLICE AUTHORITY,,,,5000215344,Grant Payable by Exchequer,ME15 9BZ,"3,673,734.00",Yes
Communities & Local Government,DCLG,04/12/2012,National Non Domestic Rates (NNDR) Payments,Localism,KIRKLEES MBC,,,,5000215370,Grant Payable by Exchequer,HD1 2YU,"6,993,857.00",Yes
Communities & Local Government,DCLG,04/12/2012,National Non Domestic Rates (NNDR) Payments,Localism,KNOWSLEY MBC,,,,5000215378,Grant Payable by Exchequer,L36 9YZ,"5,147,057.00",Yes
Communities & Local Government,DCLG,04/12/2012,National Non Domestic Rates (NNDR) Payments,Localism,LANCASHIRE COMBINED FIRE AUTHORITY,,,,5000215392,Grant Payable by Exchequer,PR2 3LH,"1,494,961.00",Yes
Communities & Local Government,DCLG,04/12/2012,National Non Domestic Rates (NNDR) Payments,Localism,LANCASHIRE COUNTY CNCL,,,,5000215388,Grant Payable by Exchequer,PR1 8RD,"14,767,915.00",Yes
Communities & Local Government,DCLG,04/12/2012,National Non Domestic Rates (NNDR) Payments,Localism,LANCASHIRE POLICE AUTHORITY,,,,5000215396,Grant Payable by Exchequer,PR1 OLD,"4,158,212.00",Yes
Communities & Local Government,DCLG,04/12/2012,National Non Domestic Rates (NNDR) Payments,Localism,LEICESTER CITY CNCL,,,,5000215411,Grant Payable by Exchequer,LE1 6ZG,"8,374,021.00",Yes
Communities & Local Government,DCLG,04/12/2012,National Non Domestic Rates (NNDR) Payments,Localism,LEICESTERSHIRE COUNTY CNCL,,,,5000215425,Grant Payable by Exchequer,LE3 8RB,"4,865,546.00",Yes
Communities & Local Government,DCLG,04/12/2012,National Non Domestic Rates (NNDR) Payments,Localism,LEICESTERSHIRE POLICE AUTHORITY,,,,5000215421,Grant Payable by Exchequer,LE99 1A2,"2,160,785.00",Yes
Communities & Local Government,DCLG,04/12/2012,National Non Domestic Rates (NNDR) Payments,Localism,LEICS LEICESTERSHIRE RUTLAND CFA,,,,5000215416,Grant Payable by Exchequer,LE3 8HD,"879,094.00",Yes
Communities & Local Government,DCLG,04/12/2012,National Non Domestic Rates (NNDR) Payments,Localism,LEWISHAM LB,,,,5000215435,Grant Payable by Exchequer,SE6 4RU,"8,122,216.00",Yes
Communities & Local Government,DCLG,04/12/2012,National Non Domestic Rates (NNDR) Payments,Localism,LINCOLNSHIRE COUNTY CNCL,,,,5000215454,Grant Payable by Exchequer,LN1 1YT,"9,389,788.00",Yes
Communities & Local Government,DCLG,04/12/2012,National Non Domestic Rates (NNDR) Payments,Localism,LINCOLNSHIRE POLICE AUTH,,,,5000215450,Grant Payable by Exchequer,LN5 7PH,"1,127,365.00",Yes
Communities & Local Government,DCLG,04/12/2012,National Non Domestic Rates (NNDR) Payments,Localism,LIVERPOOL CITY COUNCIL,,,,5000215459,Grant Payable by Exchequer,L2 2DH,"14,809,593.00",Yes
Communities & Local Government,DCLG,04/12/2012,National Non Domestic Rates (NNDR) Payments,Localism,LONDON BOROUGH OF HACKNEY,,,,5000215609,Grant Payable by Exchequer,E8 4RU,"9,764,556.00",Yes
Communities & Local Government,DCLG,04/12/2012,National Non Domestic Rates (NNDR) Payments,Localism,LONDON BOROUGH OF LAMBETH,,,,5000215384,Grant Payable by Exchequer,SW2 1RL,"9,608,517.00",Yes
Communities & Local Government,DCLG,04/12/2012,National Non Domestic Rates (NNDR) Payments,Localism,LONDON BOROUGH OF NEWHAM,,Large,,5000215638,Grant Payable by Exchequer,E16 2QU,"9,530,789.00",Yes
Communities & Local Government,DCLG,04/12/2012,National Non Domestic Rates (NNDR) Payments,Localism,LONDON BOROUGH OF REDBRIDGE,,,,5000215350,Grant Payable by Exchequer,IG1 1NN,"4,480,196.00",Yes
Communities & Local Government,DCLG,04/12/2012,National Non Domestic Rates (NNDR) Payments,Localism,LUTON BC,,,,5000215464,Grant Payable by Exchequer,LU1 1DX,"4,015,535.00",Yes
Communities & Local Government,DCLG,04/12/2012,National Non Domestic Rates (NNDR) Payments,Localism,MANCHESTER CITY CNCL,,,,5000215485,Grant Payable by Exchequer,M60 2JR,"15,396,135.00",Yes
Communities & Local Government,DCLG,04/12/2012,National Non Domestic Rates (NNDR) Payments,Localism,MEDWAY COUNCIL,,,,5000215502,Grant Payable by Exchequer,ME4 4TR,"3,762,368.00",Yes
Communities & Local Government,DCLG,04/12/2012,National Non Domestic Rates (NNDR) Payments,Localism,MERSEYSIDE FIRE & RESCUE SERVICE,,,,5000215515,Grant Payable by Exchequer,L30 4YD,"1,918,018.00",Yes
Communities & Local Government,DCLG,04/12/2012,National Non Domestic Rates (NNDR) Payments,Localism,MERSEYSIDE POLICE AUTH,,,,5000215518,Grant Payable by Exchequer,L69 1JD,"5,947,101.00",Yes
Communities & Local Government,DCLG,04/12/2012,National Non Domestic Rates (NNDR) Payments,Localism,MIDDLESBROUGH BC,,,,5000215529,Grant Payable by Exchequer,TS1 9GA,"3,805,216.00",Yes
Communities & Local Government,DCLG,04/12/2012,National Non Domestic Rates (NNDR) Payments,Localism,NEWCASTLE UPON TYNE DC,,,,5000215630,Grant Payable by Exchequer,NE99 1RD,"7,489,985.00",Yes
Communities & Local Government,DCLG,04/12/2012,National Non Domestic Rates (NNDR) Payments,Localism,NORFOLK COUNTY COUNCIL,,,,5000215642,Grant Payable by Exchequer,NR1 2DW,"11,572,243.00",Yes
Communities & Local Government,DCLG,04/12/2012,National Non Domestic Rates (NNDR) Payments,Localism,NORFOLK POLICE & CRIME COMMISSIONER,,,,5000215646,Grant Payable by Exchequer,NR18 0WW,"1,511,936.00",Yes
Communities & Local Government,DCLG,04/12/2012,National Non Domestic Rates (NNDR) Payments,Localism,NORTH EAST LINCOLN COUNCIL,,Public Bodies,,5000215656,Grant Payable by Exchequer,DN35 8LN,"3,225,291.00",Yes
Communities & Local Government,DCLG,04/12/2012,National Non Domestic Rates (NNDR) Payments,Localism,NORTH TYNESIDE MBC,,,,5000215686,Grant Payable by Exchequer,NE30 1AE,"3,944,606.00",Yes
Communities & Local Government,DCLG,04/12/2012,National Non Domestic Rates (NNDR) Payments,Localism,NORTH YORKSHIRE CC,,,,5000215693,Grant Payable by Exchequer,DL7 8AL,"5,441,919.00",Yes
Communities & Local Government,DCLG,04/12/2012,National Non Domestic Rates (NNDR) Payments,Localism,NORTH YORKSHIRE FIRE & RESCUE AUTH,,,,5000215696,Grant Payable by Exchequer,DL6 1AB,"594,642.00",Yes
Communities & Local Government,DCLG,04/12/2012,National Non Domestic Rates (NNDR) Payments,Localism,NORTH YORKSHIRE POLICE AUTHORITY,,,,5000215699,Grant Payable by Exchequer,DL7 9HA,"1,459,720.00",Yes
Communities & Local Government,DCLG,04/12/2012,National Non Domestic Rates (NNDR) Payments,Localism,NORTHAMPTONSHIRE COUNTY COUNCIL,,,,5000215704,Grant Payable by Exchequer,NN4 7DB,"7,480,769.00",Yes
Communities & Local Government,DCLG,04/12/2012,National Non Domestic Rates (NNDR) Payments,Localism,NORTHAMPTONSHIRE POLICE AUTH,,,,5000215706,Grant Payable by Exchequer,NN1 5DQ,"1,308,685.00",Yes
Communities & Local Government,DCLG,04/12/2012,National Non Domestic Rates (NNDR) Payments,Localism,NORTHUMBERLAND,,,,5000215673,Grant Payable by Exchequer,NE61 2EF,"5,679,693.00",Yes
Communities & Local Government,DCLG,04/12/2012,National Non Domestic Rates (NNDR) Payments,Localism,NORTHUMBRIA POLICE AUTH,,,,5000215708,Grant Payable by Exchequer,NE1 8DL,"5,595,311.00",Yes
Communities & Local Government,DCLG,04/12/2012,National Non Domestic Rates (NNDR) Payments,Localism,NOTTINGHAM CITY COUNCIL,,,,5000215710,Grant Payable by Exchequer,M33 0DJ,"8,064,138.00",Yes
Communities & Local Government,DCLG,04/12/2012,National Non Domestic Rates (NNDR) Payments,Localism,NOTTINGHAMSHIRE COUNTY CNCL,,,,5000215711,Grant Payable by Exchequer,NG1 4BU,"8,823,154.00",Yes
Communities & Local Government,DCLG,04/12/2012,National Non Domestic Rates (NNDR) Payments,Localism,NOTTINGHAMSHIRE POLICE AU,,,,5000215713,Grant Payable by Exchequer,NG5 8PP,"2,557,190.00",Yes
Communities & Local Government,DCLG,04/12/2012,National Non Domestic Rates (NNDR) Payments,Localism,NOTTS & CITY NOTTINGHAM FIRE AUTH,,,,5000215712,Grant Payable by Exchequer,NG5 8PD,"1,045,818.00",Yes
Communities & Local Government,DCLG,04/12/2012,National Non Domestic Rates (NNDR) Payments,Localism,OLDHAM MBC,,,,5000215717,Grant Payable by Exchequer,OL1 1UH,"5,365,404.00",Yes
Communities & Local Government,DCLG,04/12/2012,National Non Domestic Rates (NNDR) Payments,Localism,OXFORDSHIRE CC,,,,5000215300,Grant Payable by Exchequer,OX4 2GQ,"5,373,146.00",Yes
Communities & Local Government,DCLG,04/12/2012,National Non Domestic Rates (NNDR) Payments,Localism,PLYMOUTH CITY CNCL,,,,5000215317,Grant Payable by Exchequer,PL1 2AA,"5,013,293.00",Yes
Communities & Local Government,DCLG,04/12/2012,National Non Domestic Rates (NNDR) Payments,Localism,PORTSMOUTH CITY COUNCIL,,,,5000215328,Grant Payable by Exchequer,PO1 2AR,"4,014,226.00",Yes
Communities & Local Government,DCLG,04/12/2012,National Non Domestic Rates (NNDR) Payments,Localism,REDCAR & CLEVELAND BOROUGH COUNCIL,,,,5000215356,Grant Payable by Exchequer,TS6 9AR,"2,976,989.00",Yes
Communities & Local Government,DCLG,04/12/2012,National Non Domestic Rates (NNDR) Payments,Localism,ROCHDALE MBC,,,,5000215386,Grant Payable by Exchequer,OL16 1LQ,"5,000,068.00",Yes
Communities & Local Government,DCLG,04/12/2012,National Non Domestic Rates (NNDR) Payments,Localism,ROTHERHAM MBC,,,,5000215407,Grant Payable by Exchequer,S65 1UF,"5,373,038.00",Yes
Communities & Local Government,DCLG,04/12/2012,National Non Domestic Rates (NNDR) Payments,Localism,ROYAL BERKSHIRE FIRE AUTHORITY,,,,5000215385,Grant Payable by Exchequer,RG30 4FS,"718,818.00",Yes
Communities & Local Government,DCLG,04/12/2012,National Non Domestic Rates (NNDR) Payments,Localism,SALFORD CITY CNCL,,,,5000215443,Grant Payable by Exchequer,M27 5AW,"5,937,363.00",Yes
Communities & Local Government,DCLG,04/12/2012,National Non Domestic Rates (NNDR) Payments,Localism,SANDWELL MBC,,,,5000215448,Grant Payable by Exchequer,B69 3BS,"8,205,906.00",Yes
Communities & Local Government,DCLG,04/12/2012,National Non Domestic Rates (NNDR) Payments,Localism,SEFTON MBC,,,,5000215463,Grant Payable by Exchequer,L20 3NQ,"5,500,220.00",Yes
Communities & Local Government,DCLG,04/12/2012,National Non Domestic Rates (NNDR) Payments,Localism,SHEFFIELD CITY CNCL,,,,5000215478,Grant Payable by Exchequer,S1 1UR,"12,382,234.00",Yes
Communities & Local Government,DCLG,04/12/2012,National Non Domestic Rates (NNDR) Payments,Localism,SHROPSHIRE & WREKIN FIRE AUTHORITY,,,,5000215488,Grant Payable by Exchequer,SY1 2HJ,"352,446.00",Yes
Communities & Local Government,DCLG,04/12/2012,National Non Domestic Rates (NNDR) Payments,Localism,SHROPSHIRE COUNCIL,,Large,,5000215677,Grant Payable by Exchequer,SY2 6ND,"4,210,369.00",Yes
Communities & Local Government,DCLG,04/12/2012,National Non Domestic Rates (NNDR) Payments,Localism,SOMERSET COUNTY CNCL,,,,5000215503,Grant Payable by Exchequer,TA1 4DY,"5,848,209.00",Yes
Communities & Local Government,DCLG,04/12/2012,National Non Domestic Rates (NNDR) Payments,Localism,SOUTH TYNESIDE COUNCIL,,,,5000215602,Grant Payable by Exchequer,NE33 2RL,"3,943,924.00",Yes
Communities & Local Government,DCLG,04/12/2012,National Non Domestic Rates (NNDR) Payments,Localism,SOUTH YORKSHIRE FIRE & CD,,,,5000215605,Grant Payable by Exchequer,S1 3FG,"1,524,778.00",Yes
Communities & Local Government,DCLG,04/12/2012,National Non Domestic Rates (NNDR) Payments,Localism,SOUTH YORKSHIRE P A,,,,5000215608,Grant Payable by Exchequer,S3 8LY,"4,196,037.00",Yes
Communities & Local Government,DCLG,04/12/2012,National Non Domestic Rates (NNDR) Payments,Localism,SOUTHEND ON SEA BC,,,,5000215616,Grant Payable by Exchequer,SS2 6EP,"2,816,969.00",Yes
Communities & Local Government,DCLG,04/12/2012,National Non Domestic Rates (NNDR) Payments,Localism,SOUTHWARK LB,,,,5000215620,Grant Payable by Exchequer,SE1P 5LX,"10,115,143.00",Yes
Communities & Local Government,DCLG,04/12/2012,National Non Domestic Rates (NNDR) Payments,Localism,ST HELENS MBC,,,,5000215636,Grant Payable by Exchequer,WA10 1HP,"3,942,458.00",Yes
Communities & Local Government,DCLG,04/12/2012,National Non Domestic Rates (NNDR) Payments,Localism,STAFFORDSHIRE  FIRE & RESCUE SERV,,,,5000215647,Grant Payable by Exchequer,ST15 0BS,"908,969.00",Yes
Communities & Local Government,DCLG,04/12/2012,National Non Domestic Rates (NNDR) Payments,Localism,STAFFORDSHIRE COUNTY CNCL,,,,5000215645,Grant Payable by Exchequer,ST16 2LH,"7,809,212.00",Yes
Communities & Local Government,DCLG,04/12/2012,National Non Domestic Rates (NNDR) Payments,Localism,STAFFORDSHIRE POLICE AUTHORITY,,,,5000215655,Grant Payable by Exchequer,ST16 2NF,"2,228,356.00",Yes
Communities & Local Government,DCLG,04/12/2012,National Non Domestic Rates (NNDR) Payments,Localism,STOKE ON TRENT CITY COUNCIL,,,,5000215674,Grant Payable by Exchequer,ST4 1RJ,"5,764,577.00",Yes
Communities & Local Government,DCLG,04/12/2012,National Non Domestic Rates (NNDR) Payments,Localism,SUFFOLK COUNTY CNCL,,,,5000215683,Grant Payable by Exchequer,IP4 2JP,"8,244,910.00",Yes
Communities & Local Government,DCLG,04/12/2012,National Non Domestic Rates (NNDR) Payments,Localism,SUFFOLK POLICE AUTHORITY,,,,5000215691,Grant Payable by Exchequer,IP5 3QS,"1,236,404.00",Yes
Communities & Local Government,DCLG,04/12/2012,National Non Domestic Rates (NNDR) Payments,Localism,SUNDERLAND DC,,,,5000215694,Grant Payable by Exchequer,SR2 7DN,"6,904,959.00",Yes
Communities & Local Government,DCLG,04/12/2012,National Non Domestic Rates (NNDR) Payments,Localism,SURREY COUNTY CNCL,,,,5000215697,Grant Payable by Exchequer,KT1 2EA,"6,924,961.00",Yes
Communities & Local Government,DCLG,04/12/2012,National Non Domestic Rates (NNDR) Payments,Localism,SURREY POLICE AUTHORITY,,,,5000215301,Grant Payable by Exchequer,KT1 2EA,"1,662,225.00",Yes
Communities & Local Government,DCLG,04/12/2012,National Non Domestic Rates (NNDR) Payments,Localism,SUSSEX POLICE AUTHORITY,,,,5000215305,Grant Payable by Exchequer,PO19 1RG,"2,989,222.00",Yes
Communities & Local Government,DCLG,04/12/2012,National Non Domestic Rates (NNDR) Payments,Localism,SUTTON LB,,,,5000215309,Grant Payable by Exchequer,SM1 1EA,"2,409,620.00",Yes
Communities & Local Government,DCLG,04/12/2012,National Non Domestic Rates (NNDR) Payments,Localism,TAMESIDE MBC,,,,5000215324,Grant Payable by Exchequer,OL6 6DL,"4,687,612.00",Yes
Communities & Local Government,DCLG,04/12/2012,National Non Domestic Rates (NNDR) Payments,Localism,TELFORD & WREKIN DC,,,,5000215351,Grant Payable by Exchequer,TF3 4LF,"3,105,446.00",Yes
Communities & Local Government,DCLG,04/12/2012,National Non Domestic Rates (NNDR) Payments,Localism,THAMES VALLEY POLICE AUTHORITY,,,,5000215373,Grant Payable by Exchequer,OX5 2NX,"4,070,298.00",Yes
Communities & Local Government,DCLG,04/12/2012,National Non Domestic Rates (NNDR) Payments,Localism,TORBAY BC,,,,5000215399,Grant Payable by Exchequer,TQ1 3DR,"2,770,598.00",Yes
Communities & Local Government,DCLG,04/12/2012,National Non Domestic Rates (NNDR) Payments,Localism,TYNE & WEAR FIRE AUTHORITY,,,,5000215424,Grant Payable by Exchequer,SR2 7DN,"1,476,818.00",Yes
Communities & Local Government,DCLG,04/12/2012,National Non Domestic Rates (NNDR) Payments,Localism,W YORKSHIRE FIRE & RESCUE AUTH,,,,5000215584,Grant Payable by Exchequer,BD11 2DY,"2,441,624.00",Yes
Communities & Local Government,DCLG,04/12/2012,National Non Domestic Rates (NNDR) Payments,Localism,WALSALL MBC,,,,5000215444,Grant Payable by Exchequer,WS1 1TW,"6,018,667.00",Yes
Communities & Local Government,DCLG,04/12/2012,National Non Domestic Rates (NNDR) Payments,Localism,WALTHAM FOREST LB,,Large,,5000215449,Grant Payable by Exchequer,E17 4JF,"5,509,402.00",Yes
Communities & Local Government,DCLG,04/12/2012,National Non Domestic Rates (NNDR) Payments,Localism,WANDSWORTH LB,,,,5000215455,Grant Payable by Exchequer,SW18 2PU,"6,616,204.00",Yes
Communities & Local Government,DCLG,04/12/2012,National Non Domestic Rates (NNDR) Payments,Localism,WARWICKSHIRE COUNTY CNCL,,,,5000215469,Grant Payable by Exchequer,CV34 4RH,"4,869,208.00",Yes
Communities & Local Government,DCLG,04/12/2012,National Non Domestic Rates (NNDR) Payments,Localism,WARWICKSHIRE POLICE AUTHORITY,,,,5000215472,Grant Payable by Exchequer,CV35 7QB,"921,623.00",Yes
Communities & Local Government,DCLG,04/12/2012,National Non Domestic Rates (NNDR) Payments,Localism,WEST MERCIA POLICE AUTH,,,,5000215575,Grant Payable by Exchequer,WR5 2NP,"2,382,199.00",Yes
Communities & Local Government,DCLG,04/12/2012,National Non Domestic Rates (NNDR) Payments,Localism,WEST MIDLANDS FIRE & CIVIL DEFENCE,,,,5000215576,Grant Payable by Exchequer,B4 7DE,"3,336,639.00",Yes
Communities & Local Government,DCLG,04/12/2012,National Non Domestic Rates (NNDR) Payments,Localism,WEST MIDLANDS POLICE AUTH,,,,5000215578,Grant Payable by Exchequer,B4 6NQ,"9,949,231.00",Yes
Communities & Local Government,DCLG,04/12/2012,National Non Domestic Rates (NNDR) Payments,Localism,WEST SUSSEX CC,,,,5000215583,Grant Payable by Exchequer,PO19 1RG,"5,509,493.00",Yes
Communities & Local Government,DCLG,04/12/2012,National Non Domestic Rates (NNDR) Payments,Localism,WEST YORKSHIRE POLICE AUTHORITY,,,,5000215585,Grant Payable by Exchequer,WF1 3QP,"6,682,916.00",Yes
Communities & Local Government,DCLG,04/12/2012,National Non Domestic Rates (NNDR) Payments,Localism,WIGAN MBC,,,,5000215592,Grant Payable by Exchequer,WN1 1YD,"5,938,837.00",Yes
Communities & Local Government,DCLG,04/12/2012,National Non Domestic Rates (NNDR) Payments,Localism,WILTSHIRE & SWINDON FIRE AUTHORITY,,,,5000215595,Grant Payable by Exchequer,SN10 5PP,"448,387.00",Yes
Communities & Local Government,DCLG,04/12/2012,National Non Domestic Rates (NNDR) Payments,Localism,WILTSHIRE POLICE,,,,5000215598,Grant Payable by Exchequer,BA14 8JJ,"1,155,128.00",Yes
Communities & Local Government,DCLG,04/12/2012,National Non Domestic Rates (NNDR) Payments,Localism,WIRRAL MBC,,,,5000215606,Grant Payable by Exchequer,L41 6BU,"6,897,391.00",Yes
Communities & Local Government,DCLG,04/12/2012,National Non Domestic Rates (NNDR) Payments,Localism,WOLVERHAMPTON MBC,,,,5000215617,Grant Payable by Exchequer,WV1 1RL,"6,374,778.00",Yes
Communities & Local Government,DCLG,04/12/2012,National Non Domestic Rates (NNDR) Payments,Localism,WORCESTERSHIRE COUNTY COUNCIL,,,,5000215624,Grant Payable by Exchequer,WR5 2NP,"4,897,653.00",Yes
Communities & Local Government,DCLG,04/12/2012,NNDR Billing Authorities Receipts,Localism,BARKING & DAGENHAM LB,,Public Bodies,,5000215337,Grant Payable by Exchequer,RM10 7BY,"-2,600,370.00",Yes
Communities & Local Government,DCLG,04/12/2012,NNDR Billing Authorities Receipts,Localism,BARNSLEY MBC,,Public Bodies,,5000215347,Grant Payable by Exchequer,S70 2AQ,"-2,368,066.00",Yes
Communities & Local Government,DCLG,04/12/2012,NNDR Billing Authorities Receipts,Localism,BIRMINGHAM CITY CNCL,,,,5000215395,Grant Payable by Exchequer,B3 3AB,"-18,221,684.00",Yes
Communities & Local Government,DCLG,04/12/2012,NNDR Billing Authorities Receipts,Localism,BLACKBURN WITH DARWEN BC,,,,5000215405,Grant Payable by Exchequer,BB1 7DY,"-2,105,421.00",Yes
Communities & Local Government,DCLG,04/12/2012,NNDR Billing Authorities Receipts,Localism,BLACKPOOL BC,,,,5000215410,Grant Payable by Exchequer,FY1 1NA,"-2,241,867.00",Yes
Communities & Local Government,DCLG,04/12/2012,NNDR Billing Authorities Receipts,Localism,BOLTON MBC,,,,5000215420,Grant Payable by Exchequer,BL1 1RU,"-4,172,825.00",Yes
Communities & Local Government,DCLG,04/12/2012,NNDR Billing Authorities Receipts,Localism,BRADFORD MBC,,,,5000215441,Grant Payable by Exchequer,BD1 1HX,"-6,351,576.00",Yes
Communities & Local Government,DCLG,04/12/2012,NNDR Billing Authorities Receipts,Localism,BRENT LB,,,,5000215456,Grant Payable by Exchequer,HA9 9EZ,"-4,743,148.00",Yes
Communities & Local Government,DCLG,04/12/2012,NNDR Billing Authorities Receipts,Localism,BRIGHTON & HOVE CITY COUNCIL,,,,5000215466,Grant Payable by Exchequer,BN3 2SR,"-4,667,307.00",Yes
Communities & Local Government,DCLG,04/12/2012,NNDR Billing Authorities Receipts,Localism,BURY MBC,,,,5000215533,Grant Payable by Exchequer,BL9 0SP,"-2,437,420.00",Yes
Communities & Local Government,DCLG,04/12/2012,NNDR Billing Authorities Receipts,Localism,CALDERDALE MBC,,,,5000215534,Grant Payable by Exchequer,HX1 1YP,"-2,631,238.00",Yes
Communities & Local Government,DCLG,04/12/2012,NNDR Billing Authorities Receipts,Localism,CITY OF WAKEFIELD MDC,,,,5000215439,Grant Payable by Exchequer,WF1 2QW,"-5,596,157.00",Yes
Communities & Local Government,DCLG,04/12/2012,NNDR Billing Authorities Receipts,Localism,CORNWALL COUNCIL,,,,5000215666,Grant Payable by Exchequer,TR1 3AY,"-6,831,616.00",Yes
Communities & Local Government,DCLG,04/12/2012,NNDR Billing Authorities Receipts,Localism,COVENTRY CITY CNCL,,,,5000215563,Grant Payable by Exchequer,CV1 2QL,"-5,248,716.00",Yes
Communities & Local Government,DCLG,04/12/2012,NNDR Billing Authorities Receipts,Localism,CROYDON LB,,,,5000215566,Grant Payable by Exchequer,CR9 3JS,"-5,141,972.00",Yes
Communities & Local Government,DCLG,04/12/2012,NNDR Billing Authorities Receipts,Localism,DARLINGTON BC,,,,5000215302,Grant Payable by Exchequer,TS19 1JA,"-1,540,574.00",Yes
Communities & Local Government,DCLG,04/12/2012,NNDR Billing Authorities Receipts,Localism,DERBY CITY CNCL,,,,5000215316,Grant Payable by Exchequer,DE1 2FS,"-3,851,946.00",Yes
Communities & Local Government,DCLG,04/12/2012,NNDR Billing Authorities Receipts,Localism,DONCASTER MBC,,,,5000215352,Grant Payable by Exchequer,DN1 3QA,"-3,979,092.00",Yes
Communities & Local Government,DCLG,04/12/2012,NNDR Billing Authorities Receipts,Localism,DUDLEY MBC,,,,5000215374,Grant Payable by Exchequer,DY1 1HF,"-4,318,932.00",Yes
Communities & Local Government,DCLG,04/12/2012,NNDR Billing Authorities Receipts,Localism,DURHAM COUNTY COUNCIL,,,,5000215670,Grant Payable by Exchequer,DH1 5UE,"-5,144,179.00",Yes
Communities & Local Government,DCLG,04/12/2012,NNDR Billing Authorities Receipts,Localism,EAST RIDING OF YORKS,,,,5000215429,Grant Payable by Exchequer,HU17 9AB,"-3,910,739.00",Yes
Communities & Local Government,DCLG,04/12/2012,NNDR Billing Authorities Receipts,Localism,ENFIELD LB,,,,5000215467,Grant Payable by Exchequer,EN1 3XF,"-4,719,317.00",Yes
Communities & Local Government,DCLG,04/12/2012,NNDR Billing Authorities Receipts,Localism,GATESHEAD MBC,,,,5000215523,Grant Payable by Exchequer,NE8 1HH,"-3,825,332.00",Yes
Communities & Local Government,DCLG,04/12/2012,NNDR Billing Authorities Receipts,Localism,GREENWICH LB,,,,5000215604,Grant Payable by Exchequer,SE18 6RA,"-2,764,640.00",Yes
Communities & Local Government,DCLG,04/12/2012,NNDR Billing Authorities Receipts,Localism,HALTON BC,,,,5000215614,Grant Payable by Exchequer,WA8 7QF,"-2,326,123.00",Yes
Communities & Local Government,DCLG,04/12/2012,NNDR Billing Authorities Receipts,Localism,HARINGEY LB,,,,5000215640,Grant Payable by Exchequer,N22 7TR,"-2,909,112.00",Yes
Communities & Local Government,DCLG,04/12/2012,NNDR Billing Authorities Receipts,Localism,HARROW LB,,,,5000215653,Grant Payable by Exchequer,HA1 2UZ,"-2,170,183.00",Yes
Communities & Local Government,DCLG,04/12/2012,NNDR Billing Authorities Receipts,Localism,HARTLEPOOL BOROUGH COUNCIL,,,,5000215661,Grant Payable by Exchequer,TS24 7BT,"-1,300,539.00",Yes
Communities & Local Government,DCLG,04/12/2012,NNDR Billing Authorities Receipts,Localism,HEREFORDSHIRE DISTRICT COUNCIL,,,,5000215679,Grant Payable by Exchequer,HR1 1SH,"-2,073,689.00",Yes
Communities & Local Government,DCLG,04/12/2012,NNDR Billing Authorities Receipts,Localism,HULL CITY COUNCIL,,,,5000215360,Grant Payable by Exchequer,HU1 2AA,"-4,297,718.00",Yes
Communities & Local Government,DCLG,04/12/2012,NNDR Billing Authorities Receipts,Localism,ISLE OF WIGHT CNCL,,,,5000215310,Grant Payable by Exchequer,PO30 1UD,"-1,523,911.00",Yes
Communities & Local Government,DCLG,04/12/2012,NNDR Billing Authorities Receipts,Localism,ISLES OF SCILLY COUNCIL,,,,5000215320,Grant Payable by Exchequer,TR21 0LW,"-69,400.00",Yes
Communities & Local Government,DCLG,04/12/2012,NNDR Billing Authorities Receipts,Localism,KIRKLEES MBC,,,,5000215370,Grant Payable by Exchequer,HD1 2YU,"-4,855,366.00",Yes
Communities & Local Government,DCLG,04/12/2012,NNDR Billing Authorities Receipts,Localism,KNOWSLEY MBC,,,,5000215378,Grant Payable by Exchequer,L36 9YZ,"-1,853,840.00",Yes
Communities & Local Government,DCLG,04/12/2012,NNDR Billing Authorities Receipts,Localism,LEICESTER CITY CNCL,,,,5000215411,Grant Payable by Exchequer,LE1 6ZG,"-4,636,915.00",Yes
Communities & Local Government,DCLG,04/12/2012,NNDR Billing Authorities Receipts,Localism,LEWISHAM LB,,,,5000215435,Grant Payable by Exchequer,SE6 4RU,"-2,200,150.00",Yes
Communities & Local Government,DCLG,04/12/2012,NNDR Billing Authorities Receipts,Localism,LIVERPOOL CITY COUNCIL,,,,5000215459,Grant Payable by Exchequer,L2 2DH,"-8,796,965.00",Yes
Communities & Local Government,DCLG,04/12/2012,NNDR Billing Authorities Receipts,Localism,LONDON BOROUGH OF HACKNEY,,,,5000215609,Grant Payable by Exchequer,E8 4RU,"-3,883,504.00",Yes
Communities & Local Government,DCLG,04/12/2012,NNDR Billing Authorities Receipts,Localism,LONDON BOROUGH OF LAMBETH,,,,5000215384,Grant Payable by Exchequer,SW2 1RL,"-5,253,317.00",Yes
Communities & Local Government,DCLG,04/12/2012,NNDR Billing Authorities Receipts,Localism,LONDON BOROUGH OF NEWHAM,,Large,,5000215638,Grant Payable by Exchequer,E16 2QU,"-5,317,851.00",Yes
Communities & Local Government,DCLG,04/12/2012,NNDR Billing Authorities Receipts,Localism,LONDON BOROUGH OF REDBRIDGE,,,,5000215350,Grant Payable by Exchequer,IG1 1NN,"-2,413,968.00",Yes
Communities & Local Government,DCLG,04/12/2012,NNDR Billing Authorities Receipts,Localism,LUTON BC,,,,5000215464,Grant Payable by Exchequer,LU1 1DX,"-3,121,336.00",Yes
Communities & Local Government,DCLG,04/12/2012,NNDR Billing Authorities Receipts,Localism,MANCHESTER CITY CNCL,,,,5000215485,Grant Payable by Exchequer,M60 2JR,"-14,492,040.00",Yes
Communities & Local Government,DCLG,04/12/2012,NNDR Billing Authorities Receipts,Localism,MEDWAY COUNCIL,,,,5000215502,Grant Payable by Exchequer,ME4 4TR,"-3,706,540.00",Yes
Communities & Local Government,DCLG,04/12/2012,NNDR Billing Authorities Receipts,Localism,MIDDLESBROUGH BC,,,,5000215529,Grant Payable by Exchequer,TS1 9GA,"-1,899,817.00",Yes
Communities & Local Government,DCLG,04/12/2012,NNDR Billing Authorities Receipts,Localism,NEWCASTLE UPON TYNE DC,,,,5000215630,Grant Payable by Exchequer,NE99 1RD,"-6,827,411.00",Yes
Communities & Local Government,DCLG,04/12/2012,NNDR Billing Authorities Receipts,Localism,NORTH EAST LINCOLN COUNCIL,,Public Bodies,,5000215656,Grant Payable by Exchequer,DN35 8LN,"-2,956,188.00",Yes
Communities & Local Government,DCLG,04/12/2012,NNDR Billing Authorities Receipts,Localism,NORTH TYNESIDE MBC,,,,5000215686,Grant Payable by Exchequer,NE30 1AE,"-2,673,637.00",Yes
Communities & Local Government,DCLG,04/12/2012,NNDR Billing Authorities Receipts,Localism,NORTHUMBERLAND,,,,5000215673,Grant Payable by Exchequer,NE61 2EF,"-3,410,614.00",Yes
Communities & Local Government,DCLG,04/12/2012,NNDR Billing Authorities Receipts,Localism,NOTTINGHAM CITY COUNCIL,,,,5000215710,Grant Payable by Exchequer,M33 0DJ,"-5,790,412.00",Yes
Communities & Local Government,DCLG,04/12/2012,NNDR Billing Authorities Receipts,Localism,OLDHAM MBC,,,,5000215717,Grant Payable by Exchequer,OL1 1UH,"-2,646,240.00",Yes
Communities & Local Government,DCLG,04/12/2012,NNDR Billing Authorities Receipts,Localism,PLYMOUTH CITY CNCL,,,,5000215317,Grant Payable by Exchequer,PL1 2AA,"-3,964,888.00",Yes
Communities & Local Government,DCLG,04/12/2012,NNDR Billing Authorities Receipts,Localism,PORTSMOUTH CITY COUNCIL,,,,5000215328,Grant Payable by Exchequer,PO1 2AR,"-3,708,066.00",Yes
Communities & Local Government,DCLG,04/12/2012,NNDR Billing Authorities Receipts,Localism,REDCAR & CLEVELAND BOROUGH COUNCIL,,,,5000215356,Grant Payable by Exchequer,TS6 9AR,"-2,331,036.00",Yes
Communities & Local Government,DCLG,04/12/2012,NNDR Billing Authorities Receipts,Localism,ROCHDALE MBC,,,,5000215386,Grant Payable by Exchequer,OL16 1LQ,"-2,913,839.00",Yes
Communities & Local Government,DCLG,04/12/2012,NNDR Billing Authorities Receipts,Localism,ROTHERHAM MBC,,,,5000215407,Grant Payable by Exchequer,S65 1UF,"-3,322,189.00",Yes
Communities & Local Government,DCLG,04/12/2012,NNDR Billing Authorities Receipts,Localism,SALFORD CITY CNCL,,,,5000215443,Grant Payable by Exchequer,M27 5AW,"-3,882,546.00",Yes
Communities & Local Government,DCLG,04/12/2012,NNDR Billing Authorities Receipts,Localism,SANDWELL MBC,,,,5000215448,Grant Payable by Exchequer,B69 3BS,"-4,364,634.00",Yes
Communities & Local Government,DCLG,04/12/2012,NNDR Billing Authorities Receipts,Localism,SEFTON MBC,,,,5000215463,Grant Payable by Exchequer,L20 3NQ,"-3,184,507.00",Yes
Communities & Local Government,DCLG,04/12/2012,NNDR Billing Authorities Receipts,Localism,SHEFFIELD CITY CNCL,,,,5000215478,Grant Payable by Exchequer,S1 1UR,"-9,339,895.00",Yes
Communities & Local Government,DCLG,04/12/2012,NNDR Billing Authorities Receipts,Localism,SHROPSHIRE COUNCIL,,Large,,5000215677,Grant Payable by Exchequer,SY2 6ND,"-3,332,783.00",Yes
Communities & Local Government,DCLG,04/12/2012,NNDR Billing Authorities Receipts,Localism,SOUTH TYNESIDE COUNCIL,,,,5000215602,Grant Payable by Exchequer,NE33 2RL,"-1,372,463.00",Yes
Communities & Local Government,DCLG,04/12/2012,NNDR Billing Authorities Receipts,Localism,SOUTHEND ON SEA BC,,,,5000215616,Grant Payable by Exchequer,SS2 6EP,"-2,055,475.00",Yes
Communities & Local Government,DCLG,04/12/2012,NNDR Billing Authorities Receipts,Localism,SOUTHWARK LB,,,,5000215620,Grant Payable by Exchequer,SE1P 5LX,"-9,017,135.00",Yes
Communities & Local Government,DCLG,04/12/2012,NNDR Billing Authorities Receipts,Localism,ST HELENS MBC,,,,5000215636,Grant Payable by Exchequer,WA10 1HP,"-2,229,274.00",Yes
Communities & Local Government,DCLG,04/12/2012,NNDR Billing Authorities Receipts,Localism,STOKE ON TRENT CITY COUNCIL,,,,5000215674,Grant Payable by Exchequer,ST4 1RJ,"-3,735,031.00",Yes
Communities & Local Government,DCLG,04/12/2012,NNDR Billing Authorities Receipts,Localism,SUNDERLAND DC,,,,5000215694,Grant Payable by Exchequer,SR2 7DN,"-3,912,542.00",Yes
Communities & Local Government,DCLG,04/12/2012,NNDR Billing Authorities Receipts,Localism,SUTTON LB,,,,5000215309,Grant Payable by Exchequer,SM1 1EA,"-2,346,052.00",Yes
Communities & Local Government,DCLG,04/12/2012,NNDR Billing Authorities Receipts,Localism,TAMESIDE MBC,,,,5000215324,Grant Payable by Exchequer,OL6 6DL,"-2,537,913.00",Yes
Communities & Local Government,DCLG,04/12/2012,NNDR Billing Authorities Receipts,Localism,TELFORD & WREKIN DC,,,,5000215351,Grant Payable by Exchequer,TF3 4LF,"-3,044,819.00",Yes
Communities & Local Government,DCLG,04/12/2012,NNDR Billing Authorities Receipts,Localism,TORBAY BC,,,,5000215399,Grant Payable by Exchequer,TQ1 3DR,"-1,689,709.00",Yes
Communities & Local Government,DCLG,04/12/2012,NNDR Billing Authorities Receipts,Localism,WALSALL MBC,,,,5000215444,Grant Payable by Exchequer,WS1 1TW,"-3,135,748.00",Yes
Communities & Local Government,DCLG,04/12/2012,NNDR Billing Authorities Receipts,Localism,WALTHAM FOREST LB,,Large,,5000215449,Grant Payable by Exchequer,E17 4JF,"-2,517,003.00",Yes
Communities & Local Government,DCLG,04/12/2012,NNDR Billing Authorities Receipts,Localism,WANDSWORTH LB,,,,5000215455,Grant Payable by Exchequer,SW18 2PU,"-4,628,798.00",Yes
Communities & Local Government,DCLG,04/12/2012,NNDR Billing Authorities Receipts,Localism,WIGAN MBC,,,,5000215592,Grant Payable by Exchequer,WN1 1YD,"-3,476,627.00",Yes
Communities & Local Government,DCLG,04/12/2012,NNDR Billing Authorities Receipts,Localism,WIRRAL MBC,,,,5000215606,Grant Payable by Exchequer,L41 6BU,"-3,072,412.00",Yes
Communities & Local Government,DCLG,04/12/2012,NNDR Billing Authorities Receipts,Localism,WOLVERHAMPTON MBC,,,,5000215617,Grant Payable by Exchequer,WV1 1RL,"-3,315,816.00",Yes
Communities & Local Government,DCLG,04/12/2012,Professional services,Localism,VALUATION OFFICE AGENCY,,Public Bodies,,2100224693,,W1B 5BU,"12,416,666.66",
Communities & Local Government,DCLG,04/12/2012,Publicity,Neighbourhoods,ESSEX COUNTY COUNCIL,,Public Bodies,,5106186656,East of England Investment Seminar,CM1 1JZ,"4,406.25",
Communities & Local Government,DCLG,04/12/2012,Services provided by other Govt Orgs,Finance & Corporate Services,DEPT FOR EDUCATION,,Public Bodies,,5106186619,DCLG Security Clearances 2012-13,CF14 3UW,"2,926.20",Yes
Communities & Local Government,DCLG,04/12/2012,Services provided by other Govt Orgs,Finance & Corporate Services,DEPT FOR EDUCATION,,Public Bodies,,5106186621,DCLG Security Clearances 2012-13,CF14 3UW,"2,721.59",Yes
Communities & Local Government,DCLG,04/12/2012,Services provided by other Govt Orgs,Finance & Corporate Services,DEPT FOR EDUCATION,,Public Bodies,,5106186628,DCLG Security Clearances 2012-13,CF14 3UW,"2,861.93",Yes
Communities & Local Government,DCLG,04/12/2012,Services provided by other Govt Orgs,Finance & Corporate Services,DEPT FOR EDUCATION,,Public Bodies,,5106186631,DCLG Security Clearances 2012-13,CF14 3UW,"4,901.45",Yes
Communities & Local Government,DCLG,04/12/2012,Training,Localism,NAT ASSOC LOCAL COUNCILS,,,,5106186677,NALC conference,WC1B 3LD,240,
Communities & Local Government,DCLG,04/12/2012,Travel and Subsistence Account,Finance & Corporate Services,GOVERNMENT CAR & DESPATCH AGENCY,,Public Bodies,,5106186688,Ministerial Cars,SW8 5AX,380.94,
Communities & Local Government,DCLG,04/12/2012,Work In Progress Pre-Cert 40373 Spend,Neighbourhoods,ASHFIELD DISTRICT COUNCIL,,Large,,7600003797,ERDF Claim - 9 - P2,NG17 8DA,"2,205.45"
Communities & Local Government,DCLG,04/12/2012,Work In Progress Pre-Cert 40373 Spend,Neighbourhoods,DE MONTFORT UNIVERSITY,,Large,,7600003796,ERDF Claim - 18 - P1,LE1 9BH,"5,990.66"
Communities & Local Government,DCLG,04/12/2012,Work In Progress Pre-Cert 40373 Spend,Neighbourhoods,ENTERPRISE LOANS EAST MIDLANDS,,Small,,7600003801,ERDF Claim - 12 - P2,NG7 5FU,"20,291.53"
Communities & Local Government,DCLG,04/12/2012,Work In Progress Pre-Cert 40373 Spend,Neighbourhoods,LEEDS CITY COUNCIL,,,,7600003816,ERDF Claim - 23 - P3-YH,LS2 8BB,"17,058.93"
Communities & Local Government,DCLG,04/12/2012,Work In Progress Pre-Cert 40373 Spend,Neighbourhoods,LEEDS CITY COUNCIL,,,,7600003808,ERDF Claim - 32 - P3-YH,LS1 1UR,"7,137.61"
Communities & Local Government,DCLG,04/12/2012,Work In Progress Pre-Cert 40373 Spend,Neighbourhoods,LIGHTHOUSE GROUP UK LTD,Yes,Small,,7600003809,ERDF Claim - 25 - P2-YH,BD5 8HH,139.02
Communities & Local Government,DCLG,04/12/2012,Work In Progress Pre-Cert 40373 Spend,Neighbourhoods,NORTH EAST LINCOLNSHIRE COUNCIL,,,,7600003800,ERDF Claim - 20 - P3-YH,DN31 1HN,"8,685.67"
Communities & Local Government,DCLG,04/12/2012,Work In Progress Pre-Cert 40373 Spend,Neighbourhoods,PRINCES TRUST,,Large,,7600003805,ERDF Claim - 14 - P3-YH,LS2 8NG,"9,916.30"
Communities & Local Government,DCLG,04/12/2012,Work In Progress Pre-Cert 40373 Spend,Neighbourhoods,PRINCES TRUST,,Large,,7600003806,ERDF Claim - 14 - P3-SY,LS2 8NG,"3,531.75"
Communities & Local Government,DCLG,04/12/2012,Work In Progress Pre-Cert 40373 Spend,Neighbourhoods,SHEFFIELD CITY COUNCIL,,,,7600003807,ERDF Claim - 55 - P3-SY,S1 2SH,"94,826.63"
Communities & Local Government,DCLG,04/12/2012,Work In Progress Pre-Cert 40373 Spend,Neighbourhoods,SHEFFIELD CITY COUNCIL,,,,7600003810,ERDF Claim - 56 - P3-SY,S1 2SH,"53,892.12"
Communities & Local Government,DCLG,04/12/2012,Work In Progress Pre-Cert 40373 Spend,Neighbourhoods,UNIVERSITY OF SHEFFIELD,,,,7600003812,ERDF Claim - 14 - P1-SY,S60 5TZ,"2,701.51"
Communities & Local Government,DCLG,04/12/2012,Work In Progress Pre-Cert 40373 Spend,Neighbourhoods,UNIVERSITY OF SHEFFIELD,,,,7600003813,ERDF Claim - 14 - P1-YH,S60 5TZ,"1,800.99"
Communities & Local Government,DCLG,04/12/2012,Work In Progress Pre-Cert 40373 Spend,Neighbourhoods,UNIVERSITY OF SHEFFIELD,,,,7600003819,ERDF Claim - 21 - P1-SY,S60 5TZ,"8,039.36"
Communities & Local Government,DCLG,04/12/2012,Work In Progress Pre-Cert 40373 Spend,Neighbourhoods,UNIVERSITY OF SHEFFIELD,,,,7600003820,ERDF Claim - 21 - P1-YH,S60 5TZ,"6,667.23"
Communities & Local Government,DCLG,04/12/2012,Work In Progress Pre-Cert 40373 Spend,Neighbourhoods,YORKS & HUMBER PEOPLE UTD AGAINST C,,,,7600003803,ERDF Claim - 14 - P2-SY,S1 2AH,"17,875.52"
Communities & Local Government,DCLG,04/12/2012,Work In Progress Pre-Cert 40373 Spend,Neighbourhoods,YORKS & HUMBER PEOPLE UTD AGAINST C,,,,7600003804,ERDF Claim - 14 - P2-YH,S1 2AH,"33,057.76"
Communities & Local Government,DCLG,04/12/2012,Work In Progress Pre-Cert 40467 Spend,Neighbourhoods,ASHFIELD DISTRICT COUNCIL,,Large,,7600003797,ERDF Claim - 9 - P2,NG17 8DA,"855,734.82"
Communities & Local Government,DCLG,04/12/2012,Work In Progress Pre-Cert 40467 Spend,Neighbourhoods,BARNSLEY METROPOLITAN BC,,Public Bodies,,7600003811,ERDF Claim - 20 - P4-SY,S70 9OO,"142,253.02"
Communities & Local Government,DCLG,04/12/2012,Work In Progress Pre-Cert 40467 Spend,Neighbourhoods,BRADFORD ENTERPRISE AGENCY LIMITED,,Micro,,7600003814,ERDF Claim - 26 - P2-YH,BD1 0AH,"104,352.21"
Communities & Local Government,DCLG,04/12/2012,Work In Progress Pre-Cert 40467 Spend,Neighbourhoods,DONCASTER METROPOLITAN BC,,,,7600003798,ERDF Claim - 23 - P4-SY,DN1 1DE,"960,025.75"
Communities & Local Government,DCLG,04/12/2012,Work In Progress Pre-Cert 40467 Spend,Neighbourhoods,DONCASTER METROPOLITAN BC,,,,7600003799,ERDF Claim - 20 - P4-SY,DN1 1DE,"145,942.78"
Communities & Local Government,DCLG,04/12/2012,Work In Progress Pre-Cert 40467 Spend,Neighbourhoods,ENTERPRISE LOANS EAST MIDLANDS,,Small,,7600003801,ERDF Claim - 12 - P2,NG7 5FU,"23,379.99"
Communities & Local Government,DCLG,04/12/2012,Work In Progress Pre-Cert 40467 Spend,Neighbourhoods,KEY FUND (STH YORKSHIRE) LTD,,,,7600003817,ERDF Claim - 29 - P3-SY,S9 3TY,"38,425.00"
Communities & Local Government,DCLG,04/12/2012,Work In Progress Pre-Cert 40467 Spend,Neighbourhoods,KEY FUND (STH YORKSHIRE) LTD,,,,7600003818,ERDF Claim - 29 - P3-YH,S9 3TY,"40,425.00"
Communities & Local Government,DCLG,04/12/2012,Work In Progress Pre-Cert 40467 Spend,Neighbourhoods,LIGHTHOUSE GROUP UK LTD,Yes,Small,,7600003809,ERDF Claim - 25 - P2-YH,BD5 8HH,"2,430.17"
Communities & Local Government,DCLG,04/12/2012,Work In Progress Pre-Cert 40467 Spend,Neighbourhoods,NORTH YORKSHIRE COUNTY COUNCIL,,Large,,7600003821,ERDF Claim - 13 - P2-YH,DL7 8AL,"362,951.20"
Communities & Local Government,DCLG,04/12/2012,Work In Progress Pre-Cert 40467 Spend,Neighbourhoods,NOTTINGHAMSHIRE COUNTY COUNCIL,,Large,,7600003795,ERDF Claim - 8 - P2,NG2 7QP,"144,634.14"
Communities & Local Government,DCLG,04/12/2012,Work In Progress Pre-Cert 40467 Spend,Neighbourhoods,SOUTH YORKS PASSENGER TRANS EXEC,,,,7600003815,ERDF Claim - 58 - P4-SY,S1 2BQ,"143,153.52"
Communities & Local Government,DCLG,04/12/2012,Work In Progress Pre-Cert 40467 Spend,Neighbourhoods,UNIVERSITY OF SHEFFIELD,,,,7600003812,ERDF Claim - 14 - P1-SY,S60 5TZ,"265,000.00"
Communities & Local Government,DCLG,04/12/2012,Work In Progress Pre-Cert 40467 Spend,Neighbourhoods,VENTURE BUSINESS PARKS LIMITED,,,,7600003802,ERDF Claim - 27 - P2-YH,HU13 9PB,438.81
Communities & Local Government,DCLG,05/12/2012,Electricity,Localism,DCLG GOVERNMENT PROCUREMENT CARD,,,,1000003712,H97 electricity bill,TN37 7GA,744.59
Communities & Local Government,DCLG,05/12/2012,Electricity,Localism,SCOTTISH & SOUTHERN ENERGY,,Large,,5106180169,SE RCC Electricity 11-12,PO9 5JB,"-2,683.46",
Communities & Local Government,DCLG,05/12/2012,Electricity,Localism,SCOTTISH & SOUTHERN ENERGY,,Large,,5106186801,SE RCC Electricity 11-12,PO9 5JB,"2,683.46",
Communities & Local Government,DCLG,05/12/2012,Grant in Aid to NDPBs (non budget),Neighbourhoods,HOMES & COMMUNITIES AGENCY,,Public Bodies,,2100224751,HCA Claim 34,NE11 0NA,"27,241,325.00",Yes
Communities & Local Government,DCLG,05/12/2012,Legal Fees,Localism,SNR DENTON UK  LLP,,Large,,2100224774,,EC4M 7WS,"20,209.68",
Communities & Local Government,DCLG,05/12/2012,Legal Fees,Localism,SNR DENTON UK  LLP,,Large,,2300001498,,EC4M 7WS,"-20,209.68",
Communities & Local Government,DCLG,05/12/2012,Publications,Finance & Corporate Services,JONES YARRELL LEADENHALL LTD,,Large,,2100224772,Annual Magazine/Newspaper costs - Comms,E3 3JH,"-1,125.39",
Communities & Local Government,DCLG,05/12/2012,Publications,Finance & Corporate Services,JONES YARRELL LEADENHALL LTD,,Large,,5106186700,Annual Magazine/Newspaper costs - Comms,E3 3JH,"1,125.39",
Communities & Local Government,DCLG,05/12/2012,Work In Progress Pre-Cert 40373 Spend,Neighbourhoods,ALT VALLEY COMMUNITY TRUST,,,,7600003829,ERDF Claim - 3 - P4-MS,L11 0BS,"122,654.34",
Communities & Local Government,DCLG,05/12/2012,Work In Progress Pre-Cert 40373 Spend,Neighbourhoods,BARNSLEY DEVELOPMENT AGENCY LTD,,Small,,7600003834,ERDF Claim - 20 - P3-SY,S70 2EG,"7,435.65",
Communities & Local Government,DCLG,05/12/2012,Work In Progress Pre-Cert 40373 Spend,Neighbourhoods,BLACKBURN WITH DARWEN BC,,,,7600003825,ERDF Claim - 7 - P2-NW,BB1 7DY,"140,552.53",
Communities & Local Government,DCLG,05/12/2012,Work In Progress Pre-Cert 40373 Spend,Neighbourhoods,CENTRAL LANCASHIRE UNIVERSITY,,,,7600003832,ERDF Claim - 5 - P2-NW,PR1 2HE,"100,915.24",
Communities & Local Government,DCLG,05/12/2012,Work In Progress Pre-Cert 40373 Spend,Neighbourhoods,DONCASTER METROPOLITAN BC,,,,7600003833,ERDF Claim - 20 - P3-SY,DN1 1DE,"58,420.82",
Communities & Local Government,DCLG,05/12/2012,Work In Progress Pre-Cert 40373 Spend,Neighbourhoods,ENTERPRISE4ALL (NORTH WEST) LTD,,Micro,,7600003827,ERDF Claim - 3 - P4-NW,BB1 5QR,"32,887.91",
Communities & Local Government,DCLG,05/12/2012,Work In Progress Pre-Cert 40373 Spend,Neighbourhoods,HUDDERSFIELD UNIVERISTY,,,,7600003835,ERDF Claim - 32 - P1-SY,HD1 3DH,"2,221.92",
Communities & Local Government,DCLG,05/12/2012,Work In Progress Pre-Cert 40373 Spend,Neighbourhoods,HUDDERSFIELD UNIVERISTY,,,,7600003837,ERDF Claim - 23 - P2-SY,HD1 3DH,"6,074.49",
Communities & Local Government,DCLG,05/12/2012,Work In Progress Pre-Cert 40373 Spend,Neighbourhoods,HUDDERSFIELD UNIVERISTY,,,,7600003838,ERDF Claim - 23 - P2-YH,HD1 3DH,"15,627.04",
Communities & Local Government,DCLG,05/12/2012,Work In Progress Pre-Cert 40373 Spend,Neighbourhoods,HUDDERSFIELD UNIVERISTY,,,,7600003853,ERDF Claim - 32 - P1-YH,HD1 3DH,"19,997.23"
Communities & Local Government,DCLG,05/12/2012,Work In Progress Pre-Cert 40373 Spend,Neighbourhoods,KEY FUND (STH YORKSHIRE) LTD,,,,7600003849,ERDF Claim - 23 - P3-YH,S9 3TY,635.6
Communities & Local Government,DCLG,05/12/2012,Work In Progress Pre-Cert 40373 Spend,Neighbourhoods,LIVERPOOL CITY REG LOCAL ENT PARTNE,,,,7600003826,ERDF Claim - 16 - P3-MS,L3 1BG,"446,799.34"
Communities & Local Government,DCLG,05/12/2012,Work In Progress Pre-Cert 40373 Spend,Neighbourhoods,NORTH WEST UNI EUROP UNIT LTD (NWUE,,Micro,,7600003830,ERDF Claim - 1 - P5-MS,M1 3HZ,"2,073.89"
Communities & Local Government,DCLG,05/12/2012,Work In Progress Pre-Cert 40373 Spend,Neighbourhoods,NORTH WEST UNI EUROP UNIT LTD (NWUE,,Micro,,7600003831,ERDF Claim - 1 - P5-NW,M1 3HZ,"6,943.03"
Communities & Local Government,DCLG,05/12/2012,Work In Progress Pre-Cert 40373 Spend,Neighbourhoods,NORTH YORKSHIRE COUNTY COUNCIL,,Large,,7600003847,ERDF Claim - 16 - P2-YH,DL7 8AL,"55,738.27"
Communities & Local Government,DCLG,05/12/2012,Work In Progress Pre-Cert 40373 Spend,Neighbourhoods,NORTH YORKSHIRE COUNTY COUNCIL,,Large,,7600003850,ERDF Claim - 18 - P2-YH,DL7 8AL,"29,687.32"
Communities & Local Government,DCLG,05/12/2012,Work In Progress Pre-Cert 40373 Spend,Neighbourhoods,NORTH YORKSHIRE COUNTY COUNCIL,,Large,,7600003852,ERDF Claim - 17 - P2-YH,DL7 8AL,"20,659.38"
Communities & Local Government,DCLG,05/12/2012,Work In Progress Pre-Cert 40373 Spend,Neighbourhoods,SHEFFIELD CITY COUNCIL,,,,7600003846,ERDF Claim - 20 - P2-SY,S1 2SH,"18,788.22"
Communities & Local Government,DCLG,05/12/2012,Work In Progress Pre-Cert 40373 Spend,Neighbourhoods,SHEFFIELD CITY COUNCIL,,,,7600003851,ERDF Claim - 30 - P3-SY,S1 2SH,"49,724.16"
Communities & Local Government,DCLG,05/12/2012,Work In Progress Pre-Cert 40373 Spend,Neighbourhoods,UNIVERSITY OF SHEFFIELD,,,,7600003841,ERDF Claim - 32 - P1-SY,S60 5TZ,"47,355.58"
Communities & Local Government,DCLG,05/12/2012,Work In Progress Pre-Cert 40373 Spend,Neighbourhoods,UNIVERSITY OF SHEFFIELD,,,,7600003842,ERDF Claim - 30 - P1-SY,S60 5TZ,"52,510.10"
Communities & Local Government,DCLG,05/12/2012,Work In Progress Pre-Cert 40373 Spend,Neighbourhoods,UNIVERSITY OF SHEFFIELD,,,,7600003843,ERDF Claim - 30 - P1-YH,S60 5TZ,"28,274.70"
Communities & Local Government,DCLG,05/12/2012,Work In Progress Pre-Cert 40467 Spend,Neighbourhoods,DP ENGINEERING,,,,7600003836,ERDF Claim - 3 - P2,TR16 4AX,"135,000.00"
Communities & Local Government,DCLG,05/12/2012,Work In Progress Pre-Cert 40467 Spend,Neighbourhoods,DP ENGINEERING,,,,7600003854,ERDF Claim - 4 - P2,TR16 4AX,"14,999.85"
Communities & Local Government,DCLG,05/12/2012,Work In Progress Pre-Cert 40467 Spend,Neighbourhoods,HUDDERSFIELD UNIVERISTY,,,,7600003853,ERDF Claim - 32 - P1-YH,HD1 3DH,"634,095.93"
Communities & Local Government,DCLG,05/12/2012,Work In Progress Pre-Cert 40467 Spend,Neighbourhoods,KEY FUND (STH YORKSHIRE) LTD,,,,7600003848,ERDF Claim - 23 - P3-SY,S9 3TY,"111,830.00"
Communities & Local Government,DCLG,05/12/2012,Work In Progress Pre-Cert 40467 Spend,Neighbourhoods,KEY FUND (STH YORKSHIRE) LTD,,,,7600003849,ERDF Claim - 23 - P3-YH,S9 3TY,"350,945.46"
Communities & Local Government,DCLG,05/12/2012,Work In Progress Pre-Cert 40467 Spend,Neighbourhoods,LIVERPOOL MERSEYSIDE THEATRES TRUST,,,,7600003828,ERDF Claim - 8 - P3-MS,L1 9BH,"529,986.41"
Communities & Local Government,DCLG,05/12/2012,Work In Progress Pre-Cert 40467 Spend,Neighbourhoods,MORLEY ESTATES,,,,7600003822,ERDF Claim - 7 - P4-MS,WA14 2QS,"206,921.86"
Communities & Local Government,DCLG,05/12/2012,Work In Progress Pre-Cert 40467 Spend,Neighbourhoods,MORLEY ESTATES,,,,7600003823,ERDF Claim - 9 - P4-MS,WA14 2QS,"60,155.28"
Communities & Local Government,DCLG,05/12/2012,Work In Progress Pre-Cert 40467 Spend,Neighbourhoods,MORLEY ESTATES,,,,7600003824,ERDF Claim - 6 - P4-MS,WA14 2QS,"27,594.08"
Communities & Local Government,DCLG,05/12/2012,Work In Progress Pre-Cert 40467 Spend,Neighbourhoods,MORLEY ESTATES,,,,7600003845,ERDF Claim - 5 - P4-MS,WA14 2QS,"22,605.84"
Communities & Local Government,DCLG,05/12/2012,Work In Progress Pre-Cert 40467 Spend,Neighbourhoods,NORTH YORKSHIRE COUNTY COUNCIL,,Large,,7600003847,ERDF Claim - 16 - P2-YH,DL7 8AL,"19,952.87"
Communities & Local Government,DCLG,05/12/2012,Work In Progress Pre-Cert 40467 Spend,Neighbourhoods,NORTH YORKSHIRE COUNTY COUNCIL,,Large,,7600003850,ERDF Claim - 18 - P2-YH,DL7 8AL,"57,208.75"
Communities & Local Government,DCLG,05/12/2012,Work In Progress Pre-Cert 40467 Spend,Neighbourhoods,NORTH YORKSHIRE COUNTY COUNCIL,,Large,,7600003852,ERDF Claim - 17 - P2-YH,DL7 8AL,"5,115.30"
Communities & Local Government,DCLG,05/12/2012,Work In Progress Pre-Cert 40467 Spend,Neighbourhoods,SCREEN YORKSHIRE LIMITED,,,,7600003839,ERDF Claim - 12 - P2-SY,LS2 7EY,"885,000.00"
Communities & Local Government,DCLG,05/12/2012,Work In Progress Pre-Cert 40467 Spend,Neighbourhoods,SCREEN YORKSHIRE LIMITED,,,,7600003840,ERDF Claim - 12 - P2-YH,LS2 7EY,"275,000.00"
Communities & Local Government,DCLG,05/12/2012,Work In Progress Pre-Cert 40467 Spend,Neighbourhoods,SHEFFIELD CITY COUNCIL,,,,7600003851,ERDF Claim - 30 - P3-SY,S1 2SH,"82,766.15"
Communities & Local Government,DCLG,05/12/2012,Work In Progress Pre-Cert 40467 Spend,Neighbourhoods,UNIVERSITY OF SHEFFIELD,,,,7600003841,ERDF Claim - 32 - P1-SY,S60 5TZ,"52,990.53"
Communities & Local Government,DCLG,05/12/2012,Work In Progress Pre-Cert 40467 Spend,Neighbourhoods,VENTURE BUSINESS PARKS LIMITED,,,,7600003844,ERDF Claim - 28 - P2-YH,HU13 9PB,"44,173.88"
Communities & Local Government,DCLG,06/12/2012,Accommodation Service Charges,Finance & Corporate Services,GVA GRIMLEY LTD,,Large,,5106186823,T/F Eland House  ASC 12-13,B1 2JB,"117,740.77"
Communities & Local Government,DCLG,06/12/2012,Accommodation Service Charges,Finance & Corporate Services,GVA GRIMLEY LTD,,Large,,5106186823,T/F Eland House Clean/Maint/H&S 12-13,B1 2JB,"55,448.46"
Communities & Local Government,DCLG,06/12/2012,Accommodation Service Charges,Finance & Corporate Services,GVA GRIMLEY LTD,,Large,,5106186823,T/F Hemel Hempstead ASC 12-13,B1 2JB,"32,660.40"
Communities & Local Government,DCLG,06/12/2012,Accommodation Service Charges,Finance & Corporate Services,GVA GRIMLEY LTD,,Large,,5106186823,T/F Rivergate ASC 12-13,B1 2JB,"11,554.49"
Communities & Local Government,DCLG,06/12/2012,Accommodation Service Charges,Finance & Corporate Services,GVA GRIMLEY LTD,,Large,,5106186823,T/F Citygate ASC 12-13,B1 2JB,"84,374.56"
Communities & Local Government,DCLG,06/12/2012,Accommodation Service Charges,Finance & Corporate Services,GVA GRIMLEY LTD,,Large,,5106186823,T/F Lateral ASC 12-13,B1 2JB,"63,835.81"
Communities & Local Government,DCLG,06/12/2012,Accommodation Service Charges,Finance & Corporate Services,GVA GRIMLEY LTD,,Large,,5106186823,T/F Westbrook Suite 10 ASC 12-13,B1 2JB,"7,118.65"
Communities & Local Government,DCLG,06/12/2012,Accommodation Service Charges,Finance & Corporate Services,GVA GRIMLEY LTD,,Large,,5106186823,T/F Westbrook Suite 9 ASC 12-13,B1 2JB,"3,417.23"
Communities & Local Government,DCLG,06/12/2012,Accommodation Service Charges,Finance & Corporate Services,GVA GRIMLEY LTD,,Large,,5106186823,T/F Princes Dock ASC 12-13,B1 2JB,"5,819.40"
Communities & Local Government,DCLG,06/12/2012,Agency Staff,Finance & Corporate Services,BADENOCH & CLARK,,Large,,2300001524,3708186,W1T 5AE,"-1,254.09"
Communities & Local Government,DCLG,06/12/2012,Agency Staff,Finance & Corporate Services,BADENOCH & CLARK,,Large,,2300001524,3712083,W1T 5AE,"-1,473.25"
Communities & Local Government,DCLG,06/12/2012,Agency Staff,Finance & Corporate Services,CAPITA RESOURCING LTD,,Large,,5106186731,CPD 0492030 Capita MSP,SL6 1DP,"2,757.26"
Communities & Local Government,DCLG,06/12/2012,Agency Staff,Finance & Corporate Services,CAPITA RESOURCING LTD,,Large,,5106186736,CPD 0492030 Capita MSP,SL6 1DP,"3,322.38"
Communities & Local Government,DCLG,06/12/2012,Agency Staff,Finance & Corporate Services,CAPITA RESOURCING LTD,,Large,,5106186746,Expenses,SL6 1DP,132.76
Communities & Local Government,DCLG,06/12/2012,Agency Staff,Finance & Corporate Services,CAPITA RESOURCING LTD,,Large,,5106186746,Interim manager,SL6 1DP,760.29
Communities & Local Government,DCLG,06/12/2012,Agency Staff,Finance & Corporate Services,CAPITA RESOURCING LTD,,Large,,5106186752,Interim Manager,SL6 1DP,"3,300.00"
Communities & Local Government,DCLG,06/12/2012,Agency Staff,Finance & Corporate Services,CAPITA RESOURCING LTD,,Large,,5106186758,Interim manager,SL6 1DP,"4,077.79"
Communities & Local Government,DCLG,06/12/2012,Agency Staff,Finance & Corporate Services,CAPITA RESOURCING LTD,,Large,,5106186765,Interim Manager,SL6 1DP,"2,038.90"
Communities & Local Government,DCLG,06/12/2012,Agency Staff,Finance & Corporate Services,CAPITA RESOURCING LTD,,Large,,5106186772,Interim HR Business Partner,SL6 1DP,"2,305.80"
Communities & Local Government,DCLG,06/12/2012,Agency Staff,Finance & Corporate Services,CAPITA RESOURCING LTD,,Large,,5106186784,Interim manager,SL6 1DP,"1,306.80"
Communities & Local Government,DCLG,06/12/2012,Agency Staff,Localism,CAPITA RESOURCING LTD,,Large,,5106186725,Interim manager,SL6 1DP,"2,379.96"
Communities & Local Government,DCLG,06/12/2012,Agency Staff,Localism,CAPITA RESOURCING LTD,,Large,,5106186729,Extension (3),SL6 1DP,"1,729.38"
Communities & Local Government,DCLG,06/12/2012,Agency Staff,Localism,CAPITA RESOURCING LTD,,Large,,5106186783,Interim manager,SL6 1DP,"4,657.50"
Communities & Local Government,DCLG,06/12/2012,Agency Staff,Neighbourhoods,CAPITA RESOURCING LTD,,Large,,5106186718,Interim Manager,SL6 1DP,"3,959.94"
Communities & Local Government,DCLG,06/12/2012,Agency Staff,Neighbourhoods,CAPITA RESOURCING LTD,,Large,,5106186722,Extension (1),SL6 1DP,"2,895.78"
Communities & Local Government,DCLG,06/12/2012,Agency Staff,Neighbourhoods,CAPITA RESOURCING LTD,,Large,,5106186728,Extension (3),SL6 1DP,"3,056.64"
Communities & Local Government,DCLG,06/12/2012,Agency Staff,Neighbourhoods,CAPITA RESOURCING LTD,,Large,,5106186730,Extension (2),SL6 1DP,"2,305.80"
Communities & Local Government,DCLG,06/12/2012,Agency Staff,Neighbourhoods,CAPITA RESOURCING LTD,,Large,,5106186735,Interim Manager,SL6 1DP,"2,767.08"
Communities & Local Government,DCLG,06/12/2012,Agency Staff,Neighbourhoods,CAPITA RESOURCING LTD,,Large,,5106186743,DayRate INTERREG 2Seas-Territorial Facil,SL6 1DP,"2,328.26"
Communities & Local Government,DCLG,06/12/2012,Agency Staff,Neighbourhoods,CAPITA RESOURCING LTD,,Large,,5106186743,Expenses INTERREG 2Seas-Territorial Faci,SL6 1DP,"1,261.67"
Communities & Local Government,DCLG,06/12/2012,Agency Staff,Neighbourhoods,CAPITA RESOURCING LTD,,Large,,5106186762,Extension (1),SL6 1DP,"1,930.50"
Communities & Local Government,DCLG,06/12/2012,Agency Staff,Neighbourhoods,CAPITA RESOURCING LTD,,Large,,5106186771,Contractor ERDF,SL6 1DP,"1,044.00"
Communities & Local Government,DCLG,06/12/2012,Agency Staff,Neighbourhoods,CAPITA RESOURCING LTD,,Large,,5106186771,Contractor ERDF Expenses,SL6 1DP,72.96
Communities & Local Government,DCLG,06/12/2012,Agency Staff,Neighbourhoods,CAPITA RESOURCING LTD,,Large,,5106186773,Expenses,SL6 1DP,771.26,
Communities & Local Government,DCLG,06/12/2012,Agency Staff,Neighbourhoods,CAPITA RESOURCING LTD,,Large,,5106186773,Interim Manager,SL6 1DP,"3,623.66",
Communities & Local Government,DCLG,06/12/2012,Agency Staff,Neighbourhoods,CAPITA RESOURCING LTD,,Large,,5106186775,Extension (2),SL6 1DP,"2,882.28",
Communities & Local Government,DCLG,06/12/2012,Agency Staff,Neighbourhoods,CAPITA RESOURCING LTD,,Large,,5106186776,Extension (3),SL6 1DP,"3,056.64",
Communities & Local Government,DCLG,06/12/2012,Agency Staff,Neighbourhoods,CAPITA RESOURCING LTD,,Large,,5106186779,Extension (3),SL6 1DP,"3,056.64",
Communities & Local Government,DCLG,06/12/2012,Agency Staff,Neighbourhoods,CAPITA RESOURCING LTD,,Large,,5106186780,DayRate ERREG2 Seas-Territorial,SL6 1DP,835.2,
Communities & Local Government,DCLG,06/12/2012,Agency Staff,Neighbourhoods,CAPITA RESOURCING LTD,,Large,,5106186785,Interim manager,SL6 1DP,"3,415.50",
Communities & Local Government,DCLG,06/12/2012,Agency Staff,Neighbourhoods,CAPITA RESOURCING LTD,,Large,,5106186787,Extension (2),SL6 1DP,"2,882.28",
Communities & Local Government,DCLG,06/12/2012,Building Renovations,Finance & Corporate Services,OVERBURY PLC,,Large,,5106186704,Works relating to TQH project 064,W1T 3EW,"279,118.31",
Communities & Local Government,DCLG,06/12/2012,Consulting,Neighbourhoods,BUSINESS TRAINING PARTNERSHIP,,,,2300001405,Invoice 1013556 paid in error 16.05.2007,RG42 1PL,"-1,000.00",
Communities & Local Government,DCLG,06/12/2012,Current Grants to Non Profit Bodies,Neighbourhoods,E2V TECHNOLOGIES (UK) LTD,,Large,,2100224689,RGF Grant Q3 - 2012-13,CM1 2QU,"1,559,268.00",Yes
Communities & Local Government,DCLG,06/12/2012,Electricity,Finance & Corporate Services,EDF ENERGY 1 LIMITED,,Large,,5106186747,SW Taunton Electricity - 2012-13,PL3 5XQ,"5,421.97",
Communities & Local Government,DCLG,06/12/2012,Electricity,Finance & Corporate Services,EDF ENERGY 1 LIMITED,,Large,,5106186790,Rivergate Electricity 2012-13,PL3 5XQ,"7,508.72",
Communities & Local Government,DCLG,06/12/2012,Electricity,Finance & Corporate Services,EDF ENERGY 1 LIMITED,,Large,,5106186791,WM Wolverhampton Electricity - 2012-13,PL3 5XQ,"4,946.14",
Communities & Local Government,DCLG,06/12/2012,Electricity,Finance & Corporate Services,EDF ENERGY 1 LIMITED,,Large,,5106186794,Eland House Electricity 2012-13,PL3 5XQ,"34,135.88",
Communities & Local Government,DCLG,06/12/2012,Electricity,Finance & Corporate Services,EDF ENERGY 1 LIMITED,,Large,,5106186798,Y&H Wakefield Electricity - 2012-13,PL3 5XQ,"5,565.83",
Communities & Local Government,DCLG,06/12/2012,Electricity,Finance & Corporate Services,EDF ENERGY 1 LIMITED,,Large,,5106186824,Paradise Circus Electricity 2012-13,PL3 5XQ,"2,499.08",
Communities & Local Government,DCLG,06/12/2012,Electricity,Finance & Corporate Services,GVA GRIMLEY LTD,,Large,,5106186823,T/F Citygate Electricity 12-13,B1 2JB,"24,350.87",
Communities & Local Government,DCLG,06/12/2012,Electricity,Finance & Corporate Services,GVA GRIMLEY LTD,,Large,,5106186823,T/F Lateral Electricity 12-13,B1 2JB,"11,763.30",
Communities & Local Government,DCLG,06/12/2012,Electricity,Finance & Corporate Services,GVA GRIMLEY LTD,,Large,,5106186823,T/F Princes Dock Utilities 12-13,B1 2JB,"1,939.80",
Communities & Local Government,DCLG,06/12/2012,Electricity,Finance & Corporate Services,NPOWER YORKSHIRE LTD,,Large,,5106186708,Y&H Wakefield RCC Metering 2012-13,LS14 3HS,629.65,
Communities & Local Government,DCLG,06/12/2012,Facilities Management (ISD use only),Finance & Corporate Services,GVA GRIMLEY LTD,,Large,,5106186823,T/F Princes Dock FM 12-13,B1 2JB,"3,800.10",
Communities & Local Government,DCLG,06/12/2012,Fixed Maintenance,Finance & Corporate Services,E C HARRIS LLP,,Large,,2100224859,Cond feasability study Grd FLR&BASE - 66,N1 9AB,"-4,830.00",
Communities & Local Government,DCLG,06/12/2012,Fixed Maintenance,Finance & Corporate Services,E C HARRIS LLP,,Large,,2100224863,Ground Floor Conference Space Planing 67,N1 9AB,"-10,842.00",
Communities & Local Government,DCLG,06/12/2012,Fixed Maintenance,Finance & Corporate Services,E C HARRIS LLP,,Large,,5106186825,Ground Floor Conference Space Planing 67,N1 9AB,"10,842.00",
Communities & Local Government,DCLG,06/12/2012,Fixed Maintenance,Finance & Corporate Services,E C HARRIS LLP,,Large,,5106186827,Cond feasability study Grd FLR&BASE - 66,N1 9AB,"4,830.00",
Communities & Local Government,DCLG,06/12/2012,"Furniture, Fittings and carpets",Finance & Corporate Services,NOMS AGENCY,,Public Bodies,,5106186224,"Furniture for Latera,l Leeds",NP20 9BB,"32,648.45",
Communities & Local Government,DCLG,06/12/2012,Grant in Aid to NDPBs (non budget),Localism,VALUATION TRIBUNAL SERVICE,,,,2100224753,,E1 1DU,"646,106.00",Yes
Communities & Local Government,DCLG,06/12/2012,IT - Service Contracts,Finance & Corporate Services,STERIA LIMITED,,Large,,5106186553,Hardware moves for staff move,M14 0WN,"1,717.98",
Communities & Local Government,DCLG,06/12/2012,IT - Service Contracts,Finance & Corporate Services,STERIA LTD,,Large,,5106186470,NR 00390 (00388)  AID Servers Relocation,M14 0WN,"1,705.00",
Communities & Local Government,DCLG,06/12/2012,IT - Service Contracts,Finance & Corporate Services,STERIA LTD,,Large,,5106186480,NR00932 Scoping Audit - Lateral,M14 0WN,"2,042.31",
Communities & Local Government,DCLG,06/12/2012,IT - Service Contracts,Localism,MERRILL CORPORATION LIMITED,,Large,,5106186818,Virtual Dataroom Fire Serv Collge Future,EC2A 1ER,"1,723.33",
Communities & Local Government,DCLG,06/12/2012,IT - Software Maintenance,Finance & Corporate Services,METHODS CONSULTING LTD,,Medium,,5106186711,PIMS Application Support FY 2012/13,WC2H 8AD,"24,000.00"
Communities & Local Government,DCLG,06/12/2012,Legal Fees,Finance & Corporate Services,TREASURY SOLICITOR,,Public Bodies,,2100224771,REF: GEOFF FARMER LETTER DATED 21 NOV 2012,WC2B 4TS,"34,601.43"
Communities & Local Government,DCLG,06/12/2012,Management Consultancy,Neighbourhoods,CEL GROUP,,Medium,,5106186225,Payments for 1/10/12 - 30/09/13,SK13 8HT,"85,415.60"
Communities & Local Government,DCLG,06/12/2012,Office Supplies,Neighbourhoods,BANNER BUSINESS SUPPLIES LTD,,Large,,5106186512,DELWEEKLY Banner A4 Recycled Copier Pape,NR3 1PD,272.16
Communities & Local Government,DCLG,06/12/2012,Office Supplies,Neighbourhoods,BANNER BUSINESS SUPPLIES LTD,,Large,,5106186512,DELWEEKLY Steinbeis Classic A3 Copier Pa,NR3 1PD,54.31
Communities & Local Government,DCLG,06/12/2012,Publications,Finance & Corporate Services,JONES YARRELL LEADENHALL LTD,,Large,,5106186692,Journal and newspaper supply 2012-13,E3 3JH,354.46
Communities & Local Government,DCLG,06/12/2012,Publications,Finance & Corporate Services,STATIONERY OFFICE LTD,,Large,,5106186734,Books - Legal,NR3 1PD,314.5
Communities & Local Government,DCLG,06/12/2012,Rates,Finance & Corporate Services,GVA GRIMLEY LTD,,Large,,5106186823,T/F Vulcan House ASC 12-13,B1 2JB,"2,468.82"
Communities & Local Government,DCLG,06/12/2012,Rates,Finance & Corporate Services,GVA GRIMLEY LTD,,Large,,5106186823,T/F Princes Dock Rates 12-13,B1 2JB,"8,215.00"
Communities & Local Government,DCLG,06/12/2012,Rent,Finance & Corporate Services,GVA GRIMLEY LTD,,Large,,5106186823,T/F Eland House Rent 12-13,B1 2JB,"3,759,165.94"
Communities & Local Government,DCLG,06/12/2012,Rent,Finance & Corporate Services,GVA GRIMLEY LTD,,Large,,5106186823,T/F Hemel Hempstead Rent 12-13,B1 2JB,"70,008.76"
Communities & Local Government,DCLG,06/12/2012,Rent,Finance & Corporate Services,GVA GRIMLEY LTD,,Large,,5106186823,T/F Mast House Rent 12-13,B1 2JB,"83,706.12"
Communities & Local Government,DCLG,06/12/2012,Rent,Finance & Corporate Services,GVA GRIMLEY LTD,,Large,,5106186823,T/F Rivergate Rent 12-13,B1 2JB,"480,025.71"
Communities & Local Government,DCLG,06/12/2012,Rent,Finance & Corporate Services,GVA GRIMLEY LTD,,Large,,5106186823,T/F Bridge House Rent 12-13,B1 2JB,"205,086.00"
Communities & Local Government,DCLG,06/12/2012,Rent,Finance & Corporate Services,GVA GRIMLEY LTD,,Large,,5106186823,T/F Citygate Rent 12-13,B1 2JB,"385,431.09"
Communities & Local Government,DCLG,06/12/2012,Rent,Finance & Corporate Services,GVA GRIMLEY LTD,,Large,,5106186823,T/F Lateral Rent 12-13,B1 2JB,"392,588.11"
Communities & Local Government,DCLG,06/12/2012,Rent,Finance & Corporate Services,GVA GRIMLEY LTD,,Large,,5106186823,T/F Queen Street Rent 12-13,B1 2JB,"173,499.97"
Communities & Local Government,DCLG,06/12/2012,Rent,Finance & Corporate Services,GVA GRIMLEY LTD,,Large,,5106186823,T/F St Philips Place Rent 12-13,B1 2JB,"433,839.50"
Communities & Local Government,DCLG,06/12/2012,Rent,Finance & Corporate Services,GVA GRIMLEY LTD,,Large,,5106186823,T/F Paradise Circus Rent 12-13,B1 2JB,"176,543.83"
Communities & Local Government,DCLG,06/12/2012,Rent,Finance & Corporate Services,GVA GRIMLEY LTD,,Large,,5106186823,T/F Westbrook Suite 10 Rent 12-13,B1 2JB,"17,395.65"
Communities & Local Government,DCLG,06/12/2012,Rent,Finance & Corporate Services,GVA GRIMLEY LTD,,Large,,5106186823,T/F Westbrook Suite 9 Rent 12-13,B1 2JB,"7,609.65"
Communities & Local Government,DCLG,06/12/2012,Rent,Finance & Corporate Services,GVA GRIMLEY LTD,,Large,,5106186823,T/F Arpley House Rent 12-13,B1 2JB,"43,748.00"
Communities & Local Government,DCLG,06/12/2012,Rent,Finance & Corporate Services,GVA GRIMLEY LTD,,Large,,5106186823,T/F One Piccadilly Rent 12-13,B1 2JB,"19,785.08"
Communities & Local Government,DCLG,06/12/2012,Rent,Finance & Corporate Services,GVA GRIMLEY LTD,,Large,,5106186823,T/F Princes Dock Rent 12-13,B1 2JB,"18,825.60"
Communities & Local Government,DCLG,06/12/2012,Research,Neighbourhoods,E C HARRIS LLP,,Large,,5106186806,Cat 2 and 3 call off work,N1 9AB,"7,686.00"
Communities & Local Government,DCLG,06/12/2012,Research,Neighbourhoods,E C HARRIS LLP,,Large,,5106186807,Cat 2 and 3 call off work,N1 9AB,"10,150.50"
Communities & Local Government,DCLG,06/12/2012,Research,Neighbourhoods,E C HARRIS LLP,,Large,,5106186808,Cat 2 and 3 call off work,N1 9AB,"10,930.50"
Communities & Local Government,DCLG,06/12/2012,Research,Neighbourhoods,E C HARRIS LLP,,Large,,5106186809,Cat 2 and 3 call off work,N1 9AB,"6,993.00"
Communities & Local Government,DCLG,06/12/2012,Research,Neighbourhoods,E C HARRIS LLP,,Large,,5106186814,Cat 2 and 3 call off work,N1 9AB,"3,960.00"
Communities & Local Government,DCLG,06/12/2012,Research,Neighbourhoods,E C HARRIS LLP,,Large,,5106186815,Cat 2 and 3 call off work,N1 9AB,"2,392.50"
Communities & Local Government,DCLG,06/12/2012,Research,Neighbourhoods,E C HARRIS LLP,,Large,,5106186816,Cat 2 and 3 call off work,N1 9AB,"2,670.00"
Communities & Local Government,DCLG,06/12/2012,Research,Neighbourhoods,E C HARRIS LLP,,Large,,5106186817,Cat 2 and 3 call off work,N1 9AB,"2,756.28"
Communities & Local Government,DCLG,06/12/2012,Software Licences,Neighbourhoods,SYMANTEC LTD,,Large,,5106186819,Software licence,15,478.8
Communities & Local Government,DCLG,06/12/2012,Steady State Service Provision,Finance & Corporate Services,LOGICA (CMG UK LTD),,Large,,5106186719,Payroll Services 2012/13,TW18 4LG,"11,595.05"
Communities & Local Government,DCLG,06/12/2012,Steady State Service Provision,Finance & Corporate Services,LOGICA (CMG UK LTD),,Large,,5106186802,Payroll Services 2012/13,TW18 4LG,"1,137.18"
Communities & Local Government,DCLG,06/12/2012,Travel and Subsistence Account,Finance & Corporate Services,CAPITA BUSINESS,,Large,,2300001324,Credit note,DE21 6BF,"-12,876.80"
Communities & Local Government,DCLG,06/12/2012,Travel and Subsistence Account,Finance & Corporate Services,CAPITA BUSINESS,,Large,,2300001385,,DE21 6BF,-439.3
Communities & Local Government,DCLG,06/12/2012,Travel and Subsistence Account,Localism,CAPITA BUSINESS,,Large,,2300001324,Credit note,DE21 6BF,-702
Communities & Local Government,DCLG,06/12/2012,Travel and Subsistence Account,Localism,CAPITA BUSINESS,,Large,,2300001324,Credit note,DE21 6BF,-960
Communities & Local Government,DCLG,06/12/2012,Travel and Subsistence Account,Localism,CAPITA BUSINESS,,Large,,2300001324,Credit note,DE21 6BF,-161.3
Communities & Local Government,DCLG,06/12/2012,Travel and Subsistence Account,Localism,CAPITA BUSINESS,,Large,,2300001324,Credit note,DE21 6BF,-383
Communities & Local Government,DCLG,06/12/2012,Travel and Subsistence Account,Neighbourhoods,CAPITA BUSINESS,,Large,,2300001324,Credit note,DE21 6BF,"-2,790.80"
Communities & Local Government,DCLG,06/12/2012,Water,Finance & Corporate Services,BRISTOL WATER,,Large,,2100224872,2012/13 Rivergate Annual Water Charge,BS48 1WA,-541.62
Communities & Local Government,DCLG,06/12/2012,Water,Finance & Corporate Services,BRISTOL WATER,,Large,,5106186812,2012/13 Rivergate Annual Water Charge,BS48 1WA,541.62
Communities & Local Government,DCLG,06/12/2012,Work In Progress Pre-Cert 40373 Spend,Neighbourhoods,BIORENEWABLES DEVELOPMENT CENTRE LT,,,,7600003856,ERDF Claim - 13 - P1-YH,YO10 5NY,"32,270.78"
Communities & Local Government,DCLG,06/12/2012,Work In Progress Pre-Cert 40373 Spend,Neighbourhoods,BIORENEWABLES DEVELOPMENT CENTRE LT,,,,7600003857,ERDF Claim - 12 - P1-YH,YO10 5NY,"151,456.28"
Communities & Local Government,DCLG,06/12/2012,Work In Progress Pre-Cert 40373 Spend,Neighbourhoods,BIORENEWABLES DEVELOPMENT CENTRE LT,,,,7600003858,ERDF Claim - 14 - P1-YH,YO10 5NY,"23,503.99"
Communities & Local Government,DCLG,06/12/2012,Work In Progress Pre-Cert 40373 Spend,Neighbourhoods,BRADFORD  MDC,,,,2300001941,100% flat rate correction identified by Article 13,BD1 1HY,"-460,793.79"
Communities & Local Government,DCLG,06/12/2012,Work In Progress Pre-Cert 40373 Spend,Neighbourhoods,CASE TRAINING SERVICES LTD,Yes,Small,,7600003855,ERDF Claim - 20 - P3-YH,HU2 8DQ,550.76
Communities & Local Government,DCLG,06/12/2012,Work In Progress Pre-Cert 40373 Spend,Neighbourhoods,KIRKLEES COUNCIL,,,,7600003860,ERDF Claim - 11 - P3-YH,HD1 2TG,"27,834.69"
Communities & Local Government,DCLG,06/12/2012,Work In Progress Pre-Cert 40373 Spend,Neighbourhoods,YORK UNIVERSITY,,Large,,7600003859,ERDF Claim - 13 - P1-YH,YO10 5DD,"9,331.41"
Communities & Local Government,DCLG,06/12/2012,Work In Progress Pre-Cert 40467 Spend,Neighbourhoods,CASE TRAINING SERVICES LTD,Yes,Small,,7600003855,ERDF Claim - 20 - P3-YH,HU2 8DQ,"211,392.85"
Communities & Local Government,DCLG,06/12/2012,Work In Progress Pre-Cert 40467 Spend,Neighbourhoods,IMPETUS,,Micro,,2300001946,Irregular ERDF expenditure on Small Business Loans,WR10 1PZ,"-12,428.10"
Communities & Local Government,DCLG,06/12/2012,Work In Progress Pre-Cert 40467 Spend,Neighbourhoods,KIRKLEES COUNCIL,,,,7600003860,ERDF Claim - 11 - P3-YH,HD1 2TG,"105,982.19"
Communities & Local Government,DCLG,06/12/2012,Work In Progress Pre-Cert 40467 Spend,Neighbourhoods,TREMOUGH DEVELOPM'T VEHICLE LTD,,,,7600003861,ERDF Claim - 10 - P3,TR10 9EZ,"488,545.92"
Communities & Local Government,DCLG,06/12/2012,Work In Progress Pre-Cert 40467 Spend,Neighbourhoods,WARMSALE LTD,,,,7600003862,ERDF Claim - 32 - P2-YH,HU14 3JP,"64,021.94"
Communities & Local Government,DCLG,06/12/2012,Work In Progress Pre-Cert 40467 Spend,Neighbourhoods,YORK UNIVERSITY,,Large,,7600003859,ERDF Claim - 13 - P1-YH,YO10 5DD,"135,698.10"
Communities & Local Government,DCLG,07/12/2012,Accommodation Service Charges,Neighbourhoods,GVA GRIMLEY LTD,,Large,,5106186864,ERDF NW LDU Valuation Services to Dec 13,B1 2JB,"4,200.00"
Communities & Local Government,DCLG,07/12/2012,Agency Staff,Finance & Corporate Services,MANPOWER UK LTD,,Large,,5106186750,Temp information specialist,UB8 1AB,789.23
Communities & Local Government,DCLG,07/12/2012,Agency Staff,Finance & Corporate Services,MANPOWER UK LTD,,Large,,5106186789,Temp information specialist,UB8 1AB,884.89
Communities & Local Government,DCLG,07/12/2012,Building Renovations,Finance & Corporate Services,E C HARRIS LLP,,Large,,5106186938,"Pilot Proj reloc of CPS,CAS,VOA - com 64",N1 9AB,"-23,850.00"
Communities & Local Government,DCLG,07/12/2012,Building Renovations,Finance & Corporate Services,E C HARRIS LLP,,Large,,5106186939,"Pilot Proj reloc of CPS,CAS,VOA - com 64",N1 9AB,"23,850.00"
Communities & Local Government,DCLG,07/12/2012,Building Renovations,Finance & Corporate Services,OVERBURY PLC,,Large,,5106186940,Works relating to TQH project 064,W1T 3EW,"-279,118.31"
Communities & Local Government,DCLG,07/12/2012,Building Renovations,Finance & Corporate Services,OVERBURY PLC,,Large,,5106186941,Works relating to TQH project 064,W1T 3EW,"279,118.31"
Communities & Local Government,DCLG,07/12/2012,Building Renovations,Finance & Corporate Services,TAYLOR WOODROW CONSTRUCTION,,Large,,5106186876,Due diligence work at Temple Quay House,WD24 4WW,"42,181.72",
Communities & Local Government,DCLG,07/12/2012,Current (non AEF) Grants to Local Authorities,Finance & Corporate Services,DURHAM & DARLINGTON FIRE RESCUE,,Public Bodies,,2100218684,,DH1 5UE,"123,141.00",Yes
Communities & Local Government,DCLG,07/12/2012,Current (non AEF) Grants to Local Authorities,Finance & Corporate Services,GREATER LONDON AUTHORITY,,Large,,2100218683,Grant of the Regional Fire Control Centre Dec 2012,SE10 1AP,"224,731.00",Yes
Communities & Local Government,DCLG,07/12/2012,Current (non AEF) Grants to Local Authorities,Finance & Corporate Services,GREATER MANCHESTER FIRE & RESCUE,,Public Bodies,,2100218682,Grant of the Regional Fire Control Centre Dec 2012,M27 8US,"146,172.60",Yes
Communities & Local Government,DCLG,07/12/2012,Current (non AEF) Grants to Local Authorities,Localism,CALDERDALE MBC,,,,2600061797,LA cost incurred in connection with Bellwin Scheme,HX1 1YP,"76,668.00",Yes
Communities & Local Government,DCLG,07/12/2012,Current (non AEF) Grants to Local Authorities,Localism,GATESHEAD MBC,,,,2600061795,LA cost incurred in connection with Bellwin Scheme,NE8 1HH,"393,939.00",Yes
Communities & Local Government,DCLG,07/12/2012,Current (non AEF) Grants to Local Authorities,Localism,HEREFORDSHIRE DISTRICT COUNCIL,,,,2600061796,LA cost incurred in connection with Bellwin Scheme,HR1 1SH,"218,499.00",Yes
Communities & Local Government,DCLG,07/12/2012,Current (non AEF) Grants to Local Authorities,Neighbourhoods,FOREST HEATH DC,,,,2300001938,Payment Recovery,IP28 7EY,"-10,000.00",Yes
Communities & Local Government,DCLG,07/12/2012,Current Grants to Non Profit Bodies,Neighbourhoods,ASSOCIATION TOWN CENTRE MANAGEMENT,,Micro,,2100224858,1st &2nd claims Support Package Town team Partners,SW1H 9BT,"91,012.00",Yes
Communities & Local Government,DCLG,07/12/2012,Electricity,Finance & Corporate Services,EDF ENERGY 1 LIMITED,,Large,,5106186856,Bridge House Electricity 2012-13,PL3 5XQ,"3,331.87",
Communities & Local Government,DCLG,07/12/2012,Electricity,Finance & Corporate Services,EDF ENERGY 1 LIMITED,,Large,,5106186857,EoE Waterbeach Electricity 12-13 0% VAT,PL3 5XQ,19.8,
Communities & Local Government,DCLG,07/12/2012,Electricity,Finance & Corporate Services,EDF ENERGY 1 LIMITED,,Large,,5106186857,EoE Waterbeach Electricity 2012-13,PL3 5XQ,"5,410.46",
Communities & Local Government,DCLG,07/12/2012,Electricity,Finance & Corporate Services,EDF ENERGY 1 LIMITED,,Large,,5106186877,St Philips Place Electricity Oct 12-13,PL3 5XQ,"7,864.62",
Communities & Local Government,DCLG,07/12/2012,Fixed Maintenance,Finance & Corporate Services,E C HARRIS LLP,,Large,,5106186826,PAMU Estates Proj Management to Feb 14,N1 9AB,"11,948.72",
Communities & Local Government,DCLG,07/12/2012,Fixed Maintenance,Finance & Corporate Services,E C HARRIS LLP,,Large,,5106186828,Project Review of Babcock FM Contract,N1 9AB,"6,676.57",
Communities & Local Government,DCLG,07/12/2012,IT - Service Contracts,Finance & Corporate Services,SWIRRL IT LIMITED,,Micro,,5106186227,remote Application Development,FK7 7WT,"10,388.81",
Communities & Local Government,DCLG,07/12/2012,IT - Service Contracts,Localism,AIRWAVE SOLUTIONS LTD,,Large,,5106186748,Remaining Phase A-C Charges 10/11,SL1 2EJ,"103,284.00"
Communities & Local Government,DCLG,07/12/2012,Legal Fees,Finance & Corporate Services,DLA PIPER UK LLP,,Large,,5106186754,Legal Property Services Commission,S1 2JX,"1,780.80"
Communities & Local Government,DCLG,07/12/2012,Legal Fees,Finance & Corporate Services,DLA PIPER UK LLP,,Large,,5106186861,Legal Property Services Commission,S1 2JX,"1,495.20"
Communities & Local Government,DCLG,07/12/2012,Legal Fees,Finance & Corporate Services,DLA PIPER UK LLP,,Large,,5106186865,Legal Property Services Commission,S1 2JX,"1,327.20"
Communities & Local Government,DCLG,07/12/2012,Legal Fees,Finance & Corporate Services,DLA PIPER UK LLP,,Large,,5106186226,Legal Property Services Commission,LS1 4BY,504
Communities & Local Government,DCLG,07/12/2012,Legal Fees,Finance & Corporate Services,DLA PIPER UK LLP,,Large,,5106186804,Legal Property Services Commission,LS1 4BY,"1,310.40"
Communities & Local Government,DCLG,07/12/2012,Legal Fees,Finance & Corporate Services,DLA PIPER UK LLP,,Large,,5106186853,Legal Property Services Commission,LS1 4BY,885.6
Communities & Local Government,DCLG,07/12/2012,Legal Fees,Finance & Corporate Services,DLA PIPER UK LLP,,Large,,5106186854,Legal Property Services Commission,LS1 4BY,351.41
Communities & Local Government,DCLG,07/12/2012,Legal Fees,Finance & Corporate Services,DLA PIPER UK LLP,,Large,,5106186855,Legal Property Services Commission,LS1 4BY,352.8
Communities & Local Government,DCLG,07/12/2012,Legal Fees,Finance & Corporate Services,DLA PIPER UK LLP,,Large,,5106186860,Legal Property Services Commission,LS1 4BY,302.4
Communities & Local Government,DCLG,07/12/2012,Legal Fees,Finance & Corporate Services,SNR DENTON UK  LLP,,Large,,5106186840,(STA) FireContol Litigation & Property,EC4M 7WS,"1,945.80"
Communities & Local Government,DCLG,07/12/2012,Office Machinery (<5000),Localism,BANNER BUSINESS SUPPLIES LTD,,Large,,5106186713,DELWEEKLY Busicom BS7938 Calculator,NR3 1PD,1.48
Communities & Local Government,DCLG,07/12/2012,Office Supplies,Finance & Corporate Services,BANNER BUSINESS SUPPLIES LTD,,Large,,5106186838,Optoma EX7155E 6005885,NR3 1PD,778.5
Communities & Local Government,DCLG,07/12/2012,Office Supplies,Localism,BANNER BUSINESS SUPPLIES LTD,,Large,,5106186713,DELWEEKLY Banner A-Z Economy Expanding F,NR3 1PD,8.45
Communities & Local Government,DCLG,07/12/2012,Office Supplies,Localism,BANNER BUSINESS SUPPLIES LTD,,Large,,5106186713,DELWEEKLY Banner A4 Recycled Copier Pape,NR3 1PD,272.16
Communities & Local Government,DCLG,07/12/2012,Office Supplies,Localism,BANNER BUSINESS SUPPLIES LTD,,Large,,5106186713,DELWEEKLY Banner Brilliant Page Marker 3,NR3 1PD,0.62
Communities & Local Government,DCLG,07/12/2012,Office Supplies,Localism,BANNER BUSINESS SUPPLIES LTD,,Large,,5106186713,DELWEEKLY Banner Permanent Bullet Tip Ma,NR3 1PD,1.58
Communities & Local Government,DCLG,07/12/2012,Office Supplies,Localism,BANNER BUSINESS SUPPLIES LTD,,Large,,5106186713,DELWEEKLY Banner Self Stick Notes 38 x 5,NR3 1PD,3.46
Communities & Local Government,DCLG,07/12/2012,Office Supplies,Localism,BANNER BUSINESS SUPPLIES LTD,,Large,,5106186713,DELWEEKLY Banner Self Stick Notes 76 x 1,NR3 1PD,10.66
Communities & Local Government,DCLG,07/12/2012,Office Supplies,Localism,BANNER BUSINESS SUPPLIES LTD,,Large,,5106186713,DELWEEKLY Banner Self Stick Notes 76 x 7,NR3 1PD,6.77
Communities & Local Government,DCLG,07/12/2012,Office Supplies,Localism,BANNER BUSINESS SUPPLIES LTD,,Large,,5106186713,DELWEEKLY Banner Transparent Page Marker,NR3 1PD,14.21
Communities & Local Government,DCLG,07/12/2012,Office Supplies,Localism,BANNER BUSINESS SUPPLIES LTD,,Large,,5106186713,DELWEEKLY Counsel Notebook A4 80 Page Ru,NR3 1PD,7.92
Communities & Local Government,DCLG,07/12/2012,Office Supplies,Localism,BANNER BUSINESS SUPPLIES LTD,,Large,,5106186713,DELWEEKLY Himark Permanent Bullet Tip Ma,NR3 1PD,3.1
Communities & Local Government,DCLG,07/12/2012,Office Supplies,Localism,BANNER BUSINESS SUPPLIES LTD,,Large,,5106186713,DELWEEKLY Stylo Stik Ballpoint Pen Black,NR3 1PD,3.77
Communities & Local Government,DCLG,07/12/2012,Office Supplies,Localism,BANNER BUSINESS SUPPLIES LTD,,Large,,5106186713,DELWEEKLY Stylo Stik Ballpoint Pen Blue,NR3 1PD,3.77
Communities & Local Government,DCLG,07/12/2012,Office Supplies,Localism,BANNER BUSINESS SUPPLIES LTD,,Large,,5106186713,DELWEEKLY Stylo Stik Ballpoint Pen Red,NR3 1PD,3.77
Communities & Local Government,DCLG,07/12/2012,Office Supplies,Neighbourhoods,BANNER BUSINESS SUPPLIES LTD,,Large,,5106186841,Blue Leathergrain covers 9231011,NR3 1PD,179.28
Communities & Local Government,DCLG,07/12/2012,Office Supplies,Neighbourhoods,BANNER BUSINESS SUPPLIES LTD,,Large,,5106186841,Clear Plastic covers 1020394,NR3 1PD,83.58
Communities & Local Government,DCLG,07/12/2012,Printing,Finance & Corporate Services,STATIONERY OFFICE LTD,,Large,,5106186847,Non-Vatable,NR3 1PD,208
Communities & Local Government,DCLG,07/12/2012,Printing,Finance & Corporate Services,STATIONERY OFFICE LTD,,Large,,5106186847,VAT chargeable,NR3 1PD,130
Communities & Local Government,DCLG,07/12/2012,Printing,Finance & Corporate Services,STATIONERY OFFICE LTD,,Large,,5106186848,Non-Vatable,NR3 1PD,430
Communities & Local Government,DCLG,07/12/2012,Printing,Finance & Corporate Services,STATIONERY OFFICE LTD,,Large,,5106186848,VAT chargeable,NR3 1PD,130
Communities & Local Government,DCLG,07/12/2012,Printing,Finance & Corporate Services,STATIONERY OFFICE LTD,,Large,,5106186851,Non-Vatable,NR3 1PD,377.25
Communities & Local Government,DCLG,07/12/2012,Printing,Finance & Corporate Services,STATIONERY OFFICE LTD,,Large,,5106186851,VAT chargeable,NR3 1PD,130
Communities & Local Government,DCLG,07/12/2012,Printing,Finance & Corporate Services,STATIONERY OFFICE LTD,,Large,,5106186867,Non-Vatable,NR3 1PD,191.25
Communities & Local Government,DCLG,07/12/2012,Printing,Finance & Corporate Services,STATIONERY OFFICE LTD,,Large,,5106186867,VAT chargeable,NR3 1PD,130
Communities & Local Government,DCLG,07/12/2012,Printing,Finance & Corporate Services,STATIONERY OFFICE LTD,,Large,,5106186869,Non-Vatable,NR3 1PD,260.25
Communities & Local Government,DCLG,07/12/2012,Printing,Finance & Corporate Services,STATIONERY OFFICE LTD,,Large,,5106186869,VAT chargeable,NR3 1PD,130
Communities & Local Government,DCLG,07/12/2012,Printing,Finance & Corporate Services,WILLIAMS LEA LIMITED,,Large,,5106186852,Year 1 Print Services,W2 6LG,"12,910.66"
Communities & Local Government,DCLG,07/12/2012,Printing,Finance & Corporate Services,WILLIAMS LEA LIMITED,,Large,,5106186852,Year 1 Print Services (0% VAT),W2 6LG,"15,273.66"
Communities & Local Government,DCLG,07/12/2012,Professional services,Neighbourhoods,BRITISH BOARD AGREMENT,,Medium,,5106186830,Memberships 0% Vat,WD2 7NG,"1,500.00"
Communities & Local Government,DCLG,07/12/2012,Professional services,Neighbourhoods,VALUATION OFFICE AGENCY,,Public Bodies,,5106186866,Financial Checks/Fees 2011/12,W1B 5BU,"1,160.00"
Communities & Local Government,DCLG,07/12/2012,Publicity,Finance & Corporate Services,GORKANA GROUP LTD,,Large,,5106186726,Press Cuttings,EC1Y 8QE,"2,606.32"
Communities & Local Government,DCLG,07/12/2012,Rent,Finance & Corporate Services,LEAFRANGE LIMITED,,Micro,,5106186873,SW Taunton Rent 2012-13,E14 5LQ,"418,265.83"
Communities & Local Government,DCLG,07/12/2012,Research,Finance & Corporate Services,NATURAL ENVIRONMENT RESEARCH COUNCI,,Large,,5106186805,Living with Environmental Change,SN2 1EU,"25,000.00"
Communities & Local Government,DCLG,07/12/2012,Research,Finance & Corporate Services,THREE DRAGONS (LC) LTD,,Micro,,5106186811,impact of S106 Planning,BA21 3BZ,"22,860.00"
Communities & Local Government,DCLG,07/12/2012,Research,Neighbourhoods,BRITISH BOARD AGREMENT,,Medium,,5106186830,Quartely Report,WD2 7NG,"8,690.40"
Communities & Local Government,DCLG,07/12/2012,Software Licences,Finance & Corporate Services,TRUSTMARQUE SOLUTIONS LTD,,Medium,,5106186834,@ Risk for Excel Industrial Version,YO32 9WN,"18,367.97"
Communities & Local Government,DCLG,07/12/2012,Steady State Service Provision,Neighbourhoods,ASSOCIATION TOWN CENTRE MANAGEMENT,,Micro,,5106186837,7 workshops (Portas),SW1H 9BT,"13,174.94"
Communities & Local Government,DCLG,07/12/2012,Training,Finance & Corporate Services,CAPITA BUSINESS SERVICES LTD,,Large,,5106186636,Fast Stream training (New entry courses),DL1 9HN,483
Communities & Local Government,DCLG,07/12/2012,Training,Finance & Corporate Services,CAPITA BUSINESS SERVICES LTD,,Large,,5106186636,CSL Training - policy skills,DL1 9HN,138
Communities & Local Government,DCLG,07/12/2012,Training,Finance & Corporate Services,MEDIA TRAINING LTD,,Small,,5106186832,InDesign CS6: Introduction,WC1X 8QJ,435
Communities & Local Government,DCLG,07/12/2012,Training,Localism,CAPITA BUSINESS SERVICES LTD,,Large,,5106186636,SCS Policy Event 29 Nov 2012 - P Rowsell,DL1 9HN,46
Communities & Local Government,DCLG,07/12/2012,Travel and Subsistence Account,Finance & Corporate Services,GOVERNMENT CAR & DESPATCH AGENCY,,Public Bodies,,5106185624,Ministerial Cars,SW8 5AX,486
Communities & Local Government,DCLG,07/12/2012,Travel and Subsistence Account,Finance & Corporate Services,GOVERNMENT CAR & DESPATCH AGENCY,,Public Bodies,,5106186696,Ministerial Cars,SW8 5AX,291
Communities & Local Government,DCLG,07/12/2012,Vehicle Maintenance,Localism,BABCOCK CRITICAL SERVICES LTD,,Large,,5106186858,Planned Vehicle Maintenance 12/13,NG15 0DR,"629,535.82"
Communities & Local Government,DCLG,07/12/2012,Work In Progress Pre-Cert 40373 Spend,Neighbourhoods,CALDERDALE METROPOLITAN BOROUGH COU,,Large,,7600003886,ERDF Claim - 18 - P2-YH,HX1 1UN,"32,699.80"
Communities & Local Government,DCLG,07/12/2012,Work In Progress Pre-Cert 40373 Spend,Neighbourhoods,CARBON LIMITING TECHNOLOGIES LTD,,Small,,7600003863,ERDF Claim - 25 - P1,GU51 5SY,"9,445.01"
Communities & Local Government,DCLG,07/12/2012,Work In Progress Pre-Cert 40373 Spend,Neighbourhoods,CHAMBER OF COMMERCE (BARNSLEY&ROTH),,Small,,7600003876,ERDF Claim - 11 - P3-YH,S60 1OX,"33,664.37"
Communities & Local Government,DCLG,07/12/2012,Work In Progress Pre-Cert 40373 Spend,Neighbourhoods,CHAMBER OF COMMERCE (BARNSLEY&ROTH),,Small,,7600003877,ERDF Claim - 11 - P3-SY,S60 1OX,"23,853.82"
Communities & Local Government,DCLG,07/12/2012,Work In Progress Pre-Cert 40373 Spend,Neighbourhoods,COMMUNITY FOUNDATION FOR LEEDS,Yes,Micro,,7600003866,ERDF Claim - 6 - P3-SY,LS1 2TE,"14,839.72"
Communities & Local Government,DCLG,07/12/2012,Work In Progress Pre-Cert 40373 Spend,Neighbourhoods,COMMUNITY FOUNDATION FOR LEEDS,Yes,Micro,,7600003867,ERDF Claim - 6 - P3-YH,LS1 2TE,"13,156.31"
Communities & Local Government,DCLG,07/12/2012,Work In Progress Pre-Cert 40373 Spend,Neighbourhoods,COMMUNITY FOUNDATION FOR LEEDS,Yes,Micro,,7600003881,ERDF Claim - 5 - P3-SY,LS1 2TE,"1,654.80"
Communities & Local Government,DCLG,07/12/2012,Work In Progress Pre-Cert 40373 Spend,Neighbourhoods,COMMUNITY FOUNDATION FOR LEEDS,Yes,Micro,,7600003882,ERDF Claim - 5 - P3-YH,LS1 2TE,"7,092.79"
Communities & Local Government,DCLG,07/12/2012,Work In Progress Pre-Cert 40373 Spend,Neighbourhoods,DONCASTER METROPOLITAN BC,,,,7600003864,ERDF Claim - 11 - P5-SY,DN1 1DE,"17,793.73"
Communities & Local Government,DCLG,07/12/2012,Work In Progress Pre-Cert 40373 Spend,Neighbourhoods,DONCASTER METROPOLITAN BC,,,,7600003868,ERDF Claim - 12 - P5-SY,DN1 1DE,"15,489.16"
Communities & Local Government,DCLG,07/12/2012,Work In Progress Pre-Cert 40373 Spend,Neighbourhoods,DONCASTER METROPOLITAN BC,,,,7600003869,ERDF Claim - 13 - P5-SY,DN1 1DE,"16,972.89"
Communities & Local Government,DCLG,07/12/2012,Work In Progress Pre-Cert 40373 Spend,Neighbourhoods,DONCASTER METROPOLITAN BC,,,,7600003870,ERDF Claim - 14 - P5-SY,DN1 1DE,"13,231.67"
Communities & Local Government,DCLG,07/12/2012,Work In Progress Pre-Cert 40373 Spend,Neighbourhoods,DONCASTER METROPOLITAN BC,,,,7600003871,ERDF Claim - 15 - P5-SY,DN1 1DE,"12,616.59"
Communities & Local Government,DCLG,07/12/2012,Work In Progress Pre-Cert 40373 Spend,Neighbourhoods,DONCASTER METROPOLITAN BC,,,,7600003872,ERDF Claim - 16 - P5-SY,DN1 1DE,"11,487.31"
Communities & Local Government,DCLG,07/12/2012,Work In Progress Pre-Cert 40373 Spend,Neighbourhoods,DONCASTER METROPOLITAN BC,,,,7600003873,ERDF Claim - 17 - P5-SY,DN1 1DE,"9,447.64"
Communities & Local Government,DCLG,07/12/2012,Work In Progress Pre-Cert 40373 Spend,Neighbourhoods,DONCASTER METROPOLITAN BC,,,,7600003874,ERDF Claim - 18 - P5-SY,DN1 1DE,"9,866.08"
Communities & Local Government,DCLG,07/12/2012,Work In Progress Pre-Cert 40373 Spend,Neighbourhoods,DONCASTER METROPOLITAN BC,,,,7600003875,ERDF Claim - 19 - P5-SY,DN1 1DE,"11,612.39"
Communities & Local Government,DCLG,07/12/2012,Work In Progress Pre-Cert 40373 Spend,Neighbourhoods,DONCASTER METROPOLITAN BC,,,,7600003878,ERDF Claim - 20 - P5-SY,DN1 1DE,"6,444.98"
Communities & Local Government,DCLG,07/12/2012,Work In Progress Pre-Cert 40373 Spend,Neighbourhoods,HUDDERSFIELD & DIST TEXTILE TRAIN'G,,,,7600003883,ERDF Claim - 41 - P1-YH,HD2 1YF,"11,710.91"
Communities & Local Government,DCLG,07/12/2012,Work In Progress Pre-Cert 40373 Spend,Neighbourhoods,HUDDERSFIELD & DIST TEXTILE TRAIN'G,,,,7600003884,ERDF Claim - 41 - P1-SY,HD2 1YF,"3,518.81"
Communities & Local Government,DCLG,07/12/2012,Work In Progress Pre-Cert 40373 Spend,Neighbourhoods,INSTITUTE FOR SUSTAINABILITY,,Small,,7600003865,ERDF Claim - 22 - P1,N1 6AH,"35,113.30"
Communities & Local Government,DCLG,07/12/2012,Work In Progress Pre-Cert 40373 Spend,Neighbourhoods,SCARBOROUGH BOROUGH COUNCIL,,,,7600003885,ERDF Claim - 19 - P3-YH,YO11 2HG,"21,874.64"
Communities & Local Government,DCLG,07/12/2012,Work In Progress Pre-Cert 40373 Spend,Neighbourhoods,SHEFFIELD HALLAM UNIVERSITY,,,,7600003879,ERDF Claim - 47 - P1-SY,S1 1WB,"11,152.32"
Communities & Local Government,DCLG,07/12/2012,Work In Progress Pre-Cert 40373 Spend,Neighbourhoods,SHEFFIELD HALLAM UNIVERSITY,,,,7600003880,ERDF Claim - 47 - P1-YH,S1 1WB,"3,083.44"
Communities & Local Government,DCLG,10/12/2012,Agency Staff,Finance & Corporate Services,PREMIER I T GROUP LTD,,Medium,,5106186903,Supply of 1 AO - 6 months - per day,WC1B 5AL,469.26,
Communities & Local Government,DCLG,10/12/2012,Agency Staff,Finance & Corporate Services,PREMIER I T GROUP LTD,,Medium,,5106186932,Supplyof 1 AO - 6 months - per day,WC1B 5AL,782.1,
Communities & Local Government,DCLG,10/12/2012,Agency Staff,Localism,MANPOWER UK LTD,,Large,,5106186895,Agency Staff,UB8 1AB,"1,057.92",
Communities & Local Government,DCLG,10/12/2012,Building Renovations,Finance & Corporate Services,E C HARRIS LLP,,Large,,5106186942,Cond feasability study Grd FLR&BASE - 66,N1 9AB,"4,830.00",
Communities & Local Government,DCLG,10/12/2012,Catering,Neighbourhoods,BUCKNALLS CATERING,,Small,,5106186892,BRAC Strategy Day,WD25 9XX,324,
Communities & Local Government,DCLG,10/12/2012,Electricity,Finance & Corporate Services,BRITISH GAS TRADING LIMITED,,Large,,5106186924,Hempstead House Electricity,OX4 2JY,"5,004.54",
Communities & Local Government,DCLG,10/12/2012,Electricity,Finance & Corporate Services,BRITISH GAS TRADING LIMITED,,Large,,5106186925,Hempstead House Electricity,OX4 2JY,"11,179.74",
Communities & Local Government,DCLG,10/12/2012,Fixed Maintenance,Localism,ACCESS DISPLAYS LTD,,Small,,5106186891,Panel and Poles from Access,SN5 7YT,663.6,
Communities & Local Government,DCLG,10/12/2012,Grant in Aid to NDPBs (non budget),Localism,COMMISSION LOCAL ADMINISTRATION,,,,2100224691,GIA -Ombudsman service plus DfE payment,SW1P 4QP,"1,031,000.00",Yes
Communities & Local Government,DCLG,10/12/2012,IT - Service Contracts,Finance & Corporate Services,PROCSERVE SHARED SERVICES LTD,,Large,,5106186913,32mths subscriptions Jul 2011-Jul 2014,SW1W 9SR,"6,176.64",
Communities & Local Government,DCLG,10/12/2012,IT - Service Contracts,Finance & Corporate Services,PTFS EUROPE LTD,,Micro,,5106186914,Digital library hosting & support 12-13,W1S 1DX,"8,340.00",
Communities & Local Government,DCLG,10/12/2012,IT - Service Contracts,Finance & Corporate Services,STERIA LIMITED,,Large,,5106186908,CAN 61 MFD (Regional Offices),M14 0WN,"17,675.99",
Communities & Local Government,DCLG,10/12/2012,IT - Service Contracts,Finance & Corporate Services,STERIA LTD,,Large,,5106186471,Project OSCAR - financial approval for t,M14 0WN,"9,902.54",
Communities & Local Government,DCLG,10/12/2012,IT - Service Contracts,Finance & Corporate Services,STERIA LTD,,Large,,5106186598,Citrix Verson 9 testing for OACAR,M14 0WN,"1,296.00",
Communities & Local Government,DCLG,10/12/2012,IT - Service Contracts,Localism,AIRWAVE SOLUTIONS LTD,,Large,,5106186904,Phase A England 2012/13,SL1 2EJ,"33,787.00",
Communities & Local Government,DCLG,10/12/2012,IT - Service Contracts,Localism,AIRWAVE SOLUTIONS LTD,,Large,,5106186904,Phase B England 2012/13,SL1 2EJ,"6,950.00",
Communities & Local Government,DCLG,10/12/2012,IT - Service Contracts,Localism,AIRWAVE SOLUTIONS LTD,,Large,,5106186904,Phase C England (MDT1A) 2012/13,SL1 2EJ,"3,548.76"
Communities & Local Government,DCLG,10/12/2012,IT - Service Contracts,Localism,AIRWAVE SOLUTIONS LTD,,Large,,5106186904,Phase A Wales 2012/13,SL1 2EJ,"5,216.00"
Communities & Local Government,DCLG,10/12/2012,IT - Service Contracts,Localism,AIRWAVE SOLUTIONS LTD,,Large,,5106186904,Phase B Wales 2012/13,SL1 2EJ,"1,022.00"
Communities & Local Government,DCLG,10/12/2012,IT - Service Contracts,Localism,AIRWAVE SOLUTIONS LTD,,Large,,5106186904,Phase A Scotland 2012/13,SL1 2EJ,"9,424.00"
Communities & Local Government,DCLG,10/12/2012,IT - Service Contracts,Localism,AIRWAVE SOLUTIONS LTD,,Large,,5106186904,Phase B Scotland 2012/13,SL1 2EJ,50
Communities & Local Government,DCLG,10/12/2012,IT - Service Contracts,Localism,STERIA LTD,,Large,,5106186937,NR00404 - Firebuy Filing,M14 0WN,484.62
Communities & Local Government,DCLG,10/12/2012,Management Consultancy,Neighbourhoods,AMEC ENVIRONMENT & INFRASTRUCTURE,,Large,,5106186881,Strategical Environmental Assessment,NE3 3PX,"62,901.30"
Communities & Local Government,DCLG,10/12/2012,Office Supplies,Finance & Corporate Services,BANNER BUSINESS SUPPLIES LTD,,Large,,5106186712,DELWEEKLY Banner A4 Cut Flush Polypropyl,NR3 1PD,11.94
Communities & Local Government,DCLG,10/12/2012,Office Supplies,Finance & Corporate Services,BANNER BUSINESS SUPPLIES LTD,,Large,,5106186712,DELWEEKLY Banner A4 Recycled Copier Pape,NR3 1PD,272.16
Communities & Local Government,DCLG,10/12/2012,Office Supplies,Finance & Corporate Services,BANNER BUSINESS SUPPLIES LTD,,Large,,5106186907,10 part dividers A4 size 9383005,NR3 1PD,5.76
Communities & Local Government,DCLG,10/12/2012,Office Supplies,Finance & Corporate Services,BANNER BUSINESS SUPPLIES LTD,,Large,,5106186907,A3 Paper 2043209,NR3 1PD,54.31
Communities & Local Government,DCLG,10/12/2012,Office Supplies,Finance & Corporate Services,BANNER BUSINESS SUPPLIES LTD,,Large,,5106186907,A3 card calendars 9061272,NR3 1PD,2.76
Communities & Local Government,DCLG,10/12/2012,Office Supplies,Finance & Corporate Services,BANNER BUSINESS SUPPLIES LTD,,Large,,5106186907,A4 Day to a page diaries 9061270,NR3 1PD,9.72
Communities & Local Government,DCLG,10/12/2012,Office Supplies,Finance & Corporate Services,BANNER BUSINESS SUPPLIES LTD,,Large,,5106186907,A4 Paper 9150050,NR3 1PD,272.16
Communities & Local Government,DCLG,10/12/2012,Office Supplies,Finance & Corporate Services,BANNER BUSINESS SUPPLIES LTD,,Large,,5106186907,A5 Week to view diaries 9061269,NR3 1PD,5.4
Communities & Local Government,DCLG,10/12/2012,Office Supplies,Finance & Corporate Services,BANNER BUSINESS SUPPLIES LTD,,Large,,5106186907,A5 card calendars 9062175,NR3 1PD,1.44
Communities & Local Government,DCLG,10/12/2012,Office Supplies,Finance & Corporate Services,BANNER BUSINESS SUPPLIES LTD,,Large,,5106186907,Batteries size AA 1320101,NR3 1PD,17.86,
Communities & Local Government,DCLG,10/12/2012,Office Supplies,Finance & Corporate Services,BANNER BUSINESS SUPPLIES LTD,,Large,,5106186907,Batteries size D 1320104,NR3 1PD,3.53,
Communities & Local Government,DCLG,10/12/2012,Office Supplies,Finance & Corporate Services,BANNER BUSINESS SUPPLIES LTD,,Large,,5106186907,Sasco Wall planners 2401283,NR3 1PD,30.42,
Communities & Local Government,DCLG,10/12/2012,Printing,Finance & Corporate Services,STATIONERY OFFICE LTD,,Large,,5106186918,Non-Vatable,NR3 1PD,934.43,
Communities & Local Government,DCLG,10/12/2012,Printing,Localism,STATIONERY OFFICE LTD,,Large,,5106186933,LGF Bill Documents (multiple),NR3 1PD,390,
Communities & Local Government,DCLG,10/12/2012,Recruitment,Finance & Corporate Services,PAVILION PUBLISHING BRIGHTON LTD,,Medium,,5106186890,Banner Advert for Chief Fire & Rescue Ad,BN2 3RL,600,
Communities & Local Government,DCLG,10/12/2012,Research,Finance & Corporate Services,ORDNANCE SURVEY,,Public Bodies,,2100224999,COSTINGS FOR SUPPLY OF LUC DATA,SO16 0AS,"-25,318.32",
Communities & Local Government,DCLG,10/12/2012,Research,Finance & Corporate Services,ORDNANCE SURVEY,,Public Bodies,,5106184781,COSTINGS FOR SUPPLY OF LUC DATA,SO16 0AS,"25,318.32",
Communities & Local Government,DCLG,10/12/2012,Research,Neighbourhoods,BUILDING RESEARCH ESTABLISHMENT,,Large,,5106186883,M2 Complete WorkPack.3Draft Report,WD25 9XX,"22,624.20",
Communities & Local Government,DCLG,10/12/2012,Services provided by other Govt Orgs,Neighbourhoods,VALUATION OFFICE AGENCY,,Public Bodies,,5106186882,RTB VOA Valuation 12/13,W1B 5BU,"92,769.00",Yes
Communities & Local Government,DCLG,10/12/2012,Steady State Service Provision,Localism,MR CHRIS J WARD,,,,2100224926,C WARD NBO ONE OFF PAYMENT,,209.03,
Communities & Local Government,DCLG,10/12/2012,Telephone call costs,Finance & Corporate Services,DAMOVO UK LTD,,Large,,5106186917,Telephony Charges,RH12 4QP,"1,229.51",
Communities & Local Government,DCLG,10/12/2012,Travel and Subsistence Account,Localism,MR CHRIS J WARD,,,,2100224926,C WARD NBO ONE OFF PAYMENT,,43.65,
Communities & Local Government,DCLG,10/12/2012,Water,Finance & Corporate Services,SEVERN TRENT WATER LTD (MISC INCOME,,Large,,2100225003,Aug 11 to March 12 Paradise Circ Water,CV3 9FL,"-1,583.96",
Communities & Local Government,DCLG,10/12/2012,Water,Finance & Corporate Services,SEVERN TRENT WATER LTD (MISC INCOME,,Large,,5106186886,Aug 11 to March 12 Paradise Circ Water,CV3 9FL,"1,583.96",
Communities & Local Government,DCLG,10/12/2012,Work In Progress Pre-Cert 40373 Spend,Neighbourhoods,ALLIA LTD,Yes,Micro,,7600003897,ERDF Claim - 20 - P3,CB1 2QF,"5,843.67",
Communities & Local Government,DCLG,10/12/2012,Work In Progress Pre-Cert 40373 Spend,Neighbourhoods,ASSOCIATION OF TOWN CENTRE MGT,,,,7600003896,ERDF Claim - 17 - P3,SW1H 9BT,"12,646.59"
Communities & Local Government,DCLG,10/12/2012,Work In Progress Pre-Cert 40373 Spend,Neighbourhoods,E FACTOR ENTERPRISE (NEL) LTD,,Small,,7600003891,ERDF Claim - 27 - P3-YH,DN34 5BQ,"140,811.55"
Communities & Local Government,DCLG,10/12/2012,Work In Progress Pre-Cert 40373 Spend,Neighbourhoods,NORTH EAST BUSINESS & INNOV CENTRE,,Small,,7600003889,ERDF Claim - 5 - P1,SR5 2TA,"17,859.75"
Communities & Local Government,DCLG,10/12/2012,Work In Progress Pre-Cert 40373 Spend,Neighbourhoods,NORTHERN PINETREE TRUST,,Micro,,7600003888,ERDF Claim - 9 - P2,DH3 2TD,"41,947.56"
Communities & Local Government,DCLG,10/12/2012,Work In Progress Pre-Cert 40373 Spend,Neighbourhoods,PRINCES TRUST,,,,7600003887,ERDF Claim - 11 - P2,NE11 0SR,"22,049.04"
Communities & Local Government,DCLG,10/12/2012,Work In Progress Pre-Cert 40373 Spend,Neighbourhoods,SCARBOROUGH BOROUGH COUNCIL,,,,7600003893,ERDF Claim - 20 - P3-YH,YO11 2HG,"20,099.27"
Communities & Local Government,DCLG,10/12/2012,Work In Progress Pre-Cert 40373 Spend,Neighbourhoods,UNIVERSITY OF LEEDS,,,,7600003890,ERDF Claim - 43 - P1-SY,LS2 9JT,"6,785.11"
Communities & Local Government,DCLG,10/12/2012,Work In Progress Pre-Cert 40373 Spend,Neighbourhoods,UNIVERSITY OF LEEDS,,,,7600003892,ERDF Claim - 43 - P1-YH,LS2 9JT,"15,415.36"
Communities & Local Government,DCLG,10/12/2012,Work In Progress Pre-Cert 40373 Spend,Neighbourhoods,UNIVERSITY OF LEEDS,,,,7600003894,ERDF Claim - 42 - P1-YH,LS2 9JT,"43,144.16"
Communities & Local Government,DCLG,10/12/2012,Work In Progress Pre-Cert 40373 Spend,Neighbourhoods,UNIVERSITY OF LEEDS,,,,7600003895,ERDF Claim - 42 - P1-SY,LS2 9JT,"25,093.12"
Communities & Local Government,DCLG,10/12/2012,Work In Progress Pre-Cert 40467 Spend,Neighbourhoods,ALLIA LTD,Yes,Micro,,7600003897,ERDF Claim - 20 - P3,CB1 2QF,"199,344.00"
Communities & Local Government,DCLG,10/12/2012,Work In Progress Pre-Cert 40467 Spend,Neighbourhoods,BARNSLEY METROPOLITAN BC,,Public Bodies,,2300001904,ERDF project - Enterprising Barnsley,S70 9OO,"-22,025.83"
Communities & Local Government,DCLG,11/12/2012,Accommodation Service Charges,Finance & Corporate Services,CANADA LIFE LTD,,Large,,5106187012,SE RCC Service Charge 2012/13,EC3V 9JU,939
Communities & Local Government,DCLG,11/12/2012,Agency Staff,Finance & Corporate Services,SBS GROUP (UK) LTD,,Large,,5106186946,SAP Technical Support,EC1N 8TS,"5,141.70"
Communities & Local Government,DCLG,11/12/2012,Agency Staff,Finance & Corporate Services,SBS GROUP (UK) LTD,,Large,,5106186947,Contractor Business Support Team P2P,EC1N 8TS,"3,876.00"
Communities & Local Government,DCLG,11/12/2012,Agency Staff,Neighbourhoods,LOCAL PARTNERSHIPS LLP,,,,5106186993,Commercial Advisor,SW1P 3HZ,"22,640.40"
Communities & Local Government,DCLG,11/12/2012,Catering,Neighbourhoods,ESSEX DISABLED PEOPLES ASSCN LTD,Yes,Micro,,5106186956,LMC Meeting,SS4 1DQ,502.5,
Communities & Local Government,DCLG,11/12/2012,Current (non AEF) Grants to Local Authorities,Neighbourhoods,CENTRAL BEDFORDSHIRE COUNCIL,,Public Bodies,,2100224986,Town Team Partners funding,SG17 5TA,"20,000.00",Yes
Communities & Local Government,DCLG,11/12/2012,Electricity,Finance & Corporate Services,BRITISH GAS TRADING LIMITED,,Large,,5106186987,Paradise Circus Electricity 2012.-13,OX4 2JY,"3,769.98",
Communities & Local Government,DCLG,11/12/2012,Electricity,Finance & Corporate Services,BRITISH GAS TRADING LIMITED,,Large,,5106186992,Paradise Circus Electricity 11-12,OX4 2JY,802.13,
Communities & Local Government,DCLG,11/12/2012,Electricity,Finance & Corporate Services,EDF ENERGY 1 LIMITED,,Large,,5106187001,Queen St Electricity 2012-13,PL3 5XQ,"1,680.10",
Communities & Local Government,DCLG,11/12/2012,Fixed Maintenance,Finance & Corporate Services,PENTAGON PROTECTION PLC,,Small,,5106186998,EH - Remedial Works Canopy Glass,HP5 1NG,"13,124.40",
Communities & Local Government,DCLG,11/12/2012,IT - Service Contracts,Finance & Corporate Services,STERIA LIMITED,,Large,,5106186473,Purchase of Hemel Rack UPS replacement.,M14 0WN,"4,276.92",
Communities & Local Government,DCLG,11/12/2012,IT - Service Contracts,Finance & Corporate Services,STERIA LIMITED,,Large,,5106186474,PERC Batteries replacment & test,M14 0WN,"1,587.20",
Communities & Local Government,DCLG,11/12/2012,IT - Service Contracts,Finance & Corporate Services,STERIA LIMITED,,Large,,5106186915,Q109 - OpenText Premier Support for IPC,M14 0WN,"75,132.39",
Communities & Local Government,DCLG,11/12/2012,IT - Service Contracts,Finance & Corporate Services,STERIA LIMITED,,Large,,5106186981,MFDs for Eland House,M14 0WN,"28,236.80",
Communities & Local Government,DCLG,11/12/2012,IT - Service Contracts,Finance & Corporate Services,STERIA LIMITED,,Large,,5106187006,TSA LINK service Feb11 to Feb13,M14 0WN,"5,846.67",
Communities & Local Government,DCLG,11/12/2012,IT - Service Contracts,Finance & Corporate Services,STERIA LIMITED,,Large,,5106187008,Out of Hours Service Extension - 2012/13,M14 0WN,"9,177.27",
Communities & Local Government,DCLG,11/12/2012,IT - Service Contracts,Finance & Corporate Services,STERIA LIMITED,,Large,,5106187010,DCLG Link Service Feb 2011 to Feb 2013,M14 0WN,"13,444.08",
Communities & Local Government,DCLG,11/12/2012,IT - Service Contracts,Finance & Corporate Services,STERIA LIMITED,,Large,,5106187014,LOGASNet Service March 11 - Feb 13,M14 0WN,"48,586.71",
Communities & Local Government,DCLG,11/12/2012,IT - Service Contracts,Finance & Corporate Services,STERIA LIMITED,,Large,,5106187014,DCLG Link Service Feb 2011 to Feb 2013,M14 0WN,"325,947.38",
Communities & Local Government,DCLG,11/12/2012,IT - Service Contracts,Finance & Corporate Services,VERIZON UK LTD,,Large,,2100225045,WebRap hosting charges,RG2 6DA,"-41,441.27",
Communities & Local Government,DCLG,11/12/2012,IT - Service Contracts,Finance & Corporate Services,VERIZON UK LTD,,Large,,2100225046,WebRap hosting charges,RG2 6DA,"3,411.07"
Communities & Local Government,DCLG,11/12/2012,IT - Service Contracts,Finance & Corporate Services,VERIZON UK LTD,,Large,,2100225047,WebRap hosting charges,RG2 6DA,"-3,633.73"
Communities & Local Government,DCLG,11/12/2012,IT - Service Contracts,Finance & Corporate Services,VERIZON UK LTD,,Large,,5106186229,WebRap hosting charges,RG2 6DA,328.3
Communities & Local Government,DCLG,11/12/2012,IT - Service Contracts,Finance & Corporate Services,VERIZON UK LTD,,Large,,5106186230,WebRap hosting charges,RG2 6DA,"41,441.27"
Communities & Local Government,DCLG,11/12/2012,IT - Service Contracts,Finance & Corporate Services,VERIZON UK LTD,,Large,,5106187020,WebRap hosting charges,RG2 6DA,-328.3
Communities & Local Government,DCLG,11/12/2012,IT - Service Contracts,Finance & Corporate Services,VERIZON UK LTD,,Large,,5106187021,WebRap hosting charges,RG2 6DA,"3,633.73"
Communities & Local Government,DCLG,11/12/2012,IT - Service Contracts,Finance & Corporate Services,VERIZON UK LTD,,Large,,5106187044,WebRap hosting charges,RG2 6DA,"-3,411.07"
Communities & Local Government,DCLG,11/12/2012,IT - Service Contracts,Strategic Performance Team,VERIZON UK LTD,,Large,,5106187033,ARTEMIS hosting charges,RG2 6DA,328.3
Communities & Local Government,DCLG,11/12/2012,Legal Fees,Finance & Corporate Services,TREASURY SOLICITORS DEPT,,Public Bodies,,5106186966,Tsol Payments with 20%VAT,WC2B 4TS,416.1
Communities & Local Government,DCLG,11/12/2012,Legal Fees,Finance & Corporate Services,TREASURY SOLICITORS DEPT,,Public Bodies,,5106186969,Tsol Payments with 20%VAT,WC2B 4TS,"1,350.20"
Communities & Local Government,DCLG,11/12/2012,Office Supplies,Finance & Corporate Services,BANNER BUSINESS SUPPLIES LTD,,Large,,5106186622,182111C P40 1.9x15mm + CD shredder,NR3 1PD,"2,698.80"
Communities & Local Government,DCLG,11/12/2012,Office Supplies,Neighbourhoods,BANNER BUSINESS SUPPLIES LTD,,Large,,5106186996,DELWEEKLY Banner A4 Recycled Copier Pape,NR3 1PD,108.87
Communities & Local Government,DCLG,11/12/2012,Office Supplies,Neighbourhoods,BANNER BUSINESS SUPPLIES LTD,,Large,,5106186996,DELWEEKLY Banner A4 Recycled Side Spiral,NR3 1PD,20.76
Communities & Local Government,DCLG,11/12/2012,Office Supplies,Neighbourhoods,BANNER BUSINESS SUPPLIES LTD,,Large,,5106186996,DELWEEKLY Banner A5 Ruled Memo Pad 60gsm,NR3 1PD,20.88
Communities & Local Government,DCLG,11/12/2012,Office Supplies,Neighbourhoods,BANNER BUSINESS SUPPLIES LTD,,Large,,5106186996,DELWEEKLY Banner ABS Full Strip Stapler,NR3 1PD,5.83
Communities & Local Government,DCLG,11/12/2012,Office Supplies,Neighbourhoods,BANNER BUSINESS SUPPLIES LTD,,Large,,5106186996,DELWEEKLY Banner Brilliant Page Marker 3,NR3 1PD,2.34
Communities & Local Government,DCLG,11/12/2012,Office Supplies,Neighbourhoods,BANNER BUSINESS SUPPLIES LTD,,Large,,5106186996,DELWEEKLY Banner Correction Fluid 20ml W,NR3 1PD,3.89
Communities & Local Government,DCLG,11/12/2012,Office Supplies,Neighbourhoods,BANNER BUSINESS SUPPLIES LTD,,Large,,5106186996,DELWEEKLY Banner Envelope 324x229 Window,NR3 1PD,14.02
Communities & Local Government,DCLG,11/12/2012,Office Supplies,Neighbourhoods,BANNER BUSINESS SUPPLIES LTD,,Large,,5106186996,DELWEEKLY Banner Recycled Casebound Book,NR3 1PD,4.8
Communities & Local Government,DCLG,11/12/2012,Office Supplies,Neighbourhoods,BANNER BUSINESS SUPPLIES LTD,,Large,,5106186996,DELWEEKLY Banner Recycled Envelope 110x2,NR3 1PD,5.87
Communities & Local Government,DCLG,11/12/2012,Office Supplies,Neighbourhoods,BANNER BUSINESS SUPPLIES LTD,,Large,,5106186996,DELWEEKLY Banner Recycled Envelope 229 x,NR3 1PD,9.76
Communities & Local Government,DCLG,11/12/2012,Office Supplies,Neighbourhoods,BANNER BUSINESS SUPPLIES LTD,,Large,,5106186996,DELWEEKLY Banner Self Stick Notes 38 x 5,NR3 1PD,49.92
Communities & Local Government,DCLG,11/12/2012,Office Supplies,Neighbourhoods,BANNER BUSINESS SUPPLIES LTD,,Large,,5106186996,DELWEEKLY Banner Self Stick Notes 76 x 7,NR3 1PD,103.08
Communities & Local Government,DCLG,11/12/2012,Office Supplies,Neighbourhoods,BANNER BUSINESS SUPPLIES LTD,,Large,,5106186996,DELWEEKLY Himark Highlighter Assorted,NR3 1PD,2.63
Communities & Local Government,DCLG,11/12/2012,Office Supplies,Neighbourhoods,BANNER BUSINESS SUPPLIES LTD,,Large,,5106186996,DELWEEKLY Steinbeis Classic A3 Copier Pa,NR3 1PD,54.31
Communities & Local Government,DCLG,11/12/2012,Physical Storage,Finance & Corporate Services,TNT UK LIMITED,,Large,,5106186957,Offsite Records Storage,BL10 9GR,364.18
Communities & Local Government,DCLG,11/12/2012,Publications,Finance & Corporate Services,SWETS INFORMATION SERVICES LTD,,Large,,5106186983,VAT CHARGES,OX14 1UQ,501.55
Communities & Local Government,DCLG,11/12/2012,Rent,Finance & Corporate Services,CANADA LIFE LTD,,Large,,5106183269,SE RCC Rent 2012/13,EC3V 9JU,"-1,012.58"
Communities & Local Government,DCLG,11/12/2012,Rent,Finance & Corporate Services,CANADA LIFE LTD,,Large,,5106187012,SE RCC Rent 2012/13,EC3V 9JU,"435,600.00"
Communities & Local Government,DCLG,11/12/2012,Research,Finance & Corporate Services,ORDNANCE SURVEY,,Public Bodies,,5106187004,2011 12  Costs paid late for Research,SO16 0AS,"21,098.60"
Communities & Local Government,DCLG,11/12/2012,Subscriptions,Finance & Corporate Services,CAMBRIDGE UNIVERSITY,,Large,,5106186968,CSaP Fellowship Fee,CB2 1QA,600
Communities & Local Government,DCLG,11/12/2012,Telecoms equipment (non-capitalised),Finance & Corporate Services,DAMOVO UK LTD,,Large,,5106186228,Telephony - 8 new sites,RH12 4QP,"6,988.44"
Communities & Local Government,DCLG,11/12/2012,Telecoms equipment (non-capitalised),Finance & Corporate Services,DAMOVO UK LTD,,Large,,5106186985,Telephony - 8 new sites,RH12 4QP,"10,056.11"
Communities & Local Government,DCLG,11/12/2012,Telephone call costs,Finance & Corporate Services,DAMOVO UK LTD,,Large,,5106186988,Telephony Charges,RH12 4QP,"10,507.19"
Communities & Local Government,DCLG,11/12/2012,Telephone call costs,Finance & Corporate Services,DAMOVO UK LTD,,Large,,5106186989,Telephony Charges,RH12 4QP,"82,816.64"
Communities & Local Government,DCLG,11/12/2012,Telephone call costs,Finance & Corporate Services,DAMOVO UK LTD,,Large,,5106186994,Telephony Charges,RH12 4QP,"1,229.63"
Communities & Local Government,DCLG,11/12/2012,Training,Finance & Corporate Services,FIRST INTUITION,,Micro,,5106186945,CIMA Training,W1T 6AA,500
Communities & Local Government,DCLG,11/12/2012,Training,Finance & Corporate Services,SOUTHAMPTON UNIVERSITY,,Large,,2100225048,MSc in Official Statistics (prof dev),SO17 1BJ,"-2,100.00"
Communities & Local Government,DCLG,11/12/2012,Training,Finance & Corporate Services,SOUTHAMPTON UNIVERSITY,,Large,,5106186897,MSc in Official Statistics (prof dev),SO17 1BJ,"2,100.00"
Communities & Local Government,DCLG,11/12/2012,Water,Finance & Corporate Services,SOUTHERN WATER SERVS,,Large,,5106186990,SE Fareham RCC Water 2012-13,BN13 3NZ,559.08
Communities & Local Government,DCLG,11/12/2012,Web Services,Finance & Corporate Services,HELPFUL TECHNOLOGY LTD,,Micro,,5106186936,RTB micro personalised video integration,BR3 4EY,"1,260.00"
Communities & Local Government,DCLG,11/12/2012,Work In Progress Pre-Cert 40373 Spend,Neighbourhoods,LOW CARBON DEVELOPMENT INITIATIVE,,,,7600003905,ERDF Claim - 21 - P3,NR4 7TJ,"12,095.19"
Communities & Local Government,DCLG,11/12/2012,Work In Progress Pre-Cert 40373 Spend,Neighbourhoods,NORTHUMBERLAND COUNTY COUNCIL,,,,7600003898,ERDF Claim - 9 - P3,NE61 2EF,"15,213.17"
Communities & Local Government,DCLG,11/12/2012,Work In Progress Pre-Cert 40373 Spend,Neighbourhoods,NORTHUMBERLAND COUNTY COUNCIL,,,,7600003903,ERDF Claim - 10 - P3,NE61 2EF,"10,015.00"
Communities & Local Government,DCLG,11/12/2012,Work In Progress Pre-Cert 40373 Spend,Neighbourhoods,NORTHUMBERLAND COUNTY COUNCIL,,,,7600003904,ERDF Claim - 11 - P3,NE61 2EF,"13,104.94"
Communities & Local Government,DCLG,11/12/2012,Work In Progress Pre-Cert 40373 Spend,Neighbourhoods,SCARBOROUGH BOROUGH COUNCIL,,,,7600003901,ERDF Claim - 45 - P3-YH,YO11 2HG,"14,624.49"
Communities & Local Government,DCLG,11/12/2012,Work In Progress Pre-Cert 40373 Spend,Neighbourhoods,SCIENCE CITY YORK,,,,7600003908,ERDF Claim - 70 - P2-YH,YO10 5NY,"21,553.81"
Communities & Local Government,DCLG,11/12/2012,Work In Progress Pre-Cert 40373 Spend,Neighbourhoods,STOCKTON BOROUGH COUNCIL,,,,7600003909,ERDF Claim - 1 - P3,TS18 1LD,"16,509.63"
Communities & Local Government,DCLG,11/12/2012,Work In Progress Pre-Cert 40373 Spend,Neighbourhoods,TECHNOLOGY STRATEGY BOARD,,Large,,7600003899,ERDF Claim - 15 - P2,SN2 1UE,"5,060.00"
Communities & Local Government,DCLG,11/12/2012,Work In Progress Pre-Cert 40373 Spend,Neighbourhoods,TECHNOLOGY STRATEGY BOARD,,Large,,7600003900,ERDF Claim - 16 - P2,SN2 1UE,"11,498.00"
Communities & Local Government,DCLG,11/12/2012,Work In Progress Pre-Cert 40373 Spend,Neighbourhoods,THURROCK COUNCIL,,,,7600003902,ERDF Claim - 14 - P1,RM17 6SL,"5,111.69"
Communities & Local Government,DCLG,11/12/2012,Work In Progress Pre-Cert 40467 Spend,Neighbourhoods,HOMES & COMMUNITIES AGENCY,,Large,,7600003906,ERDF Claim - 19 - P2-YH,NE11 0NA,"13,205.14"
Communities & Local Government,DCLG,11/12/2012,Work In Progress Pre-Cert 40467 Spend,Neighbourhoods,HOMES & COMMUNITIES AGENCY,,Large,,7600003907,ERDF Claim - 20 - P2-YH,NE11 0NA,"192,355.96"
Communities & Local Government,DCLG,11/12/2012,Work In Progress Pre-Cert 40467 Spend,Neighbourhoods,STOCKTON BOROUGH COUNCIL,,,,7600003509,ERDF Claim - 6 - P1,TS18 1LD,"109,158.27"
Communities & Local Government,DCLG,11/12/2012,Work In Progress Pre-Cert 40467 Spend,Neighbourhoods,TECHNOLOGY STRATEGY BOARD,,Large,,7600003899,ERDF Claim - 15 - P2,SN2 1UE,"49,233.72"
Communities & Local Government,DCLG,11/12/2012,Work In Progress Pre-Cert 40467 Spend,Neighbourhoods,TECHNOLOGY STRATEGY BOARD,,Large,,7600003900,ERDF Claim - 16 - P2,SN2 1UE,"278,651.70"
Communities & Local Government,DCLG,12/12/2012,Agency Staff,Finance & Corporate Services,CAPITA RESOURCING LTD,,Large,,5106187055,Extension (1),SL6 1DP,"10,080.00"
Communities & Local Government,DCLG,12/12/2012,Agency Staff,Finance & Corporate Services,CAPITA RESOURCING LTD,,Large,,5106187056,Interim Manager,SL6 1DP,"3,300.00"
Communities & Local Government,DCLG,12/12/2012,Agency Staff,Finance & Corporate Services,CAPITA RESOURCING LTD,,Large,,5106187057,Interim manager,SL6 1DP,"2,038.90"
Communities & Local Government,DCLG,12/12/2012,Agency Staff,Finance & Corporate Services,CAPITA RESOURCING LTD,,Large,,5106187059,CPD 0492030 Capita MSP,SL6 1DP,"3,322.38"
Communities & Local Government,DCLG,12/12/2012,Agency Staff,Finance & Corporate Services,CAPITA RESOURCING LTD,,Large,,5106187060,CPD 0492030 Capita MSP,SL6 1DP,"2,757.26"
Communities & Local Government,DCLG,12/12/2012,Agency Staff,Finance & Corporate Services,CAPITA RESOURCING LTD,,Large,,5106187074,Interim manager,SL6 1DP,"2,126.46"
Communities & Local Government,DCLG,12/12/2012,Agency Staff,Finance & Corporate Services,CAPITA RESOURCING LTD,,Large,,5106187078,Interim Manager,SL6 1DP,"14,520.00"
Communities & Local Government,DCLG,12/12/2012,Agency Staff,Finance & Corporate Services,CAPITA RESOURCING LTD,,Large,,5106187083,Interim Manager,SL6 1DP,"2,293.76"
Communities & Local Government,DCLG,12/12/2012,Agency Staff,Finance & Corporate Services,SQUARE ONE RESOURCES LTD,,Medium,,5106187041,SAPDev 1.4.12-31.3.13,EC2A 2AD,"2,858.82"
Communities & Local Government,DCLG,12/12/2012,Agency Staff,Localism,CAPITA RESOURCING LTD,,Large,,5106187045,Extension (3),SL6 1DP,"1,729.38"
Communities & Local Government,DCLG,12/12/2012,Agency Staff,Localism,CAPITA RESOURCING LTD,,Large,,5106187069,Interim manager,SL6 1DP,"2,379.96"
Communities & Local Government,DCLG,12/12/2012,Agency Staff,Neighbourhoods,CAPITA RESOURCING LTD,,Large,,5106187046,Interim Manager,SL6 1DP,"3,959.94"
Communities & Local Government,DCLG,12/12/2012,Agency Staff,Neighbourhoods,CAPITA RESOURCING LTD,,Large,,5106187048,CPD 0492030 Capita MSP,SL6 1DP,42.85
Communities & Local Government,DCLG,12/12/2012,Agency Staff,Neighbourhoods,CAPITA RESOURCING LTD,,Large,,5106187048,DayRate ERREG2 Seas-Territorial,SL6 1DP,522
Communities & Local Government,DCLG,12/12/2012,Agency Staff,Neighbourhoods,CAPITA RESOURCING LTD,,Large,,5106187050,Extension (1),SL6 1DP,"2,895.78"
Communities & Local Government,DCLG,12/12/2012,Agency Staff,Neighbourhoods,CAPITA RESOURCING LTD,,Large,,5106187051,Extension (1),SL6 1DP,"2,316.62"
Communities & Local Government,DCLG,12/12/2012,Agency Staff,Neighbourhoods,CAPITA RESOURCING LTD,,Large,,5106187054,Extension (2),SL6 1DP,"2,305.82"
Communities & Local Government,DCLG,12/12/2012,Agency Staff,Neighbourhoods,CAPITA RESOURCING LTD,,Large,,5106187058,Extension (2),SL6 1DP,"2,882.28"
Communities & Local Government,DCLG,12/12/2012,Agency Staff,Neighbourhoods,CAPITA RESOURCING LTD,,Large,,5106187061,Interim Manager,SL6 1DP,"2,767.08"
Communities & Local Government,DCLG,12/12/2012,Agency Staff,Neighbourhoods,CAPITA RESOURCING LTD,,Large,,5106187062,DayRate INTERREG 2Seas-Territorial Facil,SL6 1DP,"1,293.48"
Communities & Local Government,DCLG,12/12/2012,Agency Staff,Neighbourhoods,CAPITA RESOURCING LTD,,Large,,5106187062,Expenses INTERREG 2Seas-Territorial Faci,SL6 1DP,252.71
Communities & Local Government,DCLG,12/12/2012,Agency Staff,Neighbourhoods,CAPITA RESOURCING LTD,,Large,,5106187064,Extension (3),SL6 1DP,"6,113.28"
Communities & Local Government,DCLG,12/12/2012,Agency Staff,Neighbourhoods,CAPITA RESOURCING LTD,,Large,,5106187065,Interim Manager,SL6 1DP,"1,738.80"
Communities & Local Government,DCLG,12/12/2012,Agency Staff,Neighbourhoods,CAPITA RESOURCING LTD,,Large,,5106187066,Extension (1),SL6 1DP,"1,930.50"
Communities & Local Government,DCLG,12/12/2012,Agency Staff,Neighbourhoods,CAPITA RESOURCING LTD,,Large,,5106187068,Extension,SL6 1DP,"4,557.00",
Communities & Local Government,DCLG,12/12/2012,Agency Staff,Neighbourhoods,CAPITA RESOURCING LTD,,Large,,5106187089,Extension (3),SL6 1DP,"3,056.64",
Communities & Local Government,DCLG,12/12/2012,Agency Staff,Neighbourhoods,CAPITA RESOURCING LTD,,Large,,5106187092,Extension (2),SL6 1DP,"2,562.00",
Communities & Local Government,DCLG,12/12/2012,Cap Grants to Local Authorities (DEL),Neighbourhoods,ADUR DC,,,,5000216843,Grant Payable by Exchequer,BN11 1HB,"62,952.00",Yes
Communities & Local Government,DCLG,12/12/2012,Cap Grants to Local Authorities (DEL),Neighbourhoods,ALLERDALE BC,,,,5000216845,Grant Payable by Exchequer,CA14 2RS,"114,844.00",Yes
Communities & Local Government,DCLG,12/12/2012,Cap Grants to Local Authorities (DEL),Neighbourhoods,AMBER VALLEY BC,,,,5000216847,Grant Payable by Exchequer,DE5 3WZ,"119,072.00",Yes
Communities & Local Government,DCLG,12/12/2012,Cap Grants to Local Authorities (DEL),Neighbourhoods,ARUN DC,,,,5000216328,Grant Payable by Exchequer,BN17 5LF,"191,135.00",Yes
Communities & Local Government,DCLG,12/12/2012,Cap Grants to Local Authorities (DEL),Neighbourhoods,ASHFIELD DC,,,,5000216849,Grant Payable by Exchequer,NG17 8DA,"122,290.00",Yes
Communities & Local Government,DCLG,12/12/2012,Cap Grants to Local Authorities (DEL),Neighbourhoods,ASHFORD BC,,,,5000216332,Grant Payable by Exchequer,TN23 1PL,"78,043.00",Yes
Communities & Local Government,DCLG,12/12/2012,Cap Grants to Local Authorities (DEL),Neighbourhoods,AYLESBURY VALE DC(HSG),,,,5000216336,Grant Payable by Exchequer,HP20 1SD,"87,857.00",Yes
Communities & Local Government,DCLG,12/12/2012,Cap Grants to Local Authorities (DEL),Neighbourhoods,BABERGH DC,,,,5000216340,Grant Payable by Exchequer,IP7 6SJ,"64,521.00",Yes
Communities & Local Government,DCLG,12/12/2012,Cap Grants to Local Authorities (DEL),Neighbourhoods,BARKING & DAGENHAM LB (HSG),,,,5000216344,Grant Payable by Exchequer,RM10 7BY,"96,350.00",Yes
Communities & Local Government,DCLG,12/12/2012,Cap Grants to Local Authorities (DEL),Neighbourhoods,BARNET LBC,,,,5000216851,Grant Payable by Exchequer,NW4 4BG,"190,958.00",Yes
Communities & Local Government,DCLG,12/12/2012,Cap Grants to Local Authorities (DEL),Neighbourhoods,BARNSLEY MBC,,,,5000216853,Grant Payable by Exchequer,S70 2AQ,"244,919.00",Yes
Communities & Local Government,DCLG,12/12/2012,Cap Grants to Local Authorities (DEL),Neighbourhoods,BARROW BC,,,,5000216855,Grant Payable by Exchequer,LA14 2LD,"105,662.00",Yes
Communities & Local Government,DCLG,12/12/2012,Cap Grants to Local Authorities (DEL),Neighbourhoods,BASILDON BOROUGH COUNCIL,,,,5000216857,Grant Payable by Exchequer,SS14 0DF,"108,105.00",Yes
Communities & Local Government,DCLG,12/12/2012,Cap Grants to Local Authorities (DEL),Neighbourhoods,BASINGSTOKE & DEANE BC,,,,5000216859,Grant Payable by Exchequer,RG21 2AJ,"81,872.00",Yes
Communities & Local Government,DCLG,12/12/2012,Cap Grants to Local Authorities (DEL),Neighbourhoods,BASSETLAW DC (HSG),,,,5000216348,Grant Payable by Exchequer,S80 2AH,"115,659.00",Yes
Communities & Local Government,DCLG,12/12/2012,Cap Grants to Local Authorities (DEL),Neighbourhoods,BATH & NE SOMERSET DC (HSG),,,,5000216352,Grant Payable by Exchequer,BA1 5AW,"124,791.00",Yes
Communities & Local Government,DCLG,12/12/2012,Cap Grants to Local Authorities (DEL),Neighbourhoods,BEDFORD UNITARY AUTHORITY,,,,5000216767,Grant Payable by Exchequer,MK40 1SJ,"99,335.00",Yes
Communities & Local Government,DCLG,12/12/2012,Cap Grants to Local Authorities (DEL),Neighbourhoods,BEXLEY LB (HSG),,,,5000216356,Grant Payable by Exchequer,DA8 1TL,"182,195.00",Yes
Communities & Local Government,DCLG,12/12/2012,Cap Grants to Local Authorities (DEL),Neighbourhoods,BIRMINGHAM CITY CNCL,,,,5000216861,Grant Payable by Exchequer,B2 2AJ,"643,969.00",Yes
Communities & Local Government,DCLG,12/12/2012,Cap Grants to Local Authorities (DEL),Neighbourhoods,BLABY DC (HSG),,,,5000216360,Grant Payable by Exchequer,LE9 5EP,"57,736.00",Yes
Communities & Local Government,DCLG,12/12/2012,Cap Grants to Local Authorities (DEL),Neighbourhoods,BLACKBURN WITH DARWEN BC,,,,5000216863,Grant Payable by Exchequer,BB1 7DY,"132,253.00",Yes
Communities & Local Government,DCLG,12/12/2012,Cap Grants to Local Authorities (DEL),Neighbourhoods,BLACKPOOL BC,,,,5000216865,Grant Payable by Exchequer,FY1 1NA,"208,214.00",Yes
Communities & Local Government,DCLG,12/12/2012,Cap Grants to Local Authorities (DEL),Neighbourhoods,BOLSOVER DC,,,,5000216867,Grant Payable by Exchequer,S44 6NF,"96,378.00",Yes
Communities & Local Government,DCLG,12/12/2012,Cap Grants to Local Authorities (DEL),Neighbourhoods,BOLTON MBC,,,,5000216869,Grant Payable by Exchequer,BL1 1RU,"227,169.00",Yes
Communities & Local Government,DCLG,12/12/2012,Cap Grants to Local Authorities (DEL),Neighbourhoods,BOSTON BC,,,,5000216364,Grant Payable by Exchequer,PE21 8QR,"66,262.00",Yes
Communities & Local Government,DCLG,12/12/2012,Cap Grants to Local Authorities (DEL),Neighbourhoods,BOURNEMOUTH DC,,,,5000216871,Grant Payable by Exchequer,BH2 6EB,"172,777.00",Yes
Communities & Local Government,DCLG,12/12/2012,Cap Grants to Local Authorities (DEL),Neighbourhoods,BRACKNELL FOREST DC,,,,5000216873,Grant Payable by Exchequer,RG12 1AQ,"43,379.00",Yes
Communities & Local Government,DCLG,12/12/2012,Cap Grants to Local Authorities (DEL),Neighbourhoods,BRADFORD MBC,,,,5000216875,Grant Payable by Exchequer,BD1 1HX,"335,903.00",Yes
Communities & Local Government,DCLG,12/12/2012,Cap Grants to Local Authorities (DEL),Neighbourhoods,BRAINTREE DC,,,,5000216368,Grant Payable by Exchequer,CM7 6HB,"98,810.00",Yes
Communities & Local Government,DCLG,12/12/2012,Cap Grants to Local Authorities (DEL),Neighbourhoods,BRECKLAND DC,,,,5000216372,Grant Payable by Exchequer,NR19 1EE,"125,220.00",Yes
Communities & Local Government,DCLG,12/12/2012,Cap Grants to Local Authorities (DEL),Neighbourhoods,BRENT LB (HSG),,,,5000216376,Grant Payable by Exchequer,HA9 9HD,"166,888.00",Yes
Communities & Local Government,DCLG,12/12/2012,Cap Grants to Local Authorities (DEL),Neighbourhoods,BRENTWOOD BC,,,,5000216877,Grant Payable by Exchequer,CM15 8AY,"39,936.00",Yes
Communities & Local Government,DCLG,12/12/2012,Cap Grants to Local Authorities (DEL),Neighbourhoods,BRIGHTON & HOVE CITY COUNCIL,,,,5000216879,Grant Payable by Exchequer,BN3 2SR,"182,403.00",Yes
Communities & Local Government,DCLG,12/12/2012,Cap Grants to Local Authorities (DEL),Neighbourhoods,BRISTOL CITY CNCL (HSG),,,,5000216380,Grant Payable by Exchequer,BS99 7BL,"255,317.00",Yes
Communities & Local Government,DCLG,12/12/2012,Cap Grants to Local Authorities (DEL),Neighbourhoods,BROADLAND DC,,Large,,5000216384,Grant Payable by Exchequer,NR7 0DU,"110,036.00",Yes
Communities & Local Government,DCLG,12/12/2012,Cap Grants to Local Authorities (DEL),Neighbourhoods,BROMLEY LB,,,,5000216881,Grant Payable by Exchequer,BR1 3UH,"227,162.00",Yes
Communities & Local Government,DCLG,12/12/2012,Cap Grants to Local Authorities (DEL),Neighbourhoods,BROMSGROVE DC,,,,5000216387,Grant Payable by Exchequer,B60 1AA,"71,515.00",Yes
Communities & Local Government,DCLG,12/12/2012,Cap Grants to Local Authorities (DEL),Neighbourhoods,BROXBOURNE BC,,Public Bodies,,5000216883,Grant Payable by Exchequer,EN8 9XG,"55,903.00",Yes
Communities & Local Government,DCLG,12/12/2012,Cap Grants to Local Authorities (DEL),Neighbourhoods,BROXTOWE BC,,,,5000216885,Grant Payable by Exchequer,NG9 1AB,"83,408.00",Yes
Communities & Local Government,DCLG,12/12/2012,Cap Grants to Local Authorities (DEL),Neighbourhoods,BURNLEY BC,,,,5000216888,Grant Payable by Exchequer,BB11 1JA,"105,823.00",Yes
Communities & Local Government,DCLG,12/12/2012,Cap Grants to Local Authorities (DEL),Neighbourhoods,CALDERDALE MBC,,,,5000216892,Grant Payable by Exchequer,HX1 1YP,"148,398.00",Yes
Communities & Local Government,DCLG,12/12/2012,Cap Grants to Local Authorities (DEL),Neighbourhoods,CAMBRIDGE CITY COUNCIL,,,,5000216894,Grant Payable by Exchequer,CB2 3NA,"36,448.00",Yes
Communities & Local Government,DCLG,12/12/2012,Cap Grants to Local Authorities (DEL),Neighbourhoods,CAMDEN LB,,,,5000216897,Grant Payable by Exchequer,WC1H 8NG,"89,673.00",Yes
Communities & Local Government,DCLG,12/12/2012,Cap Grants to Local Authorities (DEL),Neighbourhoods,CANNOCK CHASE DC,,,,5000216899,Grant Payable by Exchequer,WS11 1BG,"85,550.00",Yes
Communities & Local Government,DCLG,12/12/2012,Cap Grants to Local Authorities (DEL),Neighbourhoods,CANTERBURY CITY CNCL,,,,5000216391,Grant Payable by Exchequer,CT1 1YW,"127,659.00",Yes
Communities & Local Government,DCLG,12/12/2012,Cap Grants to Local Authorities (DEL),Neighbourhoods,CARLISLE CITY CNCL,,,,5000216395,Grant Payable by Exchequer,CA3 8QG,"109,433.00",Yes
Communities & Local Government,DCLG,12/12/2012,Cap Grants to Local Authorities (DEL),Neighbourhoods,CASTLE POINT BC,,,,5000216901,Grant Payable by Exchequer,SS7 1TF,"83,191.00",Yes
Communities & Local Government,DCLG,12/12/2012,Cap Grants to Local Authorities (DEL),Neighbourhoods,CENTRAL BEDFORDSHIRE COUNCIL,,,,5000216755,Grant Payable by Exchequer,SG17 5TQ,"118,630.00",Yes
Communities & Local Government,DCLG,12/12/2012,Cap Grants to Local Authorities (DEL),Neighbourhoods,CHARNWOOD BC,,,,5000216903,Grant Payable by Exchequer,LE11 2TU,"85,718.00",Yes
Communities & Local Government,DCLG,12/12/2012,Cap Grants to Local Authorities (DEL),Neighbourhoods,CHELMSFORD BC,,,,5000216905,Grant Payable by Exchequer,CM1 1JE,"87,646.00",Yes
Communities & Local Government,DCLG,12/12/2012,Cap Grants to Local Authorities (DEL),Neighbourhoods,CHELTENHAM BC,,,,5000216907,Grant Payable by Exchequer,GL50 1PW,"71,848.00",Yes
Communities & Local Government,DCLG,12/12/2012,Cap Grants to Local Authorities (DEL),Neighbourhoods,CHERWELL DC,,,,5000216399,Grant Payable by Exchequer,OX15 4AA,"76,507.00",Yes
Communities & Local Government,DCLG,12/12/2012,Cap Grants to Local Authorities (DEL),Neighbourhoods,CHESHIRE EAST COUNCIL,,,,5000216759,Grant Payable by Exchequer,SK10 1DP,"284,189.00",Yes
Communities & Local Government,DCLG,12/12/2012,Cap Grants to Local Authorities (DEL),Neighbourhoods,CHESHIRE WEST & CHESTER COUNCIL,,,,5000216763,Grant Payable by Exchequer,CH1 1SG,"281,464.00",Yes
Communities & Local Government,DCLG,12/12/2012,Cap Grants to Local Authorities (DEL),Neighbourhoods,CHESTERFIELD BC,,,,5000216909,Grant Payable by Exchequer,S40 1LP,"109,750.00",Yes
Communities & Local Government,DCLG,12/12/2012,Cap Grants to Local Authorities (DEL),Neighbourhoods,CHICHESTER DC,,,,5000216403,Grant Payable by Exchequer,PO19 1TY,"102,210.00",Yes
Communities & Local Government,DCLG,12/12/2012,Cap Grants to Local Authorities (DEL),Neighbourhoods,CHILTERN DC (HSG),,,,5000216407,Grant Payable by Exchequer,HP6 5AW,"50,179.00",Yes
Communities & Local Government,DCLG,12/12/2012,Cap Grants to Local Authorities (DEL),Neighbourhoods,CHORLEY DC,,,,5000216911,Grant Payable by Exchequer,PR7 1DP,"95,230.00",Yes
Communities & Local Government,DCLG,12/12/2012,Cap Grants to Local Authorities (DEL),Neighbourhoods,CHRISTCHURCH BC (HSG),,,,5000216411,Grant Payable by Exchequer,BH23 1AZ,"68,541.00",Yes
Communities & Local Government,DCLG,12/12/2012,Cap Grants to Local Authorities (DEL),Neighbourhoods,CITY OF LINCOLN COUNCIL,,,,5000216363,Grant Payable by Exchequer,LN1 1DB,"58,907.00",Yes
Communities & Local Government,DCLG,12/12/2012,Cap Grants to Local Authorities (DEL),Neighbourhoods,CITY OF LONDON (HSG),,,,5000216415,Grant Payable by Exchequer,EC2P 2EJ,"2,622.00",Yes
Communities & Local Government,DCLG,12/12/2012,Cap Grants to Local Authorities (DEL),Neighbourhoods,CITY OF SUNDERLAND (HSG),,,,5000216419,Grant Payable by Exchequer,SR2 7DN,"364,576.00",Yes
Communities & Local Government,DCLG,12/12/2012,Cap Grants to Local Authorities (DEL),Neighbourhoods,CITY OF WAKEFIELD MDC,,,,5000216657,Grant Payable by Exchequer,WF1 2QW,"362,920.00",Yes
Communities & Local Government,DCLG,12/12/2012,Cap Grants to Local Authorities (DEL),Neighbourhoods,COLCHESTER BC,,,,5000216913,Grant Payable by Exchequer,CO3 3WG,"103,333.00",Yes
Communities & Local Government,DCLG,12/12/2012,Cap Grants to Local Authorities (DEL),Neighbourhoods,COPELAND BC,,,,5000216423,Grant Payable by Exchequer,CA28 7NY,"84,773.00",Yes
Communities & Local Government,DCLG,12/12/2012,Cap Grants to Local Authorities (DEL),Neighbourhoods,CORBY BC,,,,5000216427,Grant Payable by Exchequer,NN17 1GD,"40,573.00",Yes
Communities & Local Government,DCLG,12/12/2012,Cap Grants to Local Authorities (DEL),Neighbourhoods,CORNWALL UNITARY AUTHORITY,,,,5000216775,Grant Payable by Exchequer,TR1 3AY,"668,693.00",Yes
Communities & Local Government,DCLG,12/12/2012,Cap Grants to Local Authorities (DEL),Neighbourhoods,COTSWOLD DC,,,,5000216431,Grant Payable by Exchequer,GL7 1PX,"61,445.00",Yes
Communities & Local Government,DCLG,12/12/2012,Cap Grants to Local Authorities (DEL),Neighbourhoods,COVENTRY CITY CNCL,,,,5000216915,Grant Payable by Exchequer,CV1 2QL,"245,059.00",Yes
Communities & Local Government,DCLG,12/12/2012,Cap Grants to Local Authorities (DEL),Neighbourhoods,CRAVEN DC (HSG),,,,5000216435,Grant Payable by Exchequer,BD23 1PS,"46,487.00",Yes
Communities & Local Government,DCLG,12/12/2012,Cap Grants to Local Authorities (DEL),Neighbourhoods,CRAWLEY BC,,,,5000216439,Grant Payable by Exchequer,RH10 1UZ,"47,506.00",Yes
Communities & Local Government,DCLG,12/12/2012,Cap Grants to Local Authorities (DEL),Neighbourhoods,CROYDON LB,,,,5000216917,Grant Payable by Exchequer,CR9 3JS,"204,820.00",Yes
Communities & Local Government,DCLG,12/12/2012,Cap Grants to Local Authorities (DEL),Neighbourhoods,DACORUM BC,,,,5000216920,Grant Payable by Exchequer,HP1 1HH,"63,956.00",Yes
Communities & Local Government,DCLG,12/12/2012,Cap Grants to Local Authorities (DEL),Neighbourhoods,DARLINGTON BC,,,,5000216922,Grant Payable by Exchequer,TS19 1JA,"88,791.00",Yes
Communities & Local Government,DCLG,12/12/2012,Cap Grants to Local Authorities (DEL),Neighbourhoods,DARTFORD BC,,,,5000216443,Grant Payable by Exchequer,DA1 1DR,"51,532.00",Yes
Communities & Local Government,DCLG,12/12/2012,Cap Grants to Local Authorities (DEL),Neighbourhoods,DAVENTRY DC,,,,5000216447,Grant Payable by Exchequer,NN11 5AF,"41,694.00",Yes
Communities & Local Government,DCLG,12/12/2012,Cap Grants to Local Authorities (DEL),Neighbourhoods,DERBY CITY CNCL,,,,5000216924,Grant Payable by Exchequer,DE1 2FS,"173,639.00",Yes
Communities & Local Government,DCLG,12/12/2012,Cap Grants to Local Authorities (DEL),Neighbourhoods,DERBYSHIRE DALES DC,,,,5000216451,Grant Payable by Exchequer,DE4 3NN,"62,137.00",Yes
Communities & Local Government,DCLG,12/12/2012,Cap Grants to Local Authorities (DEL),Neighbourhoods,DONCASTER MBC,,,,5000216928,Grant Payable by Exchequer,DN1 3QA,"289,228.00",Yes
Communities & Local Government,DCLG,12/12/2012,Cap Grants to Local Authorities (DEL),Neighbourhoods,DOVER DC,,,,5000216455,Grant Payable by Exchequer,CT16 3PD,"130,229.00",Yes
Communities & Local Government,DCLG,12/12/2012,Cap Grants to Local Authorities (DEL),Neighbourhoods,DUDLEY MBC,,,,5000216931,Grant Payable by Exchequer,DY1 1HF,"263,480.00",Yes
Communities & Local Government,DCLG,12/12/2012,Cap Grants to Local Authorities (DEL),Neighbourhoods,DURHAM UNITARY AUTHORITY,,,,5000216779,Grant Payable by Exchequer,DH1 5UE,"624,327.00",Yes
Communities & Local Government,DCLG,12/12/2012,Cap Grants to Local Authorities (DEL),Neighbourhoods,EALING LB,,,,5000216933,Grant Payable by Exchequer,W5 2HL,"162,062.00",Yes
Communities & Local Government,DCLG,12/12/2012,Cap Grants to Local Authorities (DEL),Neighbourhoods,EAST CAMBRIDGESHIRE DC,,,,5000216459,Grant Payable by Exchequer,CB7 4PL,"49,408.00",Yes
Communities & Local Government,DCLG,12/12/2012,Cap Grants to Local Authorities (DEL),Neighbourhoods,EAST DEVON DC,,,,5000216463,Grant Payable by Exchequer,EX10 8HL,"164,685.00",Yes
Communities & Local Government,DCLG,12/12/2012,Cap Grants to Local Authorities (DEL),Neighbourhoods,EAST DORSET DC,,,,5000216935,Grant Payable by Exchequer,BH21 4HN,"94,493.00",Yes
Communities & Local Government,DCLG,12/12/2012,Cap Grants to Local Authorities (DEL),Neighbourhoods,EAST HAMPSHIRE DC,,,,5000216467,Grant Payable by Exchequer,GU31 4EX,"72,084.00",Yes
Communities & Local Government,DCLG,12/12/2012,Cap Grants to Local Authorities (DEL),Neighbourhoods,EAST HERTFORDSHIRE DC,,,,5000216471,Grant Payable by Exchequer,SG13 8EQ,"59,674.00",Yes
Communities & Local Government,DCLG,12/12/2012,Cap Grants to Local Authorities (DEL),Neighbourhoods,EAST LINDSEY DC,,,,5000216475,Grant Payable by Exchequer,LN11 8UP,"240,709.00",Yes
Communities & Local Government,DCLG,12/12/2012,Cap Grants to Local Authorities (DEL),Neighbourhoods,EAST NORTHAMPTONSHIRE COUNCIL,,,,5000216479,Grant Payable by Exchequer,NN14 4LZ,"51,133.00",Yes
Communities & Local Government,DCLG,12/12/2012,Cap Grants to Local Authorities (DEL),Neighbourhoods,EAST RIDING OF YORKS (HSG),,,,5000216483,Grant Payable by Exchequer,HU17 9BA,"271,520.00",Yes
Communities & Local Government,DCLG,12/12/2012,Cap Grants to Local Authorities (DEL),Neighbourhoods,EAST STAFFORDSHIRE BC,,,,5000216487,Grant Payable by Exchequer,DE14 2EB,"86,007.00",Yes
Communities & Local Government,DCLG,12/12/2012,Cap Grants to Local Authorities (DEL),Neighbourhoods,EASTBOURNE BC,,,,5000216938,Grant Payable by Exchequer,BN21 4TW,"119,425.00",Yes
Communities & Local Government,DCLG,12/12/2012,Cap Grants to Local Authorities (DEL),Neighbourhoods,EASTLEIGH BOROUGH COUNCIL,,,,5000216940,Grant Payable by Exchequer,SO5 9YN,"79,641.00",Yes
Communities & Local Government,DCLG,12/12/2012,Cap Grants to Local Authorities (DEL),Neighbourhoods,EDEN DC (HSG),,,,5000216491,Grant Payable by Exchequer,CA11 7QF,"45,192.00",Yes
Communities & Local Government,DCLG,12/12/2012,Cap Grants to Local Authorities (DEL),Neighbourhoods,ELMBRIDGE BC (HSG),,,,5000216495,Grant Payable by Exchequer,KT10 9SD,"57,854.00",Yes
Communities & Local Government,DCLG,12/12/2012,Cap Grants to Local Authorities (DEL),Neighbourhoods,ENFIELD LB,,,,5000216942,Grant Payable by Exchequer,EN1 3XF,"188,796.00",Yes
Communities & Local Government,DCLG,12/12/2012,Cap Grants to Local Authorities (DEL),Neighbourhoods,EPPING FOREST DC,,,,5000216944,Grant Payable by Exchequer,CM16 4BZ,"68,024.00",Yes
Communities & Local Government,DCLG,12/12/2012,Cap Grants to Local Authorities (DEL),Neighbourhoods,EPSOM & EWELL BC,,,,5000216946,Grant Payable by Exchequer,KT18 5BY,"40,282.00",Yes
Communities & Local Government,DCLG,12/12/2012,Cap Grants to Local Authorities (DEL),Neighbourhoods,EREWASH BC,,,,5000216948,Grant Payable by Exchequer,DE7 5RP,"95,996.00",Yes
Communities & Local Government,DCLG,12/12/2012,Cap Grants to Local Authorities (DEL),Neighbourhoods,EXETER CITY CNCL,,,,5000216951,Grant Payable by Exchequer,EX1 1JN,"83,745.00",Yes
Communities & Local Government,DCLG,12/12/2012,Cap Grants to Local Authorities (DEL),Neighbourhoods,FAREHAM BC,,,,5000216499,Grant Payable by Exchequer,PO16 7PU,"75,647.00",Yes
Communities & Local Government,DCLG,12/12/2012,Cap Grants to Local Authorities (DEL),Neighbourhoods,FENLAND DC,,,,5000216503,Grant Payable by Exchequer,PE15 8NQ,"105,214.00",Yes
Communities & Local Government,DCLG,12/12/2012,Cap Grants to Local Authorities (DEL),Neighbourhoods,FOREST HEATH DISTRICT COUNCIL,,,,5000216507,Grant Payable by Exchequer,IP28 7EY,"30,624.00",Yes
Communities & Local Government,DCLG,12/12/2012,Cap Grants to Local Authorities (DEL),Neighbourhoods,FOREST OF DEAN DC,,,,5000216511,Grant Payable by Exchequer,GL16 8HG,"84,045.00",Yes
Communities & Local Government,DCLG,12/12/2012,Cap Grants to Local Authorities (DEL),Neighbourhoods,FYLDE BC,,,,5000216953,Grant Payable by Exchequer,FY8 1LW,"96,632.00",Yes
Communities & Local Government,DCLG,12/12/2012,Cap Grants to Local Authorities (DEL),Neighbourhoods,GATESHEAD MBC,,,,5000216955,Grant Payable by Exchequer,NE8 1HH,"176,209.00",Yes
Communities & Local Government,DCLG,12/12/2012,Cap Grants to Local Authorities (DEL),Neighbourhoods,GEDLING BC,,,,5000216957,Grant Payable by Exchequer,NG5 6LU,"105,991.00",Yes
Communities & Local Government,DCLG,12/12/2012,Cap Grants to Local Authorities (DEL),Neighbourhoods,GLOUCESTER CITY CNCL,,,,5000216959,Grant Payable by Exchequer,GL1 2EQ,"84,369.00",Yes
Communities & Local Government,DCLG,12/12/2012,Cap Grants to Local Authorities (DEL),Neighbourhoods,GMRB,,,,5000216890,Grant Payable by Exchequer,BL9 0SW,"147,128.00",Yes
Communities & Local Government,DCLG,12/12/2012,Cap Grants to Local Authorities (DEL),Neighbourhoods,GOSPORT BOROUGH COUNCIL,,,,5000216962,Grant Payable by Exchequer,PO12 1ED,"61,636.00",Yes
Communities & Local Government,DCLG,12/12/2012,Cap Grants to Local Authorities (DEL),Neighbourhoods,GRAVESHAM BC,,,,5000216964,Grant Payable by Exchequer,DA12 1AU,"67,848.00",Yes
Communities & Local Government,DCLG,12/12/2012,Cap Grants to Local Authorities (DEL),Neighbourhoods,GREAT YARMOUTH BC,,,,5000216966,Grant Payable by Exchequer,NR30 2QG,"111,037.00",Yes
Communities & Local Government,DCLG,12/12/2012,Cap Grants to Local Authorities (DEL),Neighbourhoods,GREENWICH LB,,,,5000216968,Grant Payable by Exchequer,SE18 6BU,"128,629.00",Yes
Communities & Local Government,DCLG,12/12/2012,Cap Grants to Local Authorities (DEL),Neighbourhoods,GUILDFORD BC,,,,5000216515,Grant Payable by Exchequer,GU2 5BB,"57,124.00",Yes
Communities & Local Government,DCLG,12/12/2012,Cap Grants to Local Authorities (DEL),Neighbourhoods,HALTON BC (HSG),,,,5000216519,Grant Payable by Exchequer,WA8 7QF,"138,865.00",Yes
Communities & Local Government,DCLG,12/12/2012,Cap Grants to Local Authorities (DEL),Neighbourhoods,HAMBLETON DC (HSG),,,,5000216523,Grant Payable by Exchequer,DL6 2UU,"60,490.00",Yes
Communities & Local Government,DCLG,12/12/2012,Cap Grants to Local Authorities (DEL),Neighbourhoods,HAMMERSMITH & FULHAM LB,,,,5000216972,Grant Payable by Exchequer,W6 9JU,"76,797.00",Yes
Communities & Local Government,DCLG,12/12/2012,Cap Grants to Local Authorities (DEL),Neighbourhoods,HARBOROUGH DC (HSG),,,,5000216527,Grant Payable by Exchequer,LE16 7AG,"45,754.00",Yes
Communities & Local Government,DCLG,12/12/2012,Cap Grants to Local Authorities (DEL),Neighbourhoods,HARINGEY LB,,,,5000216975,Grant Payable by Exchequer,N22 4TR,"107,372.00",Yes
Communities & Local Government,DCLG,12/12/2012,Cap Grants to Local Authorities (DEL),Neighbourhoods,HARLOW DISTRICT COUNCIL,,,,5000216977,Grant Payable by Exchequer,CM20 1WG,"36,797.00",Yes
Communities & Local Government,DCLG,12/12/2012,Cap Grants to Local Authorities (DEL),Neighbourhoods,HARROGATE BC,,,,5000216531,Grant Payable by Exchequer,HG1 2SG,"89,681.00",Yes
Communities & Local Government,DCLG,12/12/2012,Cap Grants to Local Authorities (DEL),Neighbourhoods,HARROW LB,,,,5000216979,Grant Payable by Exchequer,HA1 2UZ,"134,747.00",Yes
Communities & Local Government,DCLG,12/12/2012,Cap Grants to Local Authorities (DEL),Neighbourhoods,HART DC,,,,5000216981,Grant Payable by Exchequer,GU13 8AE,"33,780.00",Yes
Communities & Local Government,DCLG,12/12/2012,Cap Grants to Local Authorities (DEL),Neighbourhoods,HARTLEPOOL BOROUGH COUNCIL,,,,5000216983,Grant Payable by Exchequer,TS24 7BT,"107,518.00",Yes
Communities & Local Government,DCLG,12/12/2012,Cap Grants to Local Authorities (DEL),Neighbourhoods,HASTINGS BC,,,,5000216985,Grant Payable by Exchequer,TN34 3WN,"114,312.00",Yes
Communities & Local Government,DCLG,12/12/2012,Cap Grants to Local Authorities (DEL),Neighbourhoods,HAVANT BC,,,,5000216987,Grant Payable by Exchequer,PO9 2AX,"133,175.00",Yes
Communities & Local Government,DCLG,12/12/2012,Cap Grants to Local Authorities (DEL),Neighbourhoods,HAVERING LB,,,,5000216989,Grant Payable by Exchequer,RM1 3BB,"197,691.00",Yes
Communities & Local Government,DCLG,12/12/2012,Cap Grants to Local Authorities (DEL),Neighbourhoods,HEREFORDSHIRE COUNCIL,,,,5000216535,Grant Payable by Exchequer,HR4 0XH,"186,345.00",Yes
Communities & Local Government,DCLG,12/12/2012,Cap Grants to Local Authorities (DEL),Neighbourhoods,HERTSMERE BC,,,,5000216992,Grant Payable by Exchequer,WD6 1WA,"56,937.00",Yes
Communities & Local Government,DCLG,12/12/2012,Cap Grants to Local Authorities (DEL),Neighbourhoods,HIGH PEAK BC,,,,5000216539,Grant Payable by Exchequer,SK17 6EL,"64,999.00",Yes
Communities & Local Government,DCLG,12/12/2012,Cap Grants to Local Authorities (DEL),Neighbourhoods,HILLINGDON LB,,,,5000216994,Grant Payable by Exchequer,UB8 1UW,"140,264.00",Yes
Communities & Local Government,DCLG,12/12/2012,Cap Grants to Local Authorities (DEL),Neighbourhoods,HINCKLEY & BOSWORTH BC,,,,5000216543,Grant Payable by Exchequer,LE10 1BZ,"71,162.00",Yes
Communities & Local Government,DCLG,12/12/2012,Cap Grants to Local Authorities (DEL),Neighbourhoods,HORSHAM DC,,,,5000216547,Grant Payable by Exchequer,RH12 1RL,"78,774.00",Yes
Communities & Local Government,DCLG,12/12/2012,Cap Grants to Local Authorities (DEL),Neighbourhoods,HOUNSLOW LB,,Public Bodies,,5000216996,Grant Payable by Exchequer,TW3 4DN,"106,198.00",Yes
Communities & Local Government,DCLG,12/12/2012,Cap Grants to Local Authorities (DEL),Neighbourhoods,HULL CITY COUNCIL,,,,5000216339,Grant Payable by Exchequer,HU1 2AA,"159,369.00",Yes
Communities & Local Government,DCLG,12/12/2012,Cap Grants to Local Authorities (DEL),Neighbourhoods,HUNTINGDONSHIRE DC,,,,5000216551,Grant Payable by Exchequer,PE18 6TN,"91,319.00",Yes
Communities & Local Government,DCLG,12/12/2012,Cap Grants to Local Authorities (DEL),Neighbourhoods,HYNDBURN BC,,,,5000216998,Grant Payable by Exchequer,BB5 1EZ,"90,604.00",Yes
Communities & Local Government,DCLG,12/12/2012,Cap Grants to Local Authorities (DEL),Neighbourhoods,IPSWICH BC,,,,5000217000,Grant Payable by Exchequer,IP1 2EE,"86,246.00",Yes
Communities & Local Government,DCLG,12/12/2012,Cap Grants to Local Authorities (DEL),Neighbourhoods,ISLE OF WIGHT CNCL,,,,5000217002,Grant Payable by Exchequer,PO30 1UD,"204,192.00",Yes
Communities & Local Government,DCLG,12/12/2012,Cap Grants to Local Authorities (DEL),Neighbourhoods,ISLES OF SCILLY COUNCIL,,,,5000217004,Grant Payable by Exchequer,TR21 0LW,"1,260.00",Yes
Communities & Local Government,DCLG,12/12/2012,Cap Grants to Local Authorities (DEL),Neighbourhoods,ISLINGTON LB,,,,5000216326,Grant Payable by Exchequer,N1 1XR,"87,086.00",Yes
Communities & Local Government,DCLG,12/12/2012,Cap Grants to Local Authorities (DEL),Neighbourhoods,KETTERING BC,,,,5000216335,Grant Payable by Exchequer,NN15 7QX,"60,203.00",Yes
Communities & Local Government,DCLG,12/12/2012,Cap Grants to Local Authorities (DEL),Neighbourhoods,KINGS LYNN & WEST NORFOLK BC,,,,5000216555,Grant Payable by Exchequer,PE30 1EX,"177,071.00",Yes
Communities & Local Government,DCLG,12/12/2012,Cap Grants to Local Authorities (DEL),Neighbourhoods,KINGSTON UPON THAMES  (HSG),,,,5000216559,Grant Payable by Exchequer,KT1 1EU,"62,068.00",Yes
Communities & Local Government,DCLG,12/12/2012,Cap Grants to Local Authorities (DEL),Neighbourhoods,KIRKLEES COUNCIL (HSG),,,,5000216563,Grant Payable by Exchequer,HD1 2YU,"258,589.00",Yes
Communities & Local Government,DCLG,12/12/2012,Cap Grants to Local Authorities (DEL),Neighbourhoods,KNOWSLEY MBC,,,,5000216343,Grant Payable by Exchequer,L36 9YZ,"205,347.00",Yes
Communities & Local Government,DCLG,12/12/2012,Cap Grants to Local Authorities (DEL),Neighbourhoods,LANCASTER CITY CNCL,,,,5000216567,Grant Payable by Exchequer,LA1 1PJ,"125,031.00",Yes
Communities & Local Government,DCLG,12/12/2012,Cap Grants to Local Authorities (DEL),Neighbourhoods,LEEDS CITY CNCL,,,,5000216353,Grant Payable by Exchequer,LS1 1JF,"382,654.00",Yes
Communities & Local Government,DCLG,12/12/2012,Cap Grants to Local Authorities (DEL),Neighbourhoods,LEICESTER CITY CNCL (HSG),,,,5000216571,Grant Payable by Exchequer,LE1 6ZG,"152,801.00",Yes
Communities & Local Government,DCLG,12/12/2012,Cap Grants to Local Authorities (DEL),Neighbourhoods,LEWES DC,,,,5000216575,Grant Payable by Exchequer,BN7 2DQ,"100,264.00",Yes
Communities & Local Government,DCLG,12/12/2012,Cap Grants to Local Authorities (DEL),Neighbourhoods,LEWISHAM LB (HSG),,,,5000216579,Grant Payable by Exchequer,SE6 4RU,"120,769.00",Yes
Communities & Local Government,DCLG,12/12/2012,Cap Grants to Local Authorities (DEL),Neighbourhoods,LICHFIELD DC,,,,5000216359,Grant Payable by Exchequer,WS13 6YX,"88,873.00",Yes
Communities & Local Government,DCLG,12/12/2012,Cap Grants to Local Authorities (DEL),Neighbourhoods,LIVERPOOL CITY COUNCIL,,,,5000216369,Grant Payable by Exchequer,L2 2DH,"540,958.00",Yes
Communities & Local Government,DCLG,12/12/2012,Cap Grants to Local Authorities (DEL),Neighbourhoods,LONDON BOROUGH OF HACKNEY,,,,5000216970,Grant Payable by Exchequer,E8 4RU,"92,829.00",Yes
Communities & Local Government,DCLG,12/12/2012,Cap Grants to Local Authorities (DEL),Neighbourhoods,LONDON BOROUGH OF LAMBETH,,,,5000216347,Grant Payable by Exchequer,SW2 1RL,"97,509.00",Yes
Communities & Local Government,DCLG,12/12/2012,Cap Grants to Local Authorities (DEL),Neighbourhoods,LONDON BOROUGH OF NEWHAM,,,,5000216406,Grant Payable by Exchequer,E16 2QU,"111,532.00",Yes
Communities & Local Government,DCLG,12/12/2012,Cap Grants to Local Authorities (DEL),Neighbourhoods,LONDON BOROUGH OF REDBRIDGE,,,,5000216484,Grant Payable by Exchequer,IG1 1NN,"156,666.00",Yes
Communities & Local Government,DCLG,12/12/2012,Cap Grants to Local Authorities (DEL),Neighbourhoods,LUTON BC,,,,5000216373,Grant Payable by Exchequer,LU1 1DX,"87,038.00",Yes
Communities & Local Government,DCLG,12/12/2012,Cap Grants to Local Authorities (DEL),Neighbourhoods,MAIDSTONE BC,,Public Bodies,,5000216584,Grant Payable by Exchequer,ME15 6JQ,"108,473.00",Yes
Communities & Local Government,DCLG,12/12/2012,Cap Grants to Local Authorities (DEL),Neighbourhoods,MALDON DC,,,,5000216588,Grant Payable by Exchequer,CM9 7DL,"47,803.00",Yes
Communities & Local Government,DCLG,12/12/2012,Cap Grants to Local Authorities (DEL),Neighbourhoods,MALVERN HILLS DC,,,,5000216377,Grant Payable by Exchequer,WR14 3AF,"78,584.00",Yes
Communities & Local Government,DCLG,12/12/2012,Cap Grants to Local Authorities (DEL),Neighbourhoods,MANCHESTER CITY CNCL (HSG),,,,5000216592,Grant Payable by Exchequer,M60 2JR,"290,109.00",Yes
Communities & Local Government,DCLG,12/12/2012,Cap Grants to Local Authorities (DEL),Neighbourhoods,MANSFIELD DC,,,,5000216381,Grant Payable by Exchequer,NG19 7BH,"123,830.00",Yes
Communities & Local Government,DCLG,12/12/2012,Cap Grants to Local Authorities (DEL),Neighbourhoods,MEDWAY TOWNS D C (HSG),,,,5000216596,Grant Payable by Exchequer,ME4 4TR,"178,133.00",Yes
Communities & Local Government,DCLG,12/12/2012,Cap Grants to Local Authorities (DEL),Neighbourhoods,MELTON BC,,,,5000216600,Grant Payable by Exchequer,LE13 0UL,"27,975.00",Yes
Communities & Local Government,DCLG,12/12/2012,Cap Grants to Local Authorities (DEL),Neighbourhoods,MENDIP DISTRICT COUNCIL,,,,5000216604,Grant Payable by Exchequer,BA4 5BA,"100,199.00",Yes
Communities & Local Government,DCLG,12/12/2012,Cap Grants to Local Authorities (DEL),Neighbourhoods,MERTON LB,,,,5000216385,Grant Payable by Exchequer,SM4 5DX,"78,607.00",Yes
Communities & Local Government,DCLG,12/12/2012,Cap Grants to Local Authorities (DEL),Neighbourhoods,MID DEVON DC,,,,5000216608,Grant Payable by Exchequer,EX16 6PP,"64,402.00",Yes
Communities & Local Government,DCLG,12/12/2012,Cap Grants to Local Authorities (DEL),Neighbourhoods,MID SUFFOLK DC,,,,5000216612,Grant Payable by Exchequer,IP1 2DH,"60,814.00",Yes
Communities & Local Government,DCLG,12/12/2012,Cap Grants to Local Authorities (DEL),Neighbourhoods,MID SUSSEX DC,,,,5000216616,Grant Payable by Exchequer,RH16 1SS,"80,793.00",Yes
Communities & Local Government,DCLG,12/12/2012,Cap Grants to Local Authorities (DEL),Neighbourhoods,MIDDLESBROUGH BC,,,,5000216390,Grant Payable by Exchequer,TS1 2QQ,"141,182.00",Yes
Communities & Local Government,DCLG,12/12/2012,Cap Grants to Local Authorities (DEL),Neighbourhoods,MILTON KEYNES BC,,,,5000216394,Grant Payable by Exchequer,MK9 3WJ,"106,695.00",Yes
Communities & Local Government,DCLG,12/12/2012,Cap Grants to Local Authorities (DEL),Neighbourhoods,MOLE VALLEY DC,,,,5000216620,Grant Payable by Exchequer,RH4 1SJ,"56,190.00",Yes
Communities & Local Government,DCLG,12/12/2012,Cap Grants to Local Authorities (DEL),Neighbourhoods,NEW FOREST DC,,Public Bodies,,5000216624,Grant Payable by Exchequer,SO43 9ZG,"173,310.00",Yes
Communities & Local Government,DCLG,12/12/2012,Cap Grants to Local Authorities (DEL),Neighbourhoods,NEWARK & SHERWOOD DC (HSG),,,,5000216628,Grant Payable by Exchequer,NG23 5QX,"108,738.00",Yes
Communities & Local Government,DCLG,12/12/2012,Cap Grants to Local Authorities (DEL),Neighbourhoods,NEWCASTLE UNDER LYME BC,,,,5000216398,Grant Payable by Exchequer,ST5 2AG,"134,381.00",Yes
Communities & Local Government,DCLG,12/12/2012,Cap Grants to Local Authorities (DEL),Neighbourhoods,NEWCASTLE UPON TYNE DC,,,,5000216402,Grant Payable by Exchequer,NE99 1RD,"172,476.00",Yes
Communities & Local Government,DCLG,12/12/2012,Cap Grants to Local Authorities (DEL),Neighbourhoods,NORTH DEVON DC,,,,5000216632,Grant Payable by Exchequer,EX31 1EA,"111,373.00",Yes
Communities & Local Government,DCLG,12/12/2012,Cap Grants to Local Authorities (DEL),Neighbourhoods,NORTH DORSET DC,,,,5000216636,Grant Payable by Exchequer,DT11 7LL,"61,394.00",Yes
Communities & Local Government,DCLG,12/12/2012,Cap Grants to Local Authorities (DEL),Neighbourhoods,NORTH EAST DERBYSHIRE DC,,,,5000216412,Grant Payable by Exchequer,S40 1LF,"100,682.00",Yes
Communities & Local Government,DCLG,12/12/2012,Cap Grants to Local Authorities (DEL),Neighbourhoods,NORTH EAST LINCOLN DC (HSG),,,,5000216640,Grant Payable by Exchequer,DN35 8LN,"142,929.00",Yes
Communities & Local Government,DCLG,12/12/2012,Cap Grants to Local Authorities (DEL),Neighbourhoods,NORTH HERTS DC (HOUSING) (HSG),,,,5000216644,Grant Payable by Exchequer,SG6 3HN,"73,167.00",Yes
Communities & Local Government,DCLG,12/12/2012,Cap Grants to Local Authorities (DEL),Neighbourhoods,NORTH KESTEVEN DC,,,,5000216416,Grant Payable by Exchequer,NG34 7EF,"83,008.00",Yes
Communities & Local Government,DCLG,12/12/2012,Cap Grants to Local Authorities (DEL),Neighbourhoods,NORTH LINCOLNSHIRE DC (HSG),,Public Bodies,,5000216648,Grant Payable by Exchequer,DN16 1AB,"144,113.00",Yes
Communities & Local Government,DCLG,12/12/2012,Cap Grants to Local Authorities (DEL),Neighbourhoods,NORTH NORFOLK DC,,,,5000216652,Grant Payable by Exchequer,NR27 9EJ,"146,639.00",Yes
Communities & Local Government,DCLG,12/12/2012,Cap Grants to Local Authorities (DEL),Neighbourhoods,NORTH SOMERSET DC,,,,5000216420,Grant Payable by Exchequer,BS23 1LL,"216,233.00",Yes
Communities & Local Government,DCLG,12/12/2012,Cap Grants to Local Authorities (DEL),Neighbourhoods,NORTH TYNESIDE MBC,,,,5000216424,Grant Payable by Exchequer,NE27 0BY,"167,465.00",Yes
Communities & Local Government,DCLG,12/12/2012,Cap Grants to Local Authorities (DEL),Neighbourhoods,NORTH WARWICKSHIRE BC,,Large,,5000216656,Grant Payable by Exchequer,CV9 1DE,"52,825.00",Yes
Communities & Local Government,DCLG,12/12/2012,Cap Grants to Local Authorities (DEL),Neighbourhoods,NORTH WEST LEICESTER DC,,,,5000216660,Grant Payable by Exchequer,LE67 3FJ,"68,715.00",Yes
Communities & Local Government,DCLG,12/12/2012,Cap Grants to Local Authorities (DEL),Neighbourhoods,NORTHAMPTON BOROUGH COUNCIL,,,,5000216430,Grant Payable by Exchequer,NN4 7NR,"109,574.00",Yes
Communities & Local Government,DCLG,12/12/2012,Cap Grants to Local Authorities (DEL),Neighbourhoods,NORTHUMBERLAND COUNTY COUNCIL,,,,5000216751,Grant Payable by Exchequer,NE61 2EF,"339,182.00",Yes
Communities & Local Government,DCLG,12/12/2012,Cap Grants to Local Authorities (DEL),Neighbourhoods,NORWICH CITY CNCL,,,,5000216436,Grant Payable by Exchequer,NR2 1NH,"73,122.00",Yes
Communities & Local Government,DCLG,12/12/2012,Cap Grants to Local Authorities (DEL),Neighbourhoods,NOTTINGHAM CITY COUNCIL,,,,5000216440,Grant Payable by Exchequer,M33 0DJ,"154,658.00",Yes
Communities & Local Government,DCLG,12/12/2012,Cap Grants to Local Authorities (DEL),Neighbourhoods,NUNEATON & BEDWORTH BC,,,,5000216446,Grant Payable by Exchequer,CV11 5AA,"102,860.00",Yes
Communities & Local Government,DCLG,12/12/2012,Cap Grants to Local Authorities (DEL),Neighbourhoods,OADBY & WIGSTON BC (HSG),,,,5000216664,Grant Payable by Exchequer,LE8 2DR,"37,928.00",Yes
Communities & Local Government,DCLG,12/12/2012,Cap Grants to Local Authorities (DEL),Neighbourhoods,OLDHAM MBC,,,,5000216450,Grant Payable by Exchequer,OL1 1UH,"173,336.00",Yes
Communities & Local Government,DCLG,12/12/2012,Cap Grants to Local Authorities (DEL),Neighbourhoods,OXFORD CITY COUNCIL,,,,5000216454,Grant Payable by Exchequer,OX1 1DF,"50,976.00",Yes
Communities & Local Government,DCLG,12/12/2012,Cap Grants to Local Authorities (DEL),Neighbourhoods,PENDLE BC,,,,5000216460,Grant Payable by Exchequer,BB9 OLX,"93,356.00",Yes
Communities & Local Government,DCLG,12/12/2012,Cap Grants to Local Authorities (DEL),Neighbourhoods,PETERBOROUGH CITY CNCL,,,,5000216464,Grant Payable by Exchequer,PE1 1HG,"120,822.00",Yes
Communities & Local Government,DCLG,12/12/2012,Cap Grants to Local Authorities (DEL),Neighbourhoods,PLYMOUTH CITY CNCL,,,,5000216468,Grant Payable by Exchequer,PL1 2AA,"246,553.00",Yes
Communities & Local Government,DCLG,12/12/2012,Cap Grants to Local Authorities (DEL),Neighbourhoods,POOLE BC (HSG),,,,5000216668,Grant Payable by Exchequer,BH15 2RU,"128,741.00",Yes
Communities & Local Government,DCLG,12/12/2012,Cap Grants to Local Authorities (DEL),Neighbourhoods,PORTSMOUTH CITY COUNCIL,,,,5000216472,Grant Payable by Exchequer,PO1 2AR,"113,036.00",Yes
Communities & Local Government,DCLG,12/12/2012,Cap Grants to Local Authorities (DEL),Neighbourhoods,PRESTON BC,,,,5000216476,Grant Payable by Exchequer,PR1 2RL,"109,078.00",Yes
Communities & Local Government,DCLG,12/12/2012,Cap Grants to Local Authorities (DEL),Neighbourhoods,PURBECK DC,,,,5000216672,Grant Payable by Exchequer,DT2 8UP,"45,789.00",Yes
Communities & Local Government,DCLG,12/12/2012,Cap Grants to Local Authorities (DEL),Neighbourhoods,READING BC,,,,5000216480,Grant Payable by Exchequer,RG1 7TD,"59,091.00",Yes
Communities & Local Government,DCLG,12/12/2012,Cap Grants to Local Authorities (DEL),Neighbourhoods,REDCAR & CLEVELAND BOROUGH COUNCIL,,,,5000216488,Grant Payable by Exchequer,TS10 1RT,"169,889.00",Yes
Communities & Local Government,DCLG,12/12/2012,Cap Grants to Local Authorities (DEL),Neighbourhoods,REDDITCH BC,,,,5000216492,Grant Payable by Exchequer,B98 8AH,"50,158.00",Yes
Communities & Local Government,DCLG,12/12/2012,Cap Grants to Local Authorities (DEL),Neighbourhoods,REIGATE & BANSTEAD BC,,,,5000216496,Grant Payable by Exchequer,RH2 OSH,"77,457.00",Yes
Communities & Local Government,DCLG,12/12/2012,Cap Grants to Local Authorities (DEL),Neighbourhoods,RIBBLE VALLEY BC,,,,5000216676,Grant Payable by Exchequer,BB7 2RA,"46,564.00",Yes
Communities & Local Government,DCLG,12/12/2012,Cap Grants to Local Authorities (DEL),Neighbourhoods,RICHMOND UPON THAMES LB,,,,5000216500,Grant Payable by Exchequer,TW1 3BZ,"78,103.00",Yes
Communities & Local Government,DCLG,12/12/2012,Cap Grants to Local Authorities (DEL),Neighbourhoods,RICHMONDSHIRE DC,,,,5000216680,Grant Payable by Exchequer,DL10 4JE,"23,558.00",Yes
Communities & Local Government,DCLG,12/12/2012,Cap Grants to Local Authorities (DEL),Neighbourhoods,ROCHDALE MBC,,,,5000216504,Grant Payable by Exchequer,OL16 1LQ,"179,806.00",Yes
Communities & Local Government,DCLG,12/12/2012,Cap Grants to Local Authorities (DEL),Neighbourhoods,ROCHFORD DISTRICT COUNCIL,,,,5000216508,Grant Payable by Exchequer,SS4 1BW,"57,408.00",Yes
Communities & Local Government,DCLG,12/12/2012,Cap Grants to Local Authorities (DEL),Neighbourhoods,ROSSENDALE BC,,,,5000216512,Grant Payable by Exchequer,BB4 7LZ,"65,871.00",Yes
Communities & Local Government,DCLG,12/12/2012,Cap Grants to Local Authorities (DEL),Neighbourhoods,ROTHER DC (HSG),,,,5000216684,Grant Payable by Exchequer,TN39 3JX,"144,837.00",Yes
Communities & Local Government,DCLG,12/12/2012,Cap Grants to Local Authorities (DEL),Neighbourhoods,ROTHERHAM MBC,,,,5000216516,Grant Payable by Exchequer,S60 1AE,"234,256.00",Yes
Communities & Local Government,DCLG,12/12/2012,Cap Grants to Local Authorities (DEL),Neighbourhoods,ROYAL BOROUGH OF KENSINGTON & CHELS,,,,5000216329,Grant Payable by Exchequer,W8 7NX,"90,782.00",Yes
Communities & Local Government,DCLG,12/12/2012,Cap Grants to Local Authorities (DEL),Neighbourhoods,RUGBY BC,,,,5000216520,Grant Payable by Exchequer,CV21 2LA,"59,176.00",Yes
Communities & Local Government,DCLG,12/12/2012,Cap Grants to Local Authorities (DEL),Neighbourhoods,RUNNYMEDE BOROUGH COUNCIL,,,,5000216524,Grant Payable by Exchequer,KT15 2AH,"38,439.00",Yes
Communities & Local Government,DCLG,12/12/2012,Cap Grants to Local Authorities (DEL),Neighbourhoods,RUSHCLIFFE BOROUGH COUNCIL,,,,5000216688,Grant Payable by Exchequer,NG2 5FE,"66,713.00",Yes
Communities & Local Government,DCLG,12/12/2012,Cap Grants to Local Authorities (DEL),Neighbourhoods,RUSHMOOR BC,,,,5000216528,Grant Payable by Exchequer,GU14 7JU,"44,108.00",Yes
Communities & Local Government,DCLG,12/12/2012,Cap Grants to Local Authorities (DEL),Neighbourhoods,RUTLAND CC,,,,5000216532,Grant Payable by Exchequer,LE15 6HP,"19,294.00",Yes
Communities & Local Government,DCLG,12/12/2012,Cap Grants to Local Authorities (DEL),Neighbourhoods,RYEDALE DC,,,,5000216692,Grant Payable by Exchequer,YO17 0HH,"39,228.00",Yes
Communities & Local Government,DCLG,12/12/2012,Cap Grants to Local Authorities (DEL),Neighbourhoods,SALFORD CITY CNCL,,,,5000216536,Grant Payable by Exchequer,M27 5AW,"214,284.00",Yes
Communities & Local Government,DCLG,12/12/2012,Cap Grants to Local Authorities (DEL),Neighbourhoods,SANDWELL MBC,,,,5000216540,Grant Payable by Exchequer,B69 3BS,"233,326.00",Yes
Communities & Local Government,DCLG,12/12/2012,Cap Grants to Local Authorities (DEL),Neighbourhoods,SCARBOROUGH BC,,Large,,5000216696,Grant Payable by Exchequer,YO11 2HG,"142,068.00",Yes
Communities & Local Government,DCLG,12/12/2012,Cap Grants to Local Authorities (DEL),Neighbourhoods,SEDGEMOOR DC,,,,5000216700,Grant Payable by Exchequer,TA6 3AR,"118,001.00",Yes
Communities & Local Government,DCLG,12/12/2012,Cap Grants to Local Authorities (DEL),Neighbourhoods,SEFTON MBC,,,,5000216544,Grant Payable by Exchequer,L20 3NQ,"377,732.00",Yes
Communities & Local Government,DCLG,12/12/2012,Cap Grants to Local Authorities (DEL),Neighbourhoods,SELBY DC,,,,5000216704,Grant Payable by Exchequer,YO8 0SA,"45,820.00",Yes
Communities & Local Government,DCLG,12/12/2012,Cap Grants to Local Authorities (DEL),Neighbourhoods,SEVENOAKS DC,,,,5000216708,Grant Payable by Exchequer,TN13 1HG,"75,987.00",Yes
Communities & Local Government,DCLG,12/12/2012,Cap Grants to Local Authorities (DEL),Neighbourhoods,SHEFFIELD CITY CNCL,,,,5000216548,Grant Payable by Exchequer,S1 1UR,"353,841.00",Yes
Communities & Local Government,DCLG,12/12/2012,Cap Grants to Local Authorities (DEL),Neighbourhoods,SHEPWAY DISTRICT COUNCIL,,,,5000216712,Grant Payable by Exchequer,CT20 2QY,"131,456.00",Yes
Communities & Local Government,DCLG,12/12/2012,Cap Grants to Local Authorities (DEL),Neighbourhoods,SHROPSHIRE UNITARY AUTHORITY,,,,5000216771,Grant Payable by Exchequer,SY2 6ND,"292,797.00",Yes
Communities & Local Government,DCLG,12/12/2012,Cap Grants to Local Authorities (DEL),Neighbourhoods,SLOUGH BOROUGH COUNCIL,,,,5000216552,Grant Payable by Exchequer,SL1 3UQ,"47,565.00",Yes
Communities & Local Government,DCLG,12/12/2012,Cap Grants to Local Authorities (DEL),Neighbourhoods,SOLIHULL MBC,,,,5000216556,Grant Payable by Exchequer,B91 3QR,"149,995.00",Yes
Communities & Local Government,DCLG,12/12/2012,Cap Grants to Local Authorities (DEL),Neighbourhoods,SOUTH BUCKS DC (HSG),,,,5000216716,Grant Payable by Exchequer,UB9 4LH,"36,566.00",Yes
Communities & Local Government,DCLG,12/12/2012,Cap Grants to Local Authorities (DEL),Neighbourhoods,SOUTH CAMBRIDGESHIRE DC,,,,5000216720,Grant Payable by Exchequer,CB23 6EA,"62,910.00",Yes
Communities & Local Government,DCLG,12/12/2012,Cap Grants to Local Authorities (DEL),Neighbourhoods,SOUTH DERBYSHIRE D C,,,,5000216724,Grant Payable by Exchequer,DE11 0AH,"61,232.00",Yes
Communities & Local Government,DCLG,12/12/2012,Cap Grants to Local Authorities (DEL),Neighbourhoods,SOUTH GLOUCESTERSHIRE DC (HSG),,,,5000216728,Grant Payable by Exchequer,BS15 2TR,"169,948.00",Yes
Communities & Local Government,DCLG,12/12/2012,Cap Grants to Local Authorities (DEL),Neighbourhoods,SOUTH HAMS DC,,,,5000216732,Grant Payable by Exchequer,TQ9 5NE,"94,257.00",Yes
Communities & Local Government,DCLG,12/12/2012,Cap Grants to Local Authorities (DEL),Neighbourhoods,SOUTH HOLLAND,,,,5000216736,Grant Payable by Exchequer,PE11 2XE,"78,147.00",Yes
Communities & Local Government,DCLG,12/12/2012,Cap Grants to Local Authorities (DEL),Neighbourhoods,SOUTH KESTEVEN DC (HSG),,,,5000216740,Grant Payable by Exchequer,NG31 6PZ,"85,256.00",Yes
Communities & Local Government,DCLG,12/12/2012,Cap Grants to Local Authorities (DEL),Neighbourhoods,SOUTH LAKELAND DC,,,,5000216744,Grant Payable by Exchequer,LA49 4DQ,"99,066.00",Yes
Communities & Local Government,DCLG,12/12/2012,Cap Grants to Local Authorities (DEL),Neighbourhoods,SOUTH NORFOLK DC,,,,5000216748,Grant Payable by Exchequer,NR15 2XE,"101,539.00",Yes
Communities & Local Government,DCLG,12/12/2012,Cap Grants to Local Authorities (DEL),Neighbourhoods,SOUTH NORTHAMPTONSHIRE DC,,,,5000216752,Grant Payable by Exchequer,NN12 7AE,"38,644.00",Yes
Communities & Local Government,DCLG,12/12/2012,Cap Grants to Local Authorities (DEL),Neighbourhoods,SOUTH OXFORDSHIRE DC,,,,5000216756,Grant Payable by Exchequer,OX10 8HQ,"69,468.00",Yes
Communities & Local Government,DCLG,12/12/2012,Cap Grants to Local Authorities (DEL),Neighbourhoods,SOUTH RIBBLE BC,,,,5000216562,Grant Payable by Exchequer,PR5 1DH,"95,996.00",Yes
Communities & Local Government,DCLG,12/12/2012,Cap Grants to Local Authorities (DEL),Neighbourhoods,SOUTH SOMERSET DC,,,,5000216760,Grant Payable by Exchequer,BA20 2DS,"162,592.00",Yes
Communities & Local Government,DCLG,12/12/2012,Cap Grants to Local Authorities (DEL),Neighbourhoods,SOUTH STAFFORDSHIRE DC,,,,5000216764,Grant Payable by Exchequer,WV8 1PX,"95,693.00",Yes
Communities & Local Government,DCLG,12/12/2012,Cap Grants to Local Authorities (DEL),Neighbourhoods,SOUTH TYNESIDE COUNCIL,,,,5000216566,Grant Payable by Exchequer,NE33 2RL,"139,299.00",Yes
Communities & Local Government,DCLG,12/12/2012,Cap Grants to Local Authorities (DEL),Neighbourhoods,SOUTHAMPTON CITY CNCL,,,,5000216570,Grant Payable by Exchequer,SO14 7LF,"131,041.00",Yes
Communities & Local Government,DCLG,12/12/2012,Cap Grants to Local Authorities (DEL),Neighbourhoods,SOUTHEND ON SEA BC,,,,5000216574,Grant Payable by Exchequer,SS2 6EP,"140,819.00",Yes
Communities & Local Government,DCLG,12/12/2012,Cap Grants to Local Authorities (DEL),Neighbourhoods,SOUTHWARK LB,,,,5000216578,Grant Payable by Exchequer,SE1 2QH,"93,415.00",Yes
Communities & Local Government,DCLG,12/12/2012,Cap Grants to Local Authorities (DEL),Neighbourhoods,SPELTHORNE DC,,,,5000216768,Grant Payable by Exchequer,TW18 1XB,"57,590.00",Yes
Communities & Local Government,DCLG,12/12/2012,Cap Grants to Local Authorities (DEL),Neighbourhoods,ST ALBANS CITY COUNCIL,,,,5000216582,Grant Payable by Exchequer,AL1 3JE,"54,232.00",Yes
Communities & Local Government,DCLG,12/12/2012,Cap Grants to Local Authorities (DEL),Neighbourhoods,ST EDMUNDSBURY (HSG),,,,5000216772,Grant Payable by Exchequer,IP33 3YS,"79,295.00",Yes
Communities & Local Government,DCLG,12/12/2012,Cap Grants to Local Authorities (DEL),Neighbourhoods,ST HELENS MBC,,,,5000216585,Grant Payable by Exchequer,WA10 1HP,"235,679.00",Yes
Communities & Local Government,DCLG,12/12/2012,Cap Grants to Local Authorities (DEL),Neighbourhoods,STAFFORD BC,,,,5000216589,Grant Payable by Exchequer,ST16 3AQ,"110,801.00",Yes
Communities & Local Government,DCLG,12/12/2012,Cap Grants to Local Authorities (DEL),Neighbourhoods,STAFFORDSHIRE MOORLANDS DC,,,,5000216776,Grant Payable by Exchequer,ST13 6HQ,"112,924.00",Yes
Communities & Local Government,DCLG,12/12/2012,Cap Grants to Local Authorities (DEL),Neighbourhoods,STEVENAGE BC,,,,5000216595,Grant Payable by Exchequer,SG1 1HN,"38,614.00",Yes
Communities & Local Government,DCLG,12/12/2012,Cap Grants to Local Authorities (DEL),Neighbourhoods,STOCKPORT MBC,,,,5000216599,Grant Payable by Exchequer,SK1 3XE,"225,209.00",Yes
Communities & Local Government,DCLG,12/12/2012,Cap Grants to Local Authorities (DEL),Neighbourhoods,STOCKTON-ON-TEES BC (HSG),,,,5000216780,Grant Payable by Exchequer,TS23 2YS,"141,692.00",Yes
Communities & Local Government,DCLG,12/12/2012,Cap Grants to Local Authorities (DEL),Neighbourhoods,STOKE ON TRENT CITY COUNCIL,,,,5000216603,Grant Payable by Exchequer,ST4 1RJ,"256,132.00",Yes
Communities & Local Government,DCLG,12/12/2012,Cap Grants to Local Authorities (DEL),Neighbourhoods,STRATFORD ON AVON DC,,,,5000216607,Grant Payable by Exchequer,CV37 6HX,"89,834.00",Yes
Communities & Local Government,DCLG,12/12/2012,Cap Grants to Local Authorities (DEL),Neighbourhoods,STROUD DC (HSG),,,,5000216784,Grant Payable by Exchequer,GL5 4UB,"83,124.00",Yes
Communities & Local Government,DCLG,12/12/2012,Cap Grants to Local Authorities (DEL),Neighbourhoods,SUFFOLK COASTAL DC (HSG),,,,5000216787,Grant Payable by Exchequer,IP12 1AU,"112,186.00",Yes
Communities & Local Government,DCLG,12/12/2012,Cap Grants to Local Authorities (DEL),Neighbourhoods,SURREY HEATH BC,,,,5000216613,Grant Payable by Exchequer,GU15 3HD,"36,528.00",Yes
Communities & Local Government,DCLG,12/12/2012,Cap Grants to Local Authorities (DEL),Neighbourhoods,SUTTON LB,,,,5000216617,Grant Payable by Exchequer,SM1 1EA,"105,883.00",Yes
Communities & Local Government,DCLG,12/12/2012,Cap Grants to Local Authorities (DEL),Neighbourhoods,SWALE BC,,,,5000216621,Grant Payable by Exchequer,ME10 3HT,"128,200.00",Yes
Communities & Local Government,DCLG,12/12/2012,Cap Grants to Local Authorities (DEL),Neighbourhoods,SWINDON BC,,,,5000216625,Grant Payable by Exchequer,SN1 2JH,"108,445.00",Yes
Communities & Local Government,DCLG,12/12/2012,Cap Grants to Local Authorities (DEL),Neighbourhoods,TAMESIDE MBC,,,,5000216629,Grant Payable by Exchequer,OL6 6DL,"227,274.00",Yes
Communities & Local Government,DCLG,12/12/2012,Cap Grants to Local Authorities (DEL),Neighbourhoods,TAMWORTH BOROUGH COUNCIL,,,,5000216633,Grant Payable by Exchequer,B79 7BZ,"49,988.00",Yes
Communities & Local Government,DCLG,12/12/2012,Cap Grants to Local Authorities (DEL),Neighbourhoods,TANDRIDGE DC,,,,5000216789,Grant Payable by Exchequer,RH8 0BT,"48,970.00",Yes
Communities & Local Government,DCLG,12/12/2012,Cap Grants to Local Authorities (DEL),Neighbourhoods,TAUNTON DEANE BC,,,,5000216791,Grant Payable by Exchequer,TA1 1HE,"95,853.00",Yes
